Workbook

Sheet ML
B1: MỤC LỤC
A3: STT | B3: TÊN BẢNG | C3: TÊN SHEET | E3: STT | F3: TÊN BẢNG | G3: TÊN SHEET | I3: STT | J3: ĐỊA CHỈ TRÊN MẠNG
A4: 1 | B4: Thuyết minh lập dự toán | C4: TM | E4: 21 | F4: Bảng tính nội suy các định mức tỷ lệ | G4: QD957 | I4: 1 | J4: Diễn đàn DutoanGXD.vn
A5: 2 | B5: Bảng tổng hợp: Dự toán công trình; Chi phí tư vấn; Chi phí khác | C5: THKP | E5: 22 | F5: Bảng tính dự phòng phí | G5: Gdp | I5: 2 | J5: Trang tin Giaxaydung.vn
A6: 3 | B6: Phụ lục dùng cho thẩm tra dự toán | C6: PLthamtra | E6: 23 | F6: Bảng các thông số ban đầu về công trình | G6: Ts | I6: 3 | J6: Trang Gxd.vn web và tìm kiếm văn bản
B7: DỰ TOÁN CHI PHÍ XÂY DỰNG | F7: DỰ TOÁN CHI PHÍ THIẾT BỊ | I7: 4 | J7: Siêu thị phần mềm xây dựng
A8: 4 | B8: Bìa (bìa ngoài, bìa lót phần xây dựng) | C8: Bia1 | E8: 24 | F8: Bìa (bìa ngoài, bìa lót phần thiết bị) | G8: Bia2 | I8: 5 | J8: Cộng đồng sử dụng Dự toán GXD
A9: 5 | B9: Tổng hợp dự toán chi phí xây dựng các hạng mục | C9: THGxd | E9: 25 | F9: Tổng hợp dự toán lắp đặt thiết bị các hạng mục | G9: THGld | I9: 6 | J9: Diễn đàn Giá Xây Dựng
A10: 6 | B10: Bảng tổng hợp dự toán chi phí xây dựng | C10: Gxd | E10: 26 | F10: Bảng tổng hợp dự toán chi phí lắp đặt thiết bị | G10: Gld | I10: 7 | J10: Thư viện thuvien.gxd.vn
A11: 7 | B11: Bảng dự toán chi phí xây dựng | C11: Dutoan XD | E11: 27 | F11: Bảng dự toán chi phí lắp đặt thiết bị | G11: Dutoan TB | I11: 8 | J11: Dữ liệu csv lập dự toán trên DutoanGXD.vn
A12: 8 | B12: Bảng phân tích đơn giá chi tiết và phân tích vật tư | C12: DGCT XD | E12: 28 | F12: Bảng phân tích đơn giá chi tiết lắp đặt thiết bị | G12: DGCT TB | I12: 9 | J12: Lập trình VBA, Macro4 trong Excel
A13: 9 | B13: Bảng tổng hợp và tính chênh lệch vật tư xây dựng | C13: TH&CLVT XD | E13: 29 | F13: Bảng tổng hợp và tính chênh lệch vật tư lắp đặt thiết bị | G13: TH&CLVT TB | I13: 10 | J13: Công bố giá vật liệu địa phương
A14: 10 | B14: Bảng tính giá vật liệu đến hiện trường xây dựng | C14: VLHT XD | E14: 30 | F14: Bảng tính giá vật liệu đến hiện trường lắp đặt thiết bị | G14: VLHT TB | I14: 11 | J14: Báo giá vật liệu xây dựng từ thị trường
A15: 11 | B15: Bảng phụ lục vữa thi công xây dựng | C15: PLV XD | E15: 31 | F15: Bảng phụ lục vữa lắp đặt thiết bị | G15: PLV TB | I15: 12 | J15: Quản lý dự án đầu tư xây dựng công trình
A16: 12 | B16: Bảng lương nhân công xây dựng | C16: NC XD | E16: 32 | F16: Bảng lương nhân công lắp đặt thiết bị | G16: NC TB | I16: 13 | J16: Quản lý chi phí đầu tư xây dựng
A17: 13 | B17: Bảng giá ca máy và thiết bị thi công xây dựng | C17: GCM XD | E17: 33 | F17: Bảng giá ca máy và thiết bị thi công lắp đặt thiết bị | G17: GCM TB | I17: 14 | J17: Tải cơ sở dữ liệu CSV
A18: 14 | B18: Bảng thống kê cốt thép | C18: Tkthep | E18: 34 | F18: Bảng dự toán dự thầu lắp đặt thiết bị | G18: DTDT TB | I18: 15 | J18: Thư viện diễn đàn
A19: 15 | B19: Bảng dự toán dự thầu thi công xây dựng | C19: DTDT XD | E19: 35 | F19: Bảng giá trị vật tư lắp đặt thiết bị | G19: GVT TB
A20: 16 | B20: Bảng giá trị vật tư thi công xây dựng | C20: GVT XD | E20: 36 | F20: Bảng tổng hợp vật tư xây dựng vận chuyển lên cao | G20: VCLC TB
A21: 17 | B21: Bảng tổng hợp vật tư xây dựng vận chuyển lên cao | C21: VCLC XD | E21: 37 | F21: Bảng tổng hợp hao phí nhiên liệu, năng lượng lắp đặt thiết bị | G21: Nhienlieutb
A22: 18 | B22: Bảng tổng hợp hao phí nhiên liệu, năng lượng thi công xây dựng | C22: NhienlieuXD | E22: 38 | F22: Bảng giá trị chênh lệch vật liệu tính vào sau chi phí lắp đặt thiết bị trước thuế | G22: VLSG TB
A23: 19 | B23: Bảng giá trị chênh lệch vật liệu tính vào sau chi phí xây dựng trước thuế | C23: VLSG XD | E23: 39 | F23: Bảng tiến độ lắp đặt thiết bị | G23: TDLD TB
A24: 20 | B24: Bảng tiến độ thi công xây dựng | C24: TDTC XD | E24: 40 | F24: Bảng dự toán chi phí mua sắm thiết bị | G24: Gms
E25: 41 | F25: Bảng tổng hợp chi phí đào tạo chuyển giao công nghệ | G25: Gdtcg
E26: 42 | F26: Bảng tổng hợp dự toán chi phí thiết bị | G26: Gtb

Sheet Ts
A1: CÁC THÔNG SỐ BAN ĐẦU VỀ CÔNG TRÌNH | E1: WWW.GIAXAYDUNG.VN CHUNG TAY XÂY DỰNG ĐẤT NƯỚC | K1: C:\Du toan GXD\Dulieu | L1: 7 | M1: HoChiMinh2006 | O1: Trạng thái (1-Kích hoạt; 0 - Không kích hoạt) | R1: Bậc hàng | S1: Hệ số | T1: VAT | X1: Các định nghĩa trong phần mềm | AD1: STT | AE1: CÁC TÙY CHỌN | AF1: GIÁ TRỊ
A2: I. | B2: THÔNG TIN CHUNG | E2: BẢNG 3.7. ĐỊNH MỨC CHI PHÍ TRỰC TIẾP KHÁC | K2: C:\Du toan GXD\Dulieu\HoChiMinh2006\CVC89.2000.csv | L2: 6 | O2: 1 | R2: 1 | S2: 1.00 | T2: 1.05 | AE2: Bảng Dutoan
A3: 1 | B3: CÔNG TRÌNH: | E3: STT | F3: LOẠI CÔNG TRÌNH | G3: TT | K3: C:\Du toan GXD\Dulieu\HoChiMinh2006\DGHoChiMinh2006.csv | L3: 0 | O3: 1 | R3: 2 | S3: 1.10 | X3: Vật liệu | AD3: 1 | AE3: Tra lại tên công việc khi thay đổi mã đơn giá | AF3: 0
B4: NHÀ BIỆT THỰ GXD | E4: 1 | F4: Công trình dân dụng | K4: C:\Du toan GXD\Dulieu\HoChiMinh2006\DMHCM1776+1777+1779.csv | L4: 3 | O4: 1 | R4: 3 | S4: 1.30 | X4: Vật liệu phụ | AD4: 2 | AE4: Tính lại khi đơn giá khi thay đổi mã vữa | AF4: 1
A5: 2 | B5: HẠNG MỤC: | F5: Trong đô thị | G5: 2.5% | K5: C:\Du toan GXD\Dulieu\HoChiMinh2006\GCMHoChiMinh2006.csv | L5: 2 | O5: 1 | R5: 4 | S5: 1.40 | X5: Vật liệu khác | Z5: 1 | AD5: 3 | AE5: Sử dụng phụ lục vữa | AF5: 1
B6: ĐỔI BẢNG MÃ FONT RẤT ĐƠN GIẢN TRONG DỰ TOÁN GXD | F6: Ngoài đô thị | G6: 2% | K6: C:\Du toan GXD\Dulieu\HoChiMinh2006\GVTHoChiMinh2006.csv | L6: 1 | O6: 1 | R6: 5 | X6: Nhân công | AE6: Bảng TH&CLVT và bảng ĐGCT
A7: 3 | B7: Chủ đầu tư: | E7: 2 | F7: Công trình công nghiệp | G7: 2% | K7: C:\Du toan GXD\Dulieu\HoChiMinh2006\PLVHoChiMinh2006.csv | L7: 5 | O7: 1 | X7: Máy thi công | AD7: 4 | AE7: Tổng hợp theo tên vật tư | AF7: 1
B8: CÔNG TY GIÁ XÂY DỰNG | F8: Công tác xây dựng trong hầm lò, hầm thủy điện | G8: 6.5% | K8: C:\Du toan GXD\Dulieu\HoChiMinh2006\TDVTHoChiMinh2006.csv | L8: 4 | O8: 1 | X8: Máy khác | AD8: 5 | AE8: Bóc thép theo diễn giải | AF8: 0
A9: 4 | B9: Địa điểm xây dựng công trình: | E9: 3 | F9: Công trình giao thông | G9: 2% | R9: Dữ liệu cước vận chuyển | X9: Các dòng chi phí | AD9: 6 | AE9: Phân tích đơn giá chi tiết theo vữa | AF9: 1
B10: SỐ 2A, NGÕ 55, NGUYỄN NGỌC NẠI, THANH XUÂN, HÀ NỘI | F10: Công tác xây dựng trong đường hàm giao thông | G10: 6.5% | R10: Loại đường | S10: Hệ số bậc hàng | T10: Bậc hàng | X10: Chi phí trực tiếp khác (TT) | AD10: 7 | AE10: Tính ĐGCT theo đơn giá đầy đủ | AF10: 1
A11: II. | B11: CÁC HỆ SỐ, ĐỊNH MỨC TỶ LỆ | E11: 4 | F11: Công trình thủy lợi | G11: 2% | R11: 1 | S11: 1 | T11: 1 | X11: Chi phí trực tiếp (T) | AD11: 8 | AE11: Dùng hệ số trong đơn giá chi tiết | AF11: 0
A12: 1 | B12: Hệ số vật liệu | C12: 1.000 | E12: 5 | F12: Công trình hạ tầng kỹ thuật | R12: 2 | S12: 1.1 | T12: 2 | X12: Chi phí chung (C) | AD12: 9 | AE12: Phân tích đơn giá khảo sát | AF12: 1
A13: 2 | B13: Hệ số nhân công | C13: 1.000 | F13: Trong đô thị | G13: 2% | R13: 3 | S13: 1.3 | T13: 3 | X13: Thu nhập chịu thuế tính trước (TL) | AD13: 10 | AE13: Tính Giá ca máy | AF13: 2
A14: 3 | B14: Hệ số máy xây dựng | C14: 1.000 | F14: Ngoài đô thị | G14: 1.5% | R14: 4 | S14: 1.4 | T14: 4 | X14: Chi phí xây dựng trước thuế (G) | AE14: Chi phí chung (Thông tư 04/2010)
A15: 4 | B15: Định mức chi phí trực tiếp khác (TT) | C15: 2.5% | E15: BẢNG 3.8. ĐỊNH MỨC CHI PHÍ CHUNG, THU NHẬP CHỊU THUẾ TÍNH TRƯỚC | R15: 5 | X15: Thuế giá trị gia tăng (GTGT) | AD15: 11 | AE15: Chi phí trực tiếp/Chi phí nhân công(1: Giá trị được chọn; 0: giá trị bỏ chọn) | AF15: 1
A16: 5 | B16: Định mức chi phí chung (C) | C16: 6.5% | E16: STT | F16: LOẠI CÔNG TRÌNH | G16: CP CHUNG (C) | I16: TNCTTT (TL) | R16: 6 | X16: Chi phí nhà tạm tại hiện trường để ở và điều hành thi công (GXDNT) | AE16: Nối với bảng Đơn giá chi tiết
A17: 6 | B17: Định mức thu nhập chịu thuế tính trước (TL) | C17: 5.5% | G17: TRÊN T | H17: Trên NC | X17: Chi phí xây dựng sau thuế (GXD) | AD17: 12 | AE17: Nối giá vật tư từ bảng Tổng hợp và Chênh lệch | AF17: 1
A18: 7 | B18: Thuế suất thuế giá trị gia tăng (TGTGT-XD) | C18: 10.0% | E18: 1 | F18: Công trình dân dụng | G18: 6.5% | I18: 5.5% | R18: Hạng mục xây dựng | U18: Hạng mục thiết bị | X18: Tổng cộng | AD18: 13 | AE18: Nối giá vật tư từ bảng Giá trị vật tư | AF18: 0
A19: 8 | B19: Tỷ lệ chi phí XD nhà tạm tại hiện trường để ở và điều hành thi công | C19: 1.0% | F19: Công trình tu bổ, phục hồi di tích lịch sử, văn hóa | G19: 10% | S19: 0 | X19: BẢNG DỰ TOÁN | AD19: 14 | AE19: Nối đơn giá với bảng Dự toán | AF19: 0
A20: 9 | B20: Chi phí khảo sát | C20: 5.0% | E20: 2 | F20: Công trình công nghiệp | G20: 5.5% | I20: 6% | S20: ='Dutoan XD'!E9 -> L¾p ®Æt ®Ìn èng 1,2m - 2 bãng | X20: BẢNG TIÊN LƯỢNG | AE20: Nối với bảng Tổng hợp và chênh lệch
A21: III. | B21: CHẾ ĐỘ TIỀN LƯƠNG | F21: Công tác xây dựng trong hầm lò, hầm thủy điện | G21: 7% | X21: BẢNG GIÁ CA MÁY VÀ THIẾT BỊ THI CÔNG XÂY DỰNG | AD21: 15 | AE21: Nối giá vật liệu từ bảng Giá vật liệu đến hiện trường | AF21: 1
A22: 1 | B22: Mức lương tối thiểu chung (LTTC) | C22: 1,050,000 đ/tháng | E22: 3 | F22: Công trình giao thông | G22: 5.5% | I22: 6% | X22: BẢNG TÍNH BÙ GIÁ CA MÁY THEO TT06 | AD22: 16 | AE22: Nối giá nhân công từ bảng Lương nhân công | AF22: 1
A23: 2 | B23: Mức lương tối thiểu vùng (LTTV) | C23: 2,000,000 đ/tháng | F23: Công tác duy tu sửa chữa thường xuyên đường bộ, đường sắt, đường thủy nội địa, hệ thống báo hiệu hàng hải và đường thủy nội địa | H23: 66% | X23: BẢNG TÍNH BÙ GIÁ CA MÁY (ĐƠN GIẢN) | AD23: 17 | AE23: Nối giá ca máy từ bảng Giá ca máy | AF23: 1
A24: 3 | B24: Phụ cấp lưu động (%LTTC) | C24: 20% | F24: Công trình hầm giao thông | G24: 7% | X24: PHÂN TÍCH HAO PHÍ VẬT TƯ THEO ĐỊNH MỨC | AD24: 18 | AE24: Nối giá vữa từ bảng Phụ lục vữa | AF24: 1
A25: 4 | B25: Lương phụ (%LCB) | C25: 12% | E25: 4 | F25: Công trình thủy lợi | G25: 5.5% | I25: 5.5% | X25: BẢNG PHÂN TÍCH ĐƠN GIÁ CHI TIẾT | AE25: Nối với bảng Giá trị vật tư
A26: 5 | B26: Chi phí khoán trực tiếp (%LCB) | C26: 4% | D26: Tìm ở văn bản nào? | F26: Đào, đắp đất công trình thủy lợi bằng thủ công | H26: 51% | X26: Giá thành khảo sát (Gks) | AD26: 19 | AE26: Nối giá vật liệu từ bảng Giá vật liệu đến hiện trường | AF26: 0
A27: 6 | B27: Phụ cấp không ổn định sản xuất (%LCB) | E27: 5 | F27: Công trình hạ tầng kỹ thuật | G27: 5% | I27: 5.5% | X27: Chi phí lập PA, báo cáo KS (BC) | AD27: 20 | AE27: Nối giá nhân công từ bảng Lương nhân công | AF27: 0
A28: 7 | B28: Phụ cấp khu vực (%LTTC) | E28: 6 | F28: Công tác lắp đặt thiết bị công nghệ trong các công trình xây dựng, công tác xây lắp đường dây, công tác thí nghiệm hiệu chỉnh điện đường dây và trạm biến áp, công tác thí nghiệm vật liệu, cấu kiện và kết cấu xây dựng | H28: 65% | I28: 6% | X28: Giá trị dự toán khảo sát trước thuế (G) | AD28: 21 | AE28: Nối giá ca máy từ bảng Giá ca máy | AF28: 0
A29: 8 | B29: Phụ cấp thu hút (%LCB) | E29: Các bảng 3.7 và 3.8 trích từ Thông tư số 04/2010/TT-BXD ngày 26/05/2010 của Bộ Xây Dựng. | X29: Giá trị khảo sát sau thuế (GXD) | AD29: 22 | AE29: Nối giá vữa từ bảng Phụ lục vữa | AF29: 0
A30: 9 | B30: Phụ cấp độc hại (%LTTC) | X30: Chi phí chỗ ở tạm thời (Gnt) | AE30: Chung
A31: 10 | B31: Phụ cấp đặc biệt (%LCB) | X31: Chi phí chuyển quân, chuyển máy (Gdc) | AD31: 23 | AE31: Đổi nhóm nhân công toàn bộ | AF31: 1
A32: 11 | B32: Phụ cấp làm ca đêm (%LCB) | X32: Chi phí dự phòng (GDP) | AD32: 24 | AE32: Tổng hợp dự toán theo dạng bảng | AF32: 1
A33: IV. | B33: GIÁ NHIÊN LIỆU, NĂNG LƯỢNG (TRƯỚC VAT) | AD33: 25 | AE33: Phương pháp lập dự toán | AF33: 1
B34: Giá nhiên liệu trong bảng giá ca máy địa phương (giá ca máy gốc) | AD34: 26 | AE34: Tùy chọn kết xuất dữ liệu | AF34: 0
A35: 1 | B35: Xăng (đồng/lít) | C35: 19,000 | AD35: 27 | AE35: Hiển thị trang tin khi khởi động | AF35: 1
A36: 2 | B36: Dầu Diezel (đồng/lít) | C36: 18,955 | AD36: 28 | AE36: Mã vữa | AF36: V10875
A37: 3 | B37: Ma dút (đồng/lít) | C37: 13,548
A38: 4 | B38: Dầu hỏa (đồng/lít)
A39: 5 | B39: Dầu DO (đồng/lít) | D39: 1000
A40: 6 | B40: Điện (đồng/kw) | C40: 1,242
B41: Giá nhiên liệu ở thời điểm hiện tại để tính giá ca máy và bù giá ca máy
A42: 1 | B42: Xăng (đồng/lít) | C42: 19,909
A43: 2 | B43: Dầu Diezel (đồng/lít) | C43: 19,545
A44: 3 | B44: Ma dút (đồng/lít) | C44: 14,548
A45: 4 | B45: Dầu hỏa (đồng/lít)
A46: 5 | B46: Dầu DO (đồng/lít)
A47: 6 | B47: Điện (đồng/kw) | C47: 2,061
A51: Lưu ý: | B51: Nếu sử dụng đơn giá địa phương để lập dự toán, hãy chọn hệ số ở phần hướng dẫn chung trong cuốn đơn giá của từng tỉnh.

Sheet Bia1
A2: CÔNG TY CP GIÁ XÂY DỰNG | F2: CỘNG HOÀ XÃ HỘI CHỦ NGHĨA VIỆT NAM
A3: WWW.GIAXAYDUNG.VN | F3: Độc lập - Tự do - Hạnh phúc
A5: Số : ……./……….
A9: DỰ TOÁN XÂY DỰNG CÔNG TRÌNH
D11: DỰ ÁN:
D12: CÔNG TRÌNH: | E12: =Ts!B4 -> NHÀ BIỆT THỰ GXD
D13: ĐỊA ĐIỂM: | E13: =E44 -> SỐ 2A, NGÕ 55, NGUYỄN NGỌC NẠI, THANH XUÂN, HÀ NỘI
D14: CHỦ ĐẦU TƯ: | E14: =E45 -> CÔNG TY GIÁ XÂY DỰNG
D16: Giá trị dự toán: | E16: ='Tong hop kinh phi'!G17 -> 128,536,000 | I16: đồng
D17: ="(Bằng chữ: "&vnd(E16)&")" -> (Bằng chữ: Một trăm hai mươi tám triệu năm trăm ba mươi sáu nghìn đồng.)
H20: Hà Nội, | I20: ngày | J20: =NOW() -> 2013-12-24T23:43:21.750 | K20: tháng | L20: =NOW() -> 2013-12-24T23:43:21.750 | M20: năm | N20: =NOW() -> 2013-12-24T23:43:21.750
I21: GIÁM ĐỐC
I27: NGUYỄN THÀNH CÔNG
A30: CÔNG TY CP GIÁ XÂY DỰNG | F30: CỘNG HOÀ XÃ HỘI CHỦ NGHĨA VIỆT NAM
A31: WWW.GIAXAYDUNG.VN | F31: Độc lập - Tự do - Hạnh phúc
A39: DỰ TOÁN XÂY DỰNG CÔNG TRÌNH
A40: Số : ……./…….
D42: CÔNG TRÌNH: | E42: =IF(Ts!B4="","",Ts!B4) -> NHÀ BIỆT THỰ GXD
D43: HẠNG MỤC: | E43: =IF(Ts!B6="","",Ts!B6) -> ĐỔI BẢNG MÃ FONT RẤT ĐƠN GIẢN TRONG DỰ TOÁN GXD
D44: ĐỊA ĐIỂM: | E44: =Ts!B10 -> SỐ 2A, NGÕ 55, NGUYỄN NGỌC NẠI, THANH XUÂN, HÀ NỘI
D45: CHỦ ĐẦU TƯ: | E45: =Ts!B8 -> CÔNG TY GIÁ XÂY DỰNG

Sheet TM
C1: THUYẾT MINH LẬP DỰ TOÁN
C2: ='Bia1'!D42&'Bia1'!E42 -> CÔNG TRÌNH: NHÀ BIỆT THỰ GXD
C3: ='Bia1'!D43&'Bia1'!E43 -> HẠNG MỤC: ĐỔI BẢNG MÃ FONT RẤT ĐƠN GIẢN TRONG DỰ TOÁN GXD
B5: MHVB | C5: CƠ SỞ LẬP DỰ TOÁN:
C6: 1. Các văn bản:
C7: - Nghị định số 112/2009/NĐ-CP ngày 14/12/2009 của Chính phủ về quản lý chi phí đầu tư xây dựng công trình.
C8: - Thông tư số 04/2010/TT-BXD ngày 26/05/2010 của Bộ Xây dựng hướng dẫn lập và quản lý chi phí đầu tư xây dựng công trình.
C9: - Thông tư số 06/2010/TT-BXD ngày 26/05/2010 của Bộ Xây dựng hướng dẫn phương pháp xác định giá ca máy và thiết bị thi công.
C10: - Quyết định số ....
C11: - Thông tư số 129/2008/TT-BTC ngày 26/12/2008 của Bộ Tài chính hướng dẫn thi hành một số điều của Luật thuế giá trị gia tăng và hướng dẫn thi hành Nghị định số 123/2008/NĐ-CP ngày 08/12/2008 của Chính phủ quy định chi tiết hướng dẫn thi hành một số điều của Luật thuế giá trị gia tăng.
C12: - Công bố giá vật liệu Liên Sở Xây dựng - Tài chính tỉnh ....
C13: - Căn cứ vào khối lượng xác định từ hồ sơ bản vẽ thiết kế.
C14: - Căn cứ vào các thông tư định mức, đơn giá của Nhà nước và địa phương ban hành.
C15: - Một số tài liệu khác có liên quan.
C17: 2. Định mức:
C18: - Áp dụng định mức dự toán XDCT phần xây dựng ban hành kèm theo văn bản số 1776/2007/BXD-VP ngày 16/08/2007 của Bộ Xây dựng.
C19: - Áp dụng định mức dự toán XDCT phần lắp đặt ban hành kèm theo văn bản số 1777/2007/BXD-VP ngày 16/08/2007 của Bộ Xây dựng.
C21: 3. Đơn giá áp dụng:
C22: - Đơn giá xây dựng công trình phần xây dựng ban hành kèm theo quyết định số .../2006/QĐ-UBND ngày .../.../2006 của UBND Tỉnh ....
C23: - Đơn giá xây dựng công trình phần lắp đặt ban hành kèm theo quyết định số .../2006/QĐ-UBND ngày .../.../2006 của UBND ....
C24: - Bảng giá ca máy và thiết bị thi công ban hành kèm theo quyết định số .../2006/QĐ-UBND ngày .../.../2006 của Tỉnh ....
D26: Giá trị dự toán | E26: ='Tong hop kinh phi'!G17 -> 128,536,000 | G26: đồng
D27: ="(Bằng chữ: "&vnd(F44)&")" -> (Bằng chữ: )

Sheet PLthamtra (hidden)
A1: PHỤ LỤC
A2: Kèm theo công văn số /VKT/TTTT ngày tháng năm 2012 của
A4: KẾT QUẢ THẨM ĐỊNH / THẨM TRA DỰ TOÁN
A6: ='Bia1'!D42&'Bia1'!E42 -> CÔNG TRÌNH: NHÀ BIỆT THỰ GXD
A7: ='Bia1'!D43&'Bia1'!E43 -> HẠNG MỤC: ĐỔI BẢNG MÃ FONT RẤT ĐƠN GIẢN TRONG DỰ TOÁN GXD
A10: TT | B10: Nội dung chi phí | C10: Giá trị đề nghị | D10: Giá trị thẩm tra | E10: Tăng, giảm
A11: [1] | B11: [2] | C11: [3] | D11: [4] | E11: [5]
A12: 1 | B12: Chi phí xây dựng (GXD) | D12: ='Tong hop kinh phi'!G7 -> 109,606,069 | E12: =D12-C12 -> 109,606,069
A13: 2 | B13: Chi phí thiết bị (GTB) | D13: ='Tong hop kinh phi'!G10 -> 0 | E13: =D13-C13 -> 0
B14: Chi phí bồi thường, hỗ trợ và tái định cư | D14: ='Tong hop kinh phi'!G11 -> 0 | E14: =D14-C14 -> 0
A15: 3 | B15: Chi phí quản lý dự án (GQLDA) | D15: ='Tong hop kinh phi'!G12 -> 2,514,961 | E15: 2,514,961
A16: 4 | B16: Chi phí tư vấn đầu tư xây dựng (GTV) | D16: ='Tong hop kinh phi'!G13 -> 9,294,000 | E16: 9,294,000
A17: 5 | B17: Chi phí khác (GK) | D17: ='Tong hop kinh phi'!G14 -> 1,000,000 | E17: 1,000,000
A18: 6 | B18: Chi phí dự phòng (GDP) | D18: ='Tong hop kinh phi'!G15 -> 6,120,752 | E18: 6,120,752
B19: Tổng cộng | C19: =SUM(C12:C18) -> 0 | D19: =SUM(D12:D18) -> 128,535,782 | E19: =SUM(E12:E18) -> 128,535,782

Sheet Tong hop kinh phi
A1: BẢNG TỔNG HỢP DỰ TOÁN CÔNG TRÌNH
A2: ='Bia1'!D42&'Bia1'!E42 -> CÔNG TRÌNH: NHÀ BIỆT THỰ GXD
A3: ='Bia1'!D43&'Bia1'!E43 -> HẠNG MỤC: ĐỔI BẢNG MÃ FONT RẤT ĐƠN GIẢN TRONG DỰ TOÁN GXD
G4: ĐVT: đồng | I4: Loại công trình:
A5: STT | B5: NỘI DUNG CHI PHÍ | C5: ĐMTL | D5: CÁCH TÍNH | E5: CHI PHÍ TRƯỚC THUẾ | F5: THUẾ GTGT | G5: CHI PHÍ SAU THUẾ | I5: Số bước thiết kế:
I6: Cấp công trình:
A7: 1 | B7: Chi phí xây dựng (GXD) | D7: (1.1)+(1.2) | E7: =E8+E9 -> 99,641,881 | F7: =F8+F9 -> 9,964,188 | G7: =G8+G9 -> 109,606,069 | I7: Loại báo cáo: | J7: 1
A8: 1.1 | B8: Chi phí xây dựng | D8: bảng tính | E8: ='TH Hang muc'!C12 -> 98,655,328 | F8: ='TH Hang muc'!D12 -> 9,865,533 | G8: ='TH Hang muc'!E12 -> 108,520,860 | I8: Lưu ý: Ở dưới có bảng tính chi phí tư vấn và chi phí khác.
A9: 1.2 | B9: Chi phí nhà tạm tại hiện trường để ở và điều hành thi công | D9: bảng tính | E9: =G9/1.1 -> 986,553 | F9: =G9-E9 -> 98,655 | G9: ='TH Hang muc'!F12 -> 1,085,209
A10: 2 | B10: Chi phí thiết bị (GTB) | D10: bảng tính | E10: ='TH CP thiet bi'!D13 -> 0 | F10: ='TH CP thiet bi'!E13 -> 0 | G10: ='TH CP thiet bi'!F13 -> 0
B11: Chi phí bồi thường, hỗ trợ và tái định cư | D11: bảng tính
A12: 3 | B12: Chi phí quản lý dự án (GQLDA) | C12: ='QD957'!H12/100 -> 2.524% | D12: ĐMTL*(GXD+GTB) | E12: =C12*(E7+E10) -> 2,514,961 | G12: =E12 -> 2,514,961
A13: 4 | B13: Chi phí tư vấn đầu tư xây dựng (GTV) | D13: bảng tính | E13: ='CP tu van'!E44 -> 8,449,000 | F13: ='CP tu van'!F44 -> 845,000 | G13: ='CP tu van'!G44 -> 9,294,000
A14: 5 | B14: Chi phí khác (GK) | D14: bảng tính | E14: ='Cp khac'!E25 -> 1,000,000 | F14: ='Cp khac'!F25 -> 0 | G14: ='Cp khac'!G25 -> 1,000,000
A15: 6 | B15: Chi phí dự phòng (GDP) | D15: GDP1 + GDP2 | E15: =G15/1.1 -> 5,564,320 | F15: =G15-E15 -> 556,432 | G15: ='CP Du phong'!D45 -> 6,120,752
B16: Tổng cộng: | D16: (1)+(2)+(3)+(4)+(5)+(6) | E16: =E7+E10+E11+E12+E13+E14+E15 -> 117,170,162 | F16: =F7+F10+F11+F12+F13+F14+F15 -> 11,365,620 | G16: =G7+G10+G11+G12+G13+G14+G15 -> 128,535,782
B17: LÀM TRÒN (GXDCT): | E17: =ROUND(E16,-3) -> 117,170,000 | F17: =ROUND(F16,-3) -> 11,366,000 | G17: =E17+F17 -> 128,536,000
B19: NGƯỜI LẬP | E19: NGƯỜI CHỦ TRÌ
E20: Chứng chỉ KS định giá XD hạng …, số …

Sheet TH Hang muc
A1: TỔNG HỢP DỰ TOÁN CHI PHÍ XÂY DỰNG CÁC HẠNG MỤC
A2: ='Bia1'!D42&'Bia1'!E42 -> CÔNG TRÌNH: NHÀ BIỆT THỰ GXD
A3: ='Bia1'!D43&'Bia1'!E43 -> HẠNG MỤC: ĐỔI BẢNG MÃ FONT RẤT ĐƠN GIẢN TRONG DỰ TOÁN GXD
H4: ĐVT: đồng
A5: STT | B5: HẠNG MỤC | C5: GIÁ TRỊ XÂY DỰNG TRƯỚC THUẾ | D5: THUẾ GTGT | E5: GIÁ TRỊ XÂY DỰNG SAU THUẾ | F5: CHI PHÍ XÂY DỰNG NHÀ TẠM | G5: TỔNG CỘNG | H5: KÝ HIỆU
B6: =Ts!B6 -> ĐỔI BẢNG MÃ FONT RẤT ĐƠN GIẢN TRONG DỰ TOÁN GXD | C6: ='CP xay dung'!D21 -> 98,655,328 | D6: ='CP xay dung'!D22 -> 9,865,533 | E6: ='CP xay dung'!D23 -> 108,520,860 | F6: ='CP xay dung'!D24 -> 1,085,209 | G6: ='CP xay dung'!D25 -> 109,606,069
G7: =SUM(C7:F7) -> 0
G8: 0
G9: 0
G10: 0
G11: 0
B12: TỔNG CỘNG | C12: =SUM(C6:C11) -> 98,655,328 | D12: =SUM(D6:D11) -> 9,865,533 | E12: 108,520,860 | F12: 1,085,209 | G12: 109,606,069 | H12: Gxd
B14: ="(Bằng chữ: "&vnd(G12)&")" -> (Bằng chữ: Một trăm linh chín triệu sáu trăm linh sáu nghìn không trăm sáu mươi chín đồng.)

Sheet CP xay dung
A1: BẢNG TỔNG HỢP DỰ TOÁN CHI PHÍ XÂY DỰNG
A2: ='Bia1'!D42&'Bia1'!E42 -> CÔNG TRÌNH: NHÀ BIỆT THỰ GXD
A3: ='Bia1'!D43&'Bia1'!E43 -> HẠNG MỤC: ĐỔI BẢNG MÃ FONT RẤT ĐƠN GIẢN TRONG DỰ TOÁN GXD
E4: ĐVT: đồng
A5: STT | B5: KHOẢN MỤC CHI PHÍ | C5: CÁCH TÍNH | D5: GIÁ TRỊ | E5: KÝ HIỆU | F5: HS1 | G5: HS2
B6: CHI PHÍ THEO ĐƠN GIÁ
B7: Chi phí vật liệu | D7: ='Dutoan XD'!L100+'Dutoan XD'!M100 -> 74,264,343 | E7: A
B8: Chênh lệch vật liệu | E8: CLVL
B9: Chi phí nhân công | D9: ='Dutoan XD'!N100 -> 10,015,057 | E9: B
B10: Chênh lệch nhân công | E10: CLNC
B11: Chi phí máy xây dựng | D11: ='Dutoan XD'!O100 -> 1,383,863 | E11: C
B12: Chênh lệch máy xây dựng | E12: CLM
A13: I | B13: CHI PHÍ TRỰC TIẾP
A14: 1 | B14: Chi phí vật liệu | C14: =IF('CP xay dung'!F14=0,"A+CLVL",IF('CP xay dung'!D8=0,"A*"&'CP xay dung'!F14,"(A + CLVL) * "&'CP xay dung'!F14)) -> A*1 | D14: =IF(F14=0,D7+D8,(D7+D8)*F14) -> 74,264,343 | E14: VL | F14: =ROUND(Ts!$C$12,3) -> 1
A15: 2 | B15: Chi phí nhân công | C15: =IF('CP xay dung'!F15=0,"B+CLNC",IF('CP xay dung'!$D$10<>0,IF('CP xay dung'!G15<>0,"B*"&'CP xay dung'!F15&"*"&'CP xay dung'!G15&"+CLNC","B*"&'CP xay dung'!F15&"+CLNC"),IF('CP xay dung'!G15<>0,"B*"&'CP xay dung'!F15&"*"&'CP xay dung'!G15,"B*"&'CP xay dung'!F15))) -> B*1 | D15: =IF(F15=0,D9+D10,IF(D10<>0,IF(G15<>0,D9*F15*G15+D10,D9*F15+D10),IF(G15<>0,D9*F15*G15,D9*F15))) -> 10,015,057 | E15: NC | F15: =ROUND(Ts!$C$13,3) -> 1
A16: 3 | B16: Chi phí máy thi công | C16: =IF('CP xay dung'!F16=0,"C+CLM",IF('CP xay dung'!$D$12<>0,IF('CP xay dung'!G16<>0,"C*"&'CP xay dung'!F16&"*"&'CP xay dung'!G16&"+CLM","C*"&'CP xay dung'!F16&"+CLM"),IF('CP xay dung'!G16<>0,"C*"&'CP xay dung'!F16&"*"&'CP xay dung'!G16,"C*"&'CP xay dung'!F16))) -> C*1 | D16: =IF($F$16=0,D11+D12,IF(G16<>0,D11*$F$16*G16+D12,D11*$F$16+D12)) -> 1,383,863 | E16: M | F16: =ROUND(Ts!$C$14,3) -> 1
A17: 4 | B17: Chi phí trực tiếp khác | C17: ="(VL+NC+M)*"&F17&"%" -> (VL+NC+M)*2,5% | D17: =(D14+D15+D16)*F17% -> 2,141,582 | E17: TT | F17: =Ts!$C$15 -> 2.5
B18: Chi phí trực tiếp | C18: VL+NC+M+TT | D18: =SUM(D14:D17) -> 87,804,844 | E18: T
A19: II | B19: CHI PHÍ CHUNG | C19: ="T * "&F19&"%" -> T * 6,5% | D19: =D18*F19% -> 5,707,315 | E19: C | F19: =Ts!$C$16 -> 6.5
A20: III | B20: THU NHẬP CHỊU THUẾ TÍNH TRƯỚC | C20: ="(T+C) * "&F20&"%" -> (T+C) * 5,5% | D20: =(D18+D19)*F20% -> 5,143,169 | E20: TL | F20: =Ts!$C$17 -> 5.5
B21: Chi phí xây dựng trước thuế | C21: T+C+TL | D21: =D18+D19+D20 -> 98,655,328 | E21: G
A22: IV | B22: THUẾ GIÁ TRỊ GIA TĂNG | C22: G*TGTGT-XD | D22: =D21*F22% -> 9,865,533 | E22: GTGT | F22: =Ts!$C$18 -> 10
B23: Chi phí xây dựng sau thuế | C23: G + GTGT | D23: =D21+D22 -> 108,520,860 | E23: GXD
A24: V | B24: CHI PHÍ XÂY DỰNG NHÀ TẠM TẠI HIỆN TRƯỜNG ĐỂ Ở VÀ ĐIỀU HÀNH THI CÔNG | C24: G*tỷ lệ*(1+TGTGT-XD) | D24: =D23*F24% -> 1,085,209 | E24: GXDNT | F24: =Ts!$C$19 -> 1
B25: TỔNG CỘNG | C25: GXD + GXDNT | D25: =D23+D24 -> 109,606,069
B26: LÀM TRÒN | D26: =ROUND(D25,-3) -> 109,606,000
B30: NGƯỜI LẬP | C30: NGƯỜI CHỦ TRÌ
C35: Chứng chỉ KS định giá XD hạng …, số …

Sheet Dutoan XD
A1: BẢNG DỰ TOÁN CHI PHÍ XÂY DỰNG
A2: ='Bia1'!D42&'Bia1'!E42 -> CÔNG TRÌNH: NHÀ BIỆT THỰ GXD
A3: ='Bia1'!D43&'Bia1'!E43 -> HẠNG MỤC: ĐỔI BẢNG MÃ FONT RẤT ĐƠN GIẢN TRONG DỰ TOÁN GXD
O4: ĐVT: đồng
A5: STT | B5: MÃ VỮA | C5: MÃ HIỆU ĐỊNH MỨC | D5: MÃ HIỆU ĐƠN GIÁ | E5: NỘI DUNG CÔNG VIỆC | F5: ĐƠN VỊ | G5: KHỐI LƯỢNG | H5: ĐƠN GIÁ | L5: THÀNH TIỀN | P5: SỐ BỘ PHẬN GIỐNG NHAU | Q5: KÍCH THƯỚC | T5: HỆ SỐ | U5: K.L MỘT BỘ PHẬN | V5: K.L TOÀN BỘ | W5: GHI CHÚ
H6: VẬT LIỆU | I6: VẬT LIỆU P | J6: NHÂN CÔNG | K6: MÁY | L6: VẬT LIỆU | M6: VẬT LIỆU P | N6: NHÂN CÔNG | O6: MÁY | Q6: DÀI | R6: RỘNG | S6: CAO (SÂU)
A7: [1] | B7: [1a] | C7: [1b] | D7: [2] | E7: [3] | F7: [4] | G7: [5] | H7: [6] | I7: [6'] | J7: [7] | K7: [8] | L7: [9]=[5]*[6] | M7: [9']=[5]*[6'] | N7: [10]=[5]*[7] | O7: [11]=[5]*[8] | P7: [5] | Q7: [6] | R7: [6'] | S7: [7] | T7: [8] | U7: [9] | V7: [10] | W7: [11]
E8: PhÇn ®iÖn
C9: BA.13302 | D9: BA.13302 | E9: L¾p ®Æt ®Ìn èng 1,2m - 2 bãng | F9: bộ | G9: 5.000 | H9: 162,400 | J9: 20,106 | L9: =G9*H9 -> 812,000 | M9: =G9*I9 -> 0 | N9: =G9*J9 -> 100,530 | O9: =G9*K9 -> 0
C10: BA.13301 | D10: BA.13301 | E10: L¾p ®Æt ®Ìn èng 1,2m - 1 bãng | F10: bộ | G10: 6.000 | H10: 91,800 | J10: 14,242 | L10: =G10*H10 -> 550,800 | M10: =G10*I10 -> 0 | N10: =G10*J10 -> 85,452 | O10: =G10*K10 -> 0
C11: BA.13605 | D11: BA.13605 | E11: L¾p ®Æt ®Ìn trang trÝ èp trÇn | F11: bộ | G11: 5.000 | H11: 77,250 | J11: 6,283 | L11: =G11*H11 -> 386,250 | M11: =G11*I11 -> 0 | N11: =G11*J11 -> 31,415 | O11: =G11*K11 -> 0
C12: BA.13503 | D12: BA.13503 | E12: L¾p ®Æt ®Ìn chïm trang trÝ phßng kh¸ch | F12: bộ | G12: 1.000 | H12: 900,450 | J12: 12,566 | L12: =G12*H12 -> 900,450 | M12: =G12*I12 -> 0 | N12: =G12*J12 -> 12,566 | O12: =G12*K12 -> 0
C13: BA.13602 | D13: BA.13602 | E13: L¾p ®Æt ®Ìn tranh 11W | F13: bộ | G13: 3.000 | H13: 257,500 | J13: 8,377 | L13: =G13*H13 -> 772,500 | M13: =G13*I13 -> 0 | N13: =G13*J13 -> 25,131 | O13: =G13*K13 -> 0
D14: TT | E14: §Ìn c©y trang trÝ | F14: bé | G14: 2.000 | H14: 1,000,000 | I14: 0 | J14: 0 | K14: 0 | L14: =G14*H14 -> 2,000,000 | M14: =G14*I14 -> 0 | N14: =G14*J14 -> 0 | O14: =G14*K14 -> 0
C15: BA.13601 | D15: BA.13601 | E15: L¾p ®Æt ®Ìn t­êng kiÓu ¸nh s¸ng h¾t | F15: bộ | G15: 9.000 | H15: 103,000 | J15: 7,540 | L15: =G15*H15 -> 927,000 | M15: =G15*I15 -> 0 | N15: =G15*J15 -> 67,860 | O15: =G15*K15 -> 0
C16: BA.13604 | D16: BA.13604 | E16: L¾p ®Æt ®Ìn trang trÝ næi (®Ìn treo th¶ lÖch t©m). | F16: bộ | G16: 1.000 | H16: 51,500 | J16: 5,026 | L16: =G16*H16 -> 51,500 | M16: =G16*I16 -> 0 | N16: =G16*J16 -> 5,026 | O16: =G16*K16 -> 0
C17: BA.13605 | D17: BA.13605 | E17: L¾p ®Æt ®Ìn trang trÝ ©m trÇn (¸nh s¸ng mê). | F17: bộ | G17: 1.000 | H17: 77,250 | J17: 6,283 | L17: =G17*H17 -> 77,250 | M17: =G17*I17 -> 0 | N17: =G17*J17 -> 6,283 | O17: =G17*K17 -> 0
C18: BA.13605 | D18: BA.13605 | E18: L¾p ®Æt ®Ìn trang trÝ ©m trÇn (¸nh s¸ng tr¾ng). | F18: bộ | G18: 5.000 | H18: 77,250 | J18: 6,283 | L18: =G18*H18 -> 386,250 | M18: =G18*I18 -> 0 | N18: =G18*J18 -> 31,415 | O18: =G18*K18 -> 0
C19: BA.13604 | D19: BA.13604 | E19: L¾p ®Æt ®Ìn trang trÝ næi (®Ìn èp cÇu thang) | F19: bộ | G19: 2.000 | H19: 51,500 | J19: 5,026 | L19: =G19*H19 -> 103,000 | M19: =G19*I19 -> 0 | N19: =G19*J19 -> 10,052 | O19: =G19*K19 -> 0
D20: TT | E20: §Ìn bµn trang trÝ. | F20: bé | G20: 5.000 | H20: 250,000 | I20: 0 | J20: 0 | K20: 0 | L20: =G20*H20 -> 1,250,000 | M20: =G20*I20 -> 0 | N20: =G20*J20 -> 0 | O20: =G20*K20 -> 0
D21: TT | E21: Bé hót mïi ë bÕp. | F21: bé | G21: 2.000 | H21: 200,000 | I21: 0 | J21: 0 | K21: 0 | L21: =G21*H21 -> 400,000 | M21: =G21*I21 -> 0 | N21: =G21*J21 -> 0 | O21: =G21*K21 -> 0
C22: BA.13604 | D22: BA.13604 | E22: L¾p ®Æt ®Ìn trang trÝ næi (®Ìn cæng). | F22: bộ | G22: 4.000 | H22: 51,500 | J22: 5,026 | L22: =G22*H22 -> 206,000 | M22: =G22*I22 -> 0 | N22: =G22*J22 -> 20,104 | O22: =G22*K22 -> 0
C23: BA.13102 | D23: BA.13102 | E23: L¾p ®Æt ®Ìn s¸t trÇn cã chôp (èp trÇn hiªn 60 w) | F23: bộ | G23: 4.000 | H23: 60,900 | J23: 6,283 | L23: =G23*H23 -> 243,600 | M23: =G23*I23 -> 0 | N23: =G23*J23 -> 25,132 | O23: =G23*K23 -> 0
C24: BA.13604 | D24: BA.13604 | E24: L¾p ®Æt ®Ìn trang trÝ næi (®Ìn n÷ hoµng). | F24: bộ | G24: 4.000 | H24: 51,500 | J24: 5,026 | L24: =G24*H24 -> 206,000 | M24: =G24*I24 -> 0 | N24: =G24*J24 -> 20,104 | O24: =G24*K24 -> 0
C25: BA.18304 | D25: BA.18304 | E25: L¾p ®Æt c«ng t¾c (c«ng t¸c 2 chiÒu). | F25: cái | G25: 4.000 | H25: 35,175 | J25: 5,864 | L25: =G25*H25 -> 140,700 | M25: =G25*I25 -> 0 | N25: =G25*J25 -> 23,456 | O25: =G25*K25 -> 0
C26: BA.18101 | D26: BA.18101 | E26: L¾p ®Æt c«ng t¾c 1 h¹t (chengli) | F26: cái | G26: 9.000 | H26: 5,025 | J26: 4,189 | L26: =G26*H26 -> 45,225 | M26: =G26*I26 -> 0 | N26: =G26*J26 -> 37,701 | O26: =G26*K26 -> 0
C27: BA.18102 | D27: BA.18102 | E27: L¾p ®Æt c«ng t¾c 2 h¹t (chengli) | F27: cái | G27: 7.000 | H27: 10,050 | J27: 4,608 | L27: =G27*H27 -> 70,350 | M27: =G27*I27 -> 0 | N27: =G27*J27 -> 32,256 | O27: =G27*K27 -> 0
C28: BA.18103 | D28: BA.18103 | E28: L¾p ®Æt c«ng t¾c 3 h¹t (chengli) | F28: cái | G28: 1.000 | H28: 15,075 | J28: 5,026 | L28: =G28*H28 -> 15,075 | M28: =G28*I28 -> 0 | N28: =G28*J28 -> 5,026 | O28: =G28*K28 -> 0
C29: BA.18104 | D29: BA.18104 | E29: L¾p ®Æt c«ng t¾c 4 h¹t (chengli) | F29: cái | G29: 5.000 | H29: 20,100 | J29: 5,445 | L29: =G29*H29 -> 100,500 | M29: =G29*I29 -> 0 | N29: =G29*J29 -> 27,225 | O29: =G29*K29 -> 0
C30: BA.18302 | D30: BA.18302 | E30: L¾p ®Æt c«ng t¾c lo¹i æ c¾m ®«i 1 pha 3 chÊu -©m t­êng. | F30: cái | G30: 31.000 | H30: 45,225 | J30: 4,608 | L30: =G30*H30 -> 1,401,975 | M30: =G30*I30 -> 0 | N30: =G30*J30 -> 142,848 | O30: =G30*K30 -> 0
C31: BA.15413 | D31: BA.15413 | E31: L¾p ®Æt hép nèi, hép ph©n d©y, hép c«ng t¾c, hép cÇu ch×, hép automat kÝch th­íc 360x250x99. | F31: hộp | G31: 3.000 | H31: 7,350 | J31: 27,227 | K31: 818 | L31: =G31*H31 -> 22,050 | M31: =G31*I31 -> 0 | N31: =G31*J31 -> 81,681 | O31: =G31*K31 -> 2,454
D32: TT | E32: §iÒu hoµ nhiÖt ®é 9000BTU | F32: c¸i | G32: 3.000 | H32: 6,650,000 | I32: 0 | J32: 0 | K32: 0 | L32: =G32*H32 -> 19,950,000 | M32: =G32*I32 -> 0 | N32: =G32*J32 -> 0 | O32: =G32*K32 -> 0
C33: BB.42101 | D33: BB.42101 | E33: L¾p ®Æt thïng ®un n­íc nãng | F33: bộ | G33: 3.000 | H33: 1,238,124 | J33: 91,314 | K33: 4,091 | L33: =G33*H33 -> 3,714,372 | M33: =G33*I33 -> 0 | N33: =G33*J33 -> 273,942 | O33: =G33*K33 -> 12,273
C34: BA.19201 | D34: BA.19201 | E34: L¾p ®Æt aptomat 1P-16A (Vanlock) | F34: cái | G34: 2.000 | H34: 17,850 | J34: 7,959 | L34: =G34*H34 -> 35,700 | M34: =G34*I34 -> 0 | N34: =G34*J34 -> 15,918 | O34: =G34*K34 -> 0
C35: BA.19203 | D35: BA.19203 | E35: L¾p ®Æt aptomat 2P-80A (Hager). | F35: cái | G35: 1.000 | H35: 132,600 | J35: 15,917 | L35: =G35*H35 -> 132,600 | M35: =G35*I35 -> 0 | N35: =G35*J35 -> 15,917 | O35: =G35*K35 -> 0
C36: BA.19202 | D36: BA.19202 | E36: L¾p ®Æt aptomat 2P-50A (Vanlock) | F36: cái | G36: 2.000 | H36: 61,800 | J36: 10,472 | L36: =G36*H36 -> 123,600 | M36: =G36*I36 -> 0 | N36: =G36*J36 -> 20,944 | O36: =G36*K36 -> 0
C37: BA.19201 | D37: BA.19201 | E37: L¾p ®Æt aptomat 2P-25A (Vanlock) | F37: cái | G37: 2.000 | H37: 17,850 | J37: 7,959 | L37: =G37*H37 -> 35,700 | M37: =G37*I37 -> 0 | N37: =G37*J37 -> 15,918 | O37: =G37*K37 -> 0
C38: BA.19201 | D38: BA.19201 | E38: L¾p ®Æt aptomat 2P-20A (Vanlock). | F38: cái | G38: 8.000 | H38: 17,850 | J38: 7,959 | L38: =G38*H38 -> 142,800 | M38: =G38*I38 -> 0 | N38: =G38*J38 -> 63,672 | O38: =G38*K38 -> 0
C39: BA.19201 | D39: BA.19201 | E39: L¾p ®Æt aptomat 2P-16A (Vanlock). | F39: cái | G39: 4.000 | H39: 17,850 | J39: 7,959 | L39: =G39*H39 -> 71,400 | M39: =G39*I39 -> 0 | N39: =G39*J39 -> 31,836 | O39: =G39*K39 -> 0
C40: BA.16210 | D40: BA.16210 | E40: L¾p ®Æt d©y dÉn 2 ruét 2x16mm2 CU/XLPE/PVC | F40: m | G40: 20.000 | H40: 21,852 | J40: 2,178 | L40: =G40*H40 -> 437,040 | M40: =G40*I40 -> 0 | N40: =G40*J40 -> 43,560 | O40: =G40*K40 -> 0
C41: BA.16209 | D41: BA.16209 | E41: L¾p ®Æt d©y dÉn 2 ruét 2x10mm2 | F41: m | G41: 7.000 | H41: 15,812 | J41: 1,885 | L41: =G41*H41 -> 110,684 | M41: =G41*I41 -> 0 | N41: =G41*J41 -> 13,195 | O41: =G41*K41 -> 0
C42: BA.16206 | D42: BA.16206 | E42: L¾p ®Æt d©y dÉn 2 ruét 2x4mm2 | F42: m | G42: 15.000 | H42: 5,673 | J42: 1,508 | L42: =G42*H42 -> 85,095 | M42: =G42*I42 -> 0 | N42: =G42*J42 -> 22,620 | O42: =G42*K42 -> 0
C43: BA.16205 | D43: BA.16205 | E43: L¾p ®Æt d©y dÉn 2 ruét 2x2,5mm2 | F43: m | G43: 235.000 | H43: 3,887 | J43: 1,466 | L43: =G43*H43 -> 913,445 | M43: =G43*I43 -> 0 | N43: =G43*J43 -> 344,510 | O43: =G43*K43 -> 0
C44: BA.16204 | D44: BA.16204 | E44: L¾p ®Æt d©y dÉn 2 ruét 2x1,5mm2 | F44: m | G44: 441.000 | H44: 2,763 | J44: 1,340 | L44: =G44*H44 -> 1,218,483 | M44: =G44*I44 -> 0 | N44: =G44*J44 -> 590,940 | O44: =G44*K44 -> 0
C45: BA.16113 | D45: BA.16113 | E45: L¾p ®Æt d©y ®¬n 1x10mm2 | F45: m | G45: 5.000 | H45: 6,482 | J45: 1,592 | L45: =G45*H45 -> 32,410 | M45: =G45*I45 -> 0 | N45: =G45*J45 -> 7,960 | O45: =G45*K45 -> 0
C46: BA.16111 | D46: BA.16111 | E46: L¾p ®Æt d©y ®¬n 1x4mm2 | F46: m | G46: 15.000 | H46: 2,679 | J46: 1,466 | L46: =G46*H46 -> 40,185 | M46: =G46*I46 -> 0 | N46: =G46*J46 -> 21,990 | O46: =G46*K46 -> 0
C47: BA.16107 | D47: BA.16107 | E47: L¾p ®Æt d©y ®¬n 1x1,5mm2 | F47: m | G47: 110.000 | H47: 1,303 | J47: 1,257 | L47: =G47*H47 -> 143,330 | M47: =G47*I47 -> 0 | N47: =G47*J47 -> 138,270 | O47: =G47*K47 -> 0
C48: BA.14301 | D48: BA.14301 | E48: L¾p næi èng nhùa b¶o hé d©y dÉn ®k 16mm | F48: m | G48: 400.000 | H48: 1,071 | J48: 2,094 | K48: 409 | L48: =G48*H48 -> 428,400 | M48: =G48*I48 -> 0 | N48: =G48*J48 -> 837,600 | O48: =G48*K48 -> 163,600
C49: BA.14302 | D49: BA.14302 | E49: L¾p næi èng nhùa b¶o hé d©y dÉn ®k 21mm | F49: m | G49: 220.000 | H49: 1,607 | J49: 2,513 | K49: 409 | L49: =G49*H49 -> 353,540 | M49: =G49*I49 -> 0 | N49: =G49*J49 -> 552,860 | O49: =G49*K49 -> 89,980
C50: BA.14303 | D50: BA.14303 | E50: L¾p næi èng nhùa b¶o hé d©y dÉn ®k 32mm | F50: m | G50: 20.000 | H50: 2,142 | J50: 2,597 | K50: 491 | L50: =G50*H50 -> 42,840 | M50: =G50*I50 -> 0 | N50: =G50*J50 -> 51,940 | O50: =G50*K50 -> 9,820
C51: BA.14303 | D51: BA.14303 | E51: L¾p næi èng nhùa b¶o hé d©y dÉn ®k 34mm | F51: m | G51: 16.000 | H51: 2,142 | J51: 2,597 | K51: 491 | L51: =G51*H51 -> 34,272 | M51: =G51*I51 -> 0 | N51: =G51*J51 -> 41,552 | O51: =G51*K51 -> 7,856
C52: BA.15406 | D52: BA.15406 | E52: L¾p ®Æt hép nèi, hép ph©n d©y, hép c«ng t¾c, hép cÇu ch×, hép automat kÝch th­íc <= 100x100mm | F52: hộp | G52: 5.000 | H52: 2,100 | J52: 17,593 | K52: 818 | L52: =G52*H52 -> 10,500 | M52: =G52*I52 -> 0 | N52: =G52*J52 -> 87,965 | O52: =G52*K52 -> 4,090
C53: BA.20101 | D53: BA.20101 | E53: Gia c«ng vµ ®ãng cäc chèng sÐt | F53: cọc | G53: 4.000 | H53: 26,250 | J53: 26,389 | L53: =G53*H53 -> 105,000 | M53: =G53*I53 -> 0 | N53: =G53*J53 -> 105,556 | O53: =G53*K53 -> 0
D54: TT | E54: Cäc chèng sÐt, 2,5m/cäc | F54: kg | G54: 57.200 | H54: 9,000 | I54: 0 | J54: 0 | K54: 0 | L54: =G54*H54 -> 514,800 | M54: =G54*I54 -> 0 | N54: =G54*J54 -> 0 | O54: =G54*K54 -> 0
C55: BA.20502 | D55: BA.20502 | E55: L¾p ®Æt kim thu sÐt chiÒu dµi 1m | F55: cái | G55: 4.000 | H55: 34,430 | J55: 41,049 | K55: 14,907 | L55: =G55*H55 -> 137,720 | M55: =G55*I55 -> 0 | N55: =G55*J55 -> 164,196 | O55: =G55*K55 -> 59,628
C56: BA.20402 | D56: BA.20402 | E56: Gia c«ng kim thu sÐt chiÒu dµi 1m | F56: cái | G56: 4.000 | H56: 25,823 | J56: 12,566 | K56: 2,120 | L56: =G56*H56 -> 103,292 | M56: =G56*I56 -> 0 | N56: =G56*J56 -> 50,264 | O56: =G56*K56 -> 8,480
D57: TT | E57: BËt liªn kÕt. | F57: bé | G57: 58.000 | H57: 1,000 | I57: 0 | J57: 0 | K57: 0 | L57: =G57*H57 -> 58,000 | M57: =G57*I57 -> 0 | N57: =G57*J57 -> 0 | O57: =G57*K57 -> 0
D58: TT | E58: D©y tho¸t sÐt. | F58: m | G58: 11.000 | H58: 6,160 | I58: 0 | J58: 0 | K58: 0 | L58: =G58*H58 -> 67,760 | M58: =G58*I58 -> 0 | N58: =G58*J58 -> 0 | O58: =G58*K58 -> 0
E59: PhÇn n­íc
C60: BB.14302 | D60: BB.14302 | E60: L¾p ®Æt èng thÐp tr¸ng kÏm ®­êng kÝnh 32mm b»ng m¨ng s«ng, ®o¹n èng dµi 8m | F60: 100m | G60: 0.460 | H60: 2,466,809 | J60: 1,071,051 | L60: =G60*H60 -> 1,134,732 | M60: =G60*I60 -> 0 | N60: =G60*J60 -> 492,683 | O60: =G60*K60 -> 0
C61: BB.14301 | D61: BB.14301 | E61: L¾p ®Æt èng thÐp tr¸ng kÏm ®­êng kÝnh 25mm b»ng m¨ng s«ng, ®o¹n èng dµi 8m | F61: 100m | G61: 0.320 | H61: 1,778,245 | J61: 911,461 | L61: =G61*H61 -> 569,038 | M61: =G61*I61 -> 0 | N61: =G61*J61 -> 291,668 | O61: =G61*K61 -> 0
C62: BB.14202 | D62: BB.14202 | E62: L¾p ®Æt èng thÐp kh«ng rØ ®­êng kÝnh 20mm b»ng ph­¬ng ph¸p hµn, ®o¹n èng dµi 6m | F62: 100m | G62: 0.400 | H62: 1,712,271 | J62: 977,224 | K62: 6,591 | L62: =G62*H62 -> 684,908 | M62: =G62*I62 -> 0 | N62: =G62*J62 -> 390,890 | O62: =G62*K62 -> 2,636
C63: BB.14201 | D63: BB.14201 | E63: L¾p ®Æt èng thÐp kh«ng rØ ®­êng kÝnh 15mm b»ng ph­¬ng ph¸p hµn, ®o¹n èng dµi 6m | F63: 100m | G63: 0.350 | H63: 1,510,351 | J63: 733,023 | K63: 4,394 | L63: =G63*H63 -> 528,623 | M63: =G63*I63 -> 0 | N63: =G63*J63 -> 256,558 | O63: =G63*K63 -> 1,538
C64: BB.24104a | D64: BB.24144 | E64: L¾p ®Æt cót thÐp ®­êng kÝnh 32mm b»ng ph­¬ng ph¸p hµn | F64: cái | G64: 10.000 | H64: 10,021 | J64: 7,121 | K64: 3,296 | L64: =G64*H64 -> 100,210 | M64: =G64*I64 -> 0 | N64: =G64*J64 -> 71,210 | O64: =G64*K64 -> 32,960
C65: BB.24103a | D65: BB.24143 | E65: L¾p ®Æt cót thÐp ®­êng kÝnh 25mm b»ng ph­¬ng ph¸p hµn | F65: cái | G65: 20.000 | H65: 4,390 | J65: 6,283 | K65: 1,977 | L65: =G65*H65 -> 87,800 | M65: =G65*I65 -> 0 | N65: =G65*J65 -> 125,660 | O65: =G65*K65 -> 39,540
C66: BB.24102a | D66: BB.24142 | E66: L¾p ®Æt cót thÐp ®­êng kÝnh 20mm b»ng ph­¬ng ph¸p hµn | F66: cái | G66: 32.000 | H66: 3,825 | J66: 5,026 | K66: 1,648 | L66: =G66*H66 -> 122,400 | M66: =G66*I66 -> 0 | N66: =G66*J66 -> 160,832 | O66: =G66*K66 -> 52,736
C67: BB.24101a | D67: BB.24141 | E67: L¾p ®Æt cót thÐp ®­êng kÝnh 15mm b»ng ph­¬ng ph¸p hµn | F67: cái | G67: 38.000 | H67: 3,260 | J67: 3,770 | K67: 1,318 | L67: =G67*H67 -> 123,880 | M67: =G67*I67 -> 0 | N67: =G67*J67 -> 143,260 | O67: =G67*K67 -> 50,084
C68: BB.36101 | D68: BB.36101 | E68: L¾p ®Æt van mÆt bÝch ®­êng kÝnh 40mm | F68: cái | G68: 38.000 | H68: 88,709 | J68: 15,754 | L68: =G68*H68 -> 3,370,942 | M68: =G68*I68 -> 0 | N68: =G68*J68 -> 598,652 | O68: =G68*K68 -> 0
C69: BB.36301 | D69: BB.36301 | E69: L¾p ®Æt van phao ®iÒu chØnh tèc ®é läc ®­êng kÝnh 25mm | F69: cái | G69: 2.000 | H69: 3,059,106 | J69: 65,265 | L69: =G69*H69 -> 6,118,212 | M69: =G69*I69 -> 0 | N69: =G69*J69 -> 130,530 | O69: =G69*K69 -> 0
C70: BB.36501 | D70: BB.36501 | E70: L¾p ®Æt van ®iÖn ®­êng kÝnh 25mm | F70: cái | G70: 2.000 | H70: 155,016 | J70: 128,112 | K70: 13,501 | L70: =G70*H70 -> 310,032 | M70: =G70*I70 -> 0 | N70: =G70*J70 -> 256,224 | O70: =G70*K70 -> 27,002
C71: BB.24104 | D71: BB.24104 | E71: L¾p ®Æt c«n thÐp ®­êng kÝnh 32mm b»ng ph­¬ng ph¸p hµn | F71: cái | G71: 4.000 | H71: 4,020 | J71: 7,121 | K71: 3,296 | L71: =G71*H71 -> 16,080 | M71: =G71*I71 -> 0 | N71: =G71*J71 -> 28,484 | O71: =G71*K71 -> 13,184
C72: BB.24103 | D72: BB.24103 | E72: L¾p ®Æt c«n thÐp ®­êng kÝnh 25mm b»ng ph­¬ng ph¸p hµn | F72: cái | G72: 2.000 | H72: 3,390 | J72: 6,283 | K72: 1,977 | L72: =G72*H72 -> 6,780 | M72: =G72*I72 -> 0 | N72: =G72*J72 -> 12,566 | O72: =G72*K72 -> 3,954
C73: BB.19309 | D73: BB.19309 | E73: L¾p ®Æt èng nhùa PVC ®k 110mm b»ng ph­¬ng ph¸p hµn, ®o¹n èng dµi 6m | F73: 100m | G73: 0.350 | H73: 3,575,758 | J73: 1,076,496 | K73: 94,324 | L73: =G73*H73 -> 1,251,515 | M73: =G73*I73 -> 0 | N73: =G73*J73 -> 376,774 | O73: =G73*K73 -> 33,013
C74: BB.19309 | D74: BB.19309 | E74: L¾p ®Æt èng nhùa PVC ®k 90mm b»ng ph­¬ng ph¸p hµn, ®o¹n èng dµi 6m | F74: 100m | G74: 0.550 | H74: 3,575,758 | J74: 1,076,496 | K74: 94,324 | L74: =G74*H74 -> 1,966,667 | M74: =G74*I74 -> 0 | N74: =G74*J74 -> 592,073 | O74: =G74*K74 -> 51,878
C75: BB.19307 | D75: BB.19307 | E75: L¾p ®Æt èng nhùa PVC ®k 76mm b»ng ph­¬ng ph¸p hµn, ®o¹n èng dµi 6m | F75: 100m | G75: 0.350 | H75: 1,955,556 | J75: 844,442 | K75: 65,051 | L75: =G75*H75 -> 684,445 | M75: =G75*I75 -> 0 | N75: =G75*J75 -> 295,555 | O75: =G75*K75 -> 22,768
C76: BB.19306 | D76: BB.19306 | E76: L¾p ®Æt èng nhùa PVC ®k 60mm b»ng ph­¬ng ph¸p hµn, ®o¹n èng dµi 6m | F76: 100m | G76: 0.180 | H76: 1,545,455 | J76: 831,876 | K76: 58,546 | L76: =G76*H76 -> 278,182 | M76: =G76*I76 -> 0 | N76: =G76*J76 -> 149,738 | O76: =G76*K76 -> 10,538
C77: BB.19304 | D77: BB.19304 | E77: L¾p ®Æt èng nhùa PVC ®k 42mm b»ng ph­¬ng ph¸p hµn, ®o¹n èng dµi 6m | F77: 100m | G77: 0.420 | H77: 818,182 | J77: 729,672 | K77: 40,657 | L77: =G77*H77 -> 343,636 | M77: =G77*I77 -> 0 | N77: =G77*J77 -> 306,462 | O77: =G77*K77 -> 17,076
C78: BB.29229 | D78: BB.29229 | E78: L¾p ®Æt cót nhùa PVC ®k 110mm b»ng ph­¬ng ph¸p hµn | F78: cái | G78: 4.000 | H78: 38,038 | J78: 6,283 | K78: 11,384 | L78: =G78*H78 -> 152,152 | M78: =G78*I78 -> 0 | N78: =G78*J78 -> 25,132 | O78: =G78*K78 -> 45,536
C79: BB.29229 | D79: BB.29229 | E79: L¾p ®Æt cót nhùa PVC ®k 90 mm b»ng ph­¬ng ph¸p hµn | F79: cái | G79: 18.000 | H79: 38,038 | J79: 6,283 | K79: 11,384 | L79: =G79*H79 -> 684,684 | M79: =G79*I79 -> 0 | N79: =G79*J79 -> 113,094 | O79: =G79*K79 -> 204,912
C80: BB.29226 | D80: BB.29226 | E80: L¾p ®Æt cót nhùa PVC ®k 60mm b»ng ph­¬ng ph¸p hµn | F80: cái | G80: 26.000 | H80: 6,006 | J80: 4,608 | K80: 6,505 | L80: =G80*H80 -> 156,156 | M80: =G80*I80 -> 0 | N80: =G80*J80 -> 119,808 | O80: =G80*K80 -> 169,130
C81: BB.29224 | D81: BB.29224 | E81: L¾p ®Æt cót nhùa PVC ®k 42mm b»ng ph­¬ng ph¸p hµn | F81: cái | G81: 10.000 | H81: 4,004 | J81: 3,351 | K81: 4,879 | L81: =G81*H81 -> 40,040 | M81: =G81*I81 -> 0 | N81: =G81*J81 -> 33,510 | O81: =G81*K81 -> 48,790
C82: BB.29229 | D82: BB.29229 | E82: L¾p ®Æt chÕch nhùa PVC ®k 110mm b»ng ph­¬ng ph¸p hµn | F82: cái | G82: 2.000 | H82: 38,038 | J82: 6,283 | K82: 11,384 | L82: =G82*H82 -> 76,076 | M82: =G82*I82 -> 0 | N82: =G82*J82 -> 12,566 | O82: =G82*K82 -> 22,768
C83: BB.29229 | D83: BB.29229 | E83: L¾p ®Æt cót nhùa PVC ®k 90 mm b»ng ph­¬ng ph¸p hµn | F83: cái | G83: 8.000 | H83: 38,038 | J83: 6,283 | K83: 11,384 | L83: =G83*H83 -> 304,304 | M83: =G83*I83 -> 0 | N83: =G83*J83 -> 50,264 | O83: =G83*K83 -> 91,072
C84: BB.29209 | D84: BB.29209 | E84: L¾p ®Æt c«n nhùa PVC ®k 90mm b»ng ph­¬ng ph¸p hµn | F84: cái | G84: 4.000 | H84: 38,038 | J84: 6,283 | K84: 11,384 | L84: =G84*H84 -> 152,152 | M84: =G84*I84 -> 0 | N84: =G84*J84 -> 25,132 | O84: =G84*K84 -> 45,536
C85: BB.29206 | D85: BB.29206 | E85: L¾p ®Æt c«n nhùa PVC ®k 60mm b»ng ph­¬ng ph¸p hµn | F85: cái | G85: 6.000 | H85: 6,006 | J85: 4,608 | K85: 6,505 | L85: =G85*H85 -> 36,036 | M85: =G85*I85 -> 0 | N85: =G85*J85 -> 27,648 | O85: =G85*K85 -> 39,030
C86: BB.42201 | D86: BB.42201 | E86: L¾p ®Æt phÔu thu D50 | F86: cái | G86: 2.000 | H86: 15,002 | J86: 6,702 | L86: =G86*H86 -> 30,004 | M86: =G86*I86 -> 0 | N86: =G86*J86 -> 13,404 | O86: =G86*K86 -> 0
D87: TT | E87: Tho¸t sµn D76 | F87: c¸i | G87: 3.000 | H87: 15,000 | I87: 0 | J87: 0 | K87: 0 | L87: =G87*H87 -> 45,000 | M87: =G87*I87 -> 0 | N87: =G87*J87 -> 0 | O87: =G87*K87 -> 0
D88: TT | E88: Häng th«ng t¾c | F88: c¸i | G88: 2.000 | H88: 10,000 | I88: 0 | J88: 0 | K88: 0 | L88: =G88*H88 -> 20,000 | M88: =G88*I88 -> 0 | N88: =G88*J88 -> 0 | O88: =G88*K88 -> 0
C89: BB.41201 | D89: BB.41201 | E89: L¾p ®Æt chËu xÝ bÖt inax | F89: bộ | G89: 4.000 | H89: 250,025 | J89: 62,831 | L89: =G89*H89 -> 1,000,100 | M89: =G89*I89 -> 0 | N89: =G89*J89 -> 251,324 | O89: =G89*K89 -> 0
C90: BB.41102 | D90: BB.41102 | E90: L¾p ®Æt chËu röa 2 vßi, lavabo inax | F90: bộ | G90: 5.000 | H90: 300,030 | J90: 25,132 | L90: =G90*H90 -> 1,500,150 | M90: =G90*I90 -> 0 | N90: =G90*J90 -> 125,660 | O90: =G90*K90 -> 0
C91: BB.41501 | D91: BB.41501 | E91: L¾p ®Æt vßi röa 1 vßi, vßi lavabo inax | F91: bộ | G91: 5.000 | H91: 25,003 | J91: 7,121 | L91: =G91*H91 -> 125,015 | M91: =G91*I91 -> 0 | N91: =G91*J91 -> 35,605 | O91: =G91*K91 -> 0
C92: BB.41401 | D92: BB.41401 | E92: L¾p ®Æt vßi t¾m 1 vßi + 1 h­¬ng sen | F92: bộ | G92: 2.000 | H92: 90,009 | J92: 8,377 | L92: =G92*H92 -> 180,018 | M92: =G92*I92 -> 0 | N92: =G92*J92 -> 16,754 | O92: =G92*K92 -> 0
C93: BB.41104 | D93: BB.41104 | E93: L¾p ®Æt thuyÒn t¾m kh«ng cã h­¬ng sen | F93: bộ | G93: 2.000 | H93: 1,500,150 | J93: 67,019 | L93: =G93*H93 -> 3,000,300 | M93: =G93*I93 -> 0 | N93: =G93*J93 -> 134,038 | O93: =G93*K93 -> 0
D94: TT | E94: B×nh ®un n­íc nãng nhanh | F94: bé | G94: 1.000 | H94: 1,200,000 | I94: 0 | J94: 0 | K94: 0 | L94: =G94*H94 -> 1,200,000 | M94: =G94*I94 -> 0 | N94: =G94*J94 -> 0 | O94: =G94*K94 -> 0
C95: BB.41102 | D95: BB.41102 | E95: L¾p ®Æt chËu röa 2 vßi | F95: bộ | G95: 1.000 | H95: 300,030 | J95: 25,132 | L95: =G95*H95 -> 300,030 | M95: =G95*I95 -> 0 | N95: =G95*J95 -> 25,132 | O95: =G95*K95 -> 0
D96: TT | E96: KÐt n­íc inox 3000l | F96: c¸i | G96: 1.000 | H96: 6,364,600 | I96: 0 | J96: 0 | K96: 0 | L96: =G96*H96 -> 6,364,600 | M96: =G96*I96 -> 0 | N96: =G96*J96 -> 0 | O96: =G96*K96 -> 0
C97: BB.42501 | D97: BB.42501 | E97: L¾p ®Æt vßi röa vÖ sinh | F97: cái | G97: 4.000 | H97: 47,000 | J97: 5,445 | L97: =G97*H97 -> 188,000 | M97: =G97*I97 -> 0 | N97: =G97*J97 -> 21,780 | O97: =G97*K97 -> 0
D98: TT | E98: M¸y b¬m n­íc, Q=4m3/h, h=25m | F98: c¸i | G98: 1.000 | H98: 900,000 | I98: 0 | J98: 0 | K98: 0 | L98: =G98*H98 -> 900,000 | M98: =G98*I98 -> 0 | N98: =G98*J98 -> 0 | O98: =G98*K98 -> 0
D100: TC | E100: Cộng | L100: =SUM(L9:L99) -> 74,264,343 | M100: =SUM(M9:M99) -> 0 | N100: =SUM(N9:N99) -> 10,015,057 | O100: =SUM(O9:O99) -> 1,383,863
L101: A | M101: Ap | N101: B | O101: C
P102: Người thực hiện đo bóc khối lượng | U102: Người kiểm tra đo bóc khối lượng
P103: (ký tên) | U103: (ký tên)
U106: Chứng chỉ KS định giá XD hạng ..., số …
P108: Thủ trưởng đơn vị thực hiện đo bóc khối lượng
P109: (ký tên và đóng dấu)

Sheet Tkthep (hidden)
B1: BẢNG THỐNG KÊ CỐT THÉP | L1: ĐK (mm) | M1: 6 | N1: 8 | O1: 10 | P1: 12 | Q1: 14 | R1: 16 | S1: 18 | T1: 20 | U1: 22 | V1: 24 | W1: 26 | X1: 26 | Y1: 28 | Z1: 30 | AA1: 32
B2: ='Bia1'!D42&'Bia1'!E42 -> CÔNG TRÌNH: NHÀ BIỆT THỰ GXD | L2: TL (kg/m) | M2: =ROUND(PI()*(M1/1000)^2/4*1*$M$3,3) -> 0.222 | N2: 0.395 | O2: 0.617 | P2: 0.888 | Q2: 1.208 | R2: 1.578 | S2: 1.998 | T2: 2.466 | U2: 2.984 | V2: 3.551 | W2: 4.168 | X2: 4.168 | Y2: 4.834 | Z2: 5.549 | AA2: 6.313
B3: ='Bia1'!D43&'Bia1'!E43 -> HẠNG MỤC: ĐỔI BẢNG MÃ FONT RẤT ĐƠN GIẢN TRONG DỰ TOÁN GXD | M3: 7850 | N3: kg/m3
B5: Tên cấu kiện | C5: Số hiệu thanh | D5: Hình dáng và kích thước | E5: Đ.kính Φ (mm) | F5: 1 cấu kiện | H5: Toàn bộ | J5: Tổng trọng lượng (kg)
F6: Số thanh | G6: Chiều dài (m) | H6: Số thanh | I6: Chiều dài (m)
C8: 1 | E8: 16 | F8: 4 | G8: 6.83 | H8: =$B$10*F8 -> 16 | I8: =G8*H8 -> 109.28 | J8: =ROUND(HLOOKUP(E8,$M$1:$AR$2,2,0)*I8,0) -> 172
B9: M1 | C9: 2 | E9: 20 | F9: 4 | G9: 8.22 | H9: =$B$10*F9 -> 16 | I9: =G9*H9 -> 131.52 | J9: =ROUND(HLOOKUP(E9,$M$1:$AR$2,2,0)*I9,0) -> 324
B10: 4 CK | C10: 3 | E10: 6 | F10: 2 | G10: 8.25 | H10: =$B$10*F10 -> 8 | I10: 66.00 | J10: 15
C11: 4
C12: 5
C13: …
D14: Tổng cộng | E14: <=10mm | J14: =SUMIF(E8:E13,"<11",J8:J13) -> 15
E15: <=18mm | J15: =SUM(J8:J13)-J14-J16 -> 172
E16: >18mm | J16: =SUMIF(E8:E13,">18",J8:J13) -> 324
B21: Ghi chú: Chèn thêm dòng vào bảng, chép công thức và nhập số liệu để tính trọng lượng thép.

Sheet Don gia chi tiet
A1: BẢNG PHÂN TÍCH ĐƠN GIÁ CHI TIẾT | N1: VL | O1: NC | P1: M | Q1: TT | R1: C | S1: TL | T1: GTGT | U1: GXDNT | V1: Cnc | W1: Gpa | X1: Gbc | Y1: Gnt | Z1: GDP
A2: ='Bia1'!D42&'Bia1'!E42 -> CÔNG TRÌNH: NHÀ BIỆT THỰ GXD | N2: ='CP xay dung'!F14 -> 1 | O2: ='CP xay dung'!F15 -> 1 | P2: ='CP xay dung'!F16 -> 1 | Q2: ='CP xay dung'!F17 -> 2.5 | R2: ='CP xay dung'!F19 -> 6.5 | S2: ='CP xay dung'!F20 -> 5.5 | T2: ='CP xay dung'!F22 -> 10 | U2: ='CP xay dung'!F24 -> 1 | V2: =Ts!H26*100 -> 51 | W2: =Ts!C20 -> 5 | X2: 5 | Y2: 5 | Z2: 10
A3: ='Bia1'!D43&'Bia1'!E43 -> HẠNG MỤC: ĐỔI BẢNG MÃ FONT RẤT ĐƠN GIẢN TRONG DỰ TOÁN GXD
K4: ĐVT: đồng
A5: STT | B5: MÃ VỮA | C5: MÃ HIỆU ĐỊNH MỨC | D5: MÃ HIỆU ĐƠN GIÁ | E5: MSVT | F5: TÊN CÔNG VIỆC / THÀNH PHẦN HAO PHÍ | G5: ĐƠN VỊ | H5: ĐỊNH MỨC HAO PHÍ | I5: ĐƠN GIÁ | J5: HỆ SỐ | K5: THÀNH TIỀN | L5: HAO PHÍ
A6: [1] | D6: [2] | E6: [3] | F6: [4] | G6: [5] | H6: [6] | I6: [7] | J6: [8] | K6: [9] | L6: [9']

Sheet VLSG XD (hidden)
A1: BẢNG GIÁ TRỊ CHÊNH LỆCH VẬT LIỆU TÍNH VÀO SAU CHI PHÍ XÂY DỰNG TRƯỚC THUẾ
A2: ='Bia1'!D42&'Bia1'!E42 -> CÔNG TRÌNH: NHÀ BIỆT THỰ GXD
A3: ='Bia1'!D43&'Bia1'!E43 -> HẠNG MỤC: ĐỔI BẢNG MÃ FONT RẤT ĐƠN GIẢN TRONG DỰ TOÁN GXD
A5: STT | B5: MSVT | C5: TÊN VẬT LIỆU | D5: ĐƠN VỊ | E5: KHỐI LƯỢNG | F5: GIÁ QUY VỀ | G5: GIÁ THỰC TẾ | H5: CHÊNH LỆCH | I5: THÀNH TIỀN
A6: [1] | B6: [2] | C6: [3] | D6: [4] | E6: [5] | F6: [6] | G6: [7] | H6: [8] | I6: [9]
A15: Ghi chú:
A16: Giá trị chênh lệch được tính vào sau giá trị dự toán xây dựng trước thuế trong bảng tổng hợp dự toán chi phí xây dựng (chèn thêm 1 dòng).
A17: Xem thêm Thông tư số 17/2000/TT-BXD của Bộ Xây dựng.

Sheet Tong hop & Chenh lech
A1: BẢNG TỔNG HỢP VÀ TÍNH CHÊNH LỆCH VẬT TƯ XÂY DỰNG
A2: ='Bia1'!D42&'Bia1'!E42 -> CÔNG TRÌNH: NHÀ BIỆT THỰ GXD
A3: ='Bia1'!D43&'Bia1'!E43 -> HẠNG MỤC: ĐỔI BẢNG MÃ FONT RẤT ĐƠN GIẢN TRONG DỰ TOÁN GXD
I4: ĐVT: đồng
A5: STT | B5: MSVT | C5: TÊN VẬT TƯ | D5: ĐƠN VỊ | E5: KHỐI LƯỢNG | F5: GIÁ VẬT TƯ GỐC | G5: GIÁ VẬT TƯ TẠI THỜI ĐIỂM LẬP DỰ TOÁN | H5: CHÊNH LỆCH | I5: THÀNH TIỀN
A6: [1] | B6: [2] | C6: [3] | D6: [4] | E6: [5] | F6: [6] | G6: [7] | H6: [8]=[7]-[6] | I6: [9]=[5]*[8]

Sheet Gia vat lieu
A1: BẢNG TÍNH GIÁ VẬT LIỆU ĐẾN HIỆN TRƯỜNG XÂY DỰNG
A2: ='Bia1'!D42&'Bia1'!E42 -> CÔNG TRÌNH: NHÀ BIỆT THỰ GXD
A3: ='Bia1'!D43&'Bia1'!E43 -> HẠNG MỤC: ĐỔI BẢNG MÃ FONT RẤT ĐƠN GIẢN TRONG DỰ TOÁN GXD
V4: ĐVT: đồng
A5: STT | B5: MSVT | C5: LOẠI VẬT LIỆU | D5: ĐƠN VỊ | E5: KHỐI LƯỢNG | F5: TRỌNG LƯỢNG ĐƠN VỊ | G5: LOẠI ĐƯỜNG | H5: CỰ LY (Km) | I5: GIÁ CƯỚC | J5: HỆ SỐ BẬC HÀNG | K5: HỆ SỐ ĐỔ BEN | L5: CƯỚC TĂNG THÊM | M5: CHI PHÍ VẬN CHUYỂN | N5: CHI PHÍ TRUNG CHUYỂN | T5: CHI PHÍ BỐC XẾP | U5: GIÁ GỐC (GIÁ MUA) | V5: GIÁ ĐẾN HIỆN TRƯỜNG | W5: NGUỒN MUA
B6: MÃ HIỆU | N6: Bốc xếp | O6: VC bộ khởi điểm | P6: VC bộ 10m tiếp theo | Q6: VC phương tiện thô sơ kđiểm | R6: VC phương tiện thô sơ 10m tiếp | S6: Cộng chi phí trung chuyển
A7: [1] | B7: [2] | C7: [3] | D7: [4] | E7: [5] | F7: [6] | G7: [7] | H7: [8] | I7: [9] | J7: [10] | K7: [11] | L7: [12] | M7: [13] | N7: [14] | O7: [15] | P7: [16] | Q7: [17] | R7: [18] | S7: [19] | T7: [20] | U7: [21] | V7: [22] | W7: [23]

Sheet Gia vua
A1: BẢNG PHỤ LỤC VỮA THI CÔNG XÂY DỰNG
A2: ='Bia1'!D42&'Bia1'!E42 -> CÔNG TRÌNH: NHÀ BIỆT THỰ GXD
A3: ='Bia1'!D43&'Bia1'!E43 -> HẠNG MỤC: ĐỔI BẢNG MÃ FONT RẤT ĐƠN GIẢN TRONG DỰ TOÁN GXD
H4: ĐVT: đồng
A5: STT | B5: MÃ VỮA | C5: MSVT | D5: LOẠI VẬT LIỆU | E5: ĐƠN VỊ | F5: ĐỊNH MỨC | G5: ĐƠN GIÁ | H5: THÀNH TIỀN
A6: [1] | B6: [2] | C6: [3] | D6: [4] | E6: [5] | F6: [6] | G6: [7] | H6: [8]=[6]*[7]

Sheet Nhan cong
A1: BẢNG LƯƠNG NHÂN CÔNG XÂY DỰNG
A2: ='Bia1'!D42&'Bia1'!E42 -> CÔNG TRÌNH: NHÀ BIỆT THỰ GXD
A3: ='Bia1'!D43&'Bia1'!E43 -> HẠNG MỤC: ĐỔI BẢNG MÃ FONT RẤT ĐƠN GIẢN TRONG DỰ TOÁN GXD
A4: - Mức lương tối thiểu chung (LTTC): | F4: =LTTC -> 1,050,000 | G4: đồng/tháng
A5: - Mức lương tối thiểu vùng (LTTV): | F5: =LTTV -> 2,000,000 | G5: đồng/tháng
A6: - Các khoản phụ cấp theo LTT:
B7: Phụ cấp lưu động: | D7: =Ts!C24 -> 20% LTTC | F7: =$F$4*luudong -> 210,000 | G7: đồng/tháng
B8: Phụ cấp khu vực: | D8: =Ts!C28 -> 0% LTTC | F8: =$F$4*khuvuc -> 0 | G8: đồng/tháng
B9: Phụ cấp độc hại: | D9: =Ts!C30 -> 0% LTTC | F9: =$F$4*dochai -> 0 | G9: đồng/tháng
B10: Tổng các phụ cấp theo LTT: | F10: =SUM(F7:F9) -> 210,000 | G10: đồng/tháng
A12: STT | B12: MSVT | C12: LOẠI NHÂN CÔNG | D12: CẤP BẬC | E12: HỆ SỐ LƯƠNG (HSL) | F12: LƯƠNG CẤP BẬC (LCB= HSLxLTTV) (đ/tháng) | G12: TỔNG CÁC KHOẢN PHỤ CẤP THEO LTT | H12: PHỤ CẤP THEO LƯƠNG CẤP BẬC (LCB) | N12: TỔNG L+PC (đ/công)
G13: Lưu động | H13: Lương phụ | I13: Khoán trực tiếp | J13: Không ổn định SX | K13: Thu hút | L13: Đặc biệt | M13: Ca đêm
H14: =Ts!$C$25 -> 12% LCB | I14: =Ts!$C$26 -> 4% LCB | J14: =Ts!$C$27 -> 0% LCB | K14: =thuhut -> 0% LCB | L14: =Ts!$C$31 -> 0% LCB | M14: =Ts!$C$32 -> 0% LCB
A15: [1] | B15: [2] | C15: [3] | D15: [4] | E15: [5] | F15: [6] | G15: [7] | H15: [8] | I15: [9] | J15: [10] | K15: [11] | L15: [11a] | M15: [11b] | N15: [12]

Sheet Gia ca may
A1: BẢNG GIÁ CA MÁY VÀ THIẾT BỊ THI CÔNG XÂY DỰNG | AI1: Xăng (đ/lít) | AJ1: Dầu Diezel (đ/lít) | AK1: Điện (đ/kw) | AL1: Ma dút (đ/lít) | AM1: Dầu hỏa (đ/lít) | AN1: Dầu DO (đ/lít)
A2: ='Bia1'!D42&'Bia1'!E42 -> CÔNG TRÌNH: NHÀ BIỆT THỰ GXD | AH2: GNL GCM đp: | AI2: =xang -> 19,000 | AJ2: =diezel -> 18,955 | AK2: =dien -> 1,242 | AL2: =mazut -> 13,548 | AM2: =Ts!C38 -> 0 | AN2: =Ts!C39 -> 0
A3: ='Bia1'!D43&'Bia1'!E43 -> HẠNG MỤC: ĐỔI BẢNG MÃ FONT RẤT ĐƠN GIẢN TRONG DỰ TOÁN GXD | AH3: GNL GCM ht: | AI3: =Ts!C42 -> 19,909 | AJ3: =Ts!C43 -> 19,545 | AK3: =Ts!C47 -> 2,061 | AL3: =Ts!C44 -> 14,548 | AM3: =Ts!C45 -> 0 | AN3: =Ts!C46 -> 0
S4: ĐVT: đồng/ca | AG4: ĐVT: đồng/ca
A5: STT | B5: MSVT | C5: LOẠI MÁY, THIẾT BỊ | D5: SỐ CA/ NĂM | E5: ĐỊNH MỨC KHẤU HAO, SỬA CHỮA, CHI PHÍ KHÁC / NĂM (%/GIÁ TÍNH KH) | I5: ĐỊNH MỨC TIÊU HAO NHIÊN LIỆU, NĂNG LƯỢNG 1 CA (CNL) | K5: HỆ SỐ NHIÊN LIỆU PHỤ | L5: THÀNH PHẦN CẤP BẬC THỢ ĐIỀU KHIỂN MÁY | M5: NGUYÊN GIÁ (GIÁ TÍNH KHẤU HAO) | N5: CHI PHÍ KHẤU HAO (CKH) | O5: CHI PHÍ SỬA CHỮA (CSC) | P5: CHI PHÍ NHIÊN LIỆU, NĂNG LƯỢNG (CNL) | Q5: CHI PHÍ TIỀN LƯƠNG (CTL) | R5: CHI PHÍ KHÁC (CCPK) | S5: GIÁ CA MÁY (CCM) | T5: CHI PHÍ TRONG GCM TẠI THỜI ĐIỂM GỐC | W5: CHI PHÍ NHIÊN LIỆU, NĂNG LƯỢNG TẠI THỜI ĐIỂM GỐC | X5: CHI PHÍ TIỀN LƯƠNG TẠI THỜI ĐIỂM GỐC | Y5: NGUYÊN GIÁ (GIÁ TÍNH KHẤU HAO) TẠI THỜI ĐIỂM GỐC | Z5: NGUYÊN GIÁ (GIÁ TÍNH KHẤU HAO) TẠI THỜI ĐIỂM ĐIỀU CHỈNH | AA5: GIÁ CA MÁY GỐC | AB5: CHI PHÍ NHIỀN LIỆU, NĂNG LƯỢNG TẠI THỜI ĐIỂM ĐIỀU CHỈNH | AC5: CHI PHÍ TIỀN LƯƠNG TẠI THỜI ĐIỂM ĐIỀU CHỈNH | AD5: HỆ SỐ ĐIỀU CHỈNH NGUYÊN GIÁ (K1) | AE5: HỆ SỐ ĐIỀU CHỈNH CHI PHÍ NHIÊN LIỆU, NĂNG LƯỢNG (K2) | AF5: HỆ SỐ ĐIỀU CHỈNH CHI PHÍ TIỀN LƯƠNG (K3) | AG5: GIÁ CA MÁY ĐIỀU CHỈNH (CCMĐC)
E6: Khấu hao | F6: Hệ số thu hồi khi thanh lý | G6: Sửa chữa | H6: CP # | T6: CP khấu hao | U6: CP sửa chữa | V6: CP khác
A7: [1] | B7: [2] | C7: [3] | D7: [4] | E7: [5] | F7: [6] | G7: [7] | H7: [8] | I7: [9] | K7: [10] | L7: [11] | M7: [12] | N7: [13] | O7: [14] | P7: [15] | Q7: [16] | R7: [17] | S7: [18] | T7: [6] | U7: [7] | V7: [8] | W7: [9] | X7: [10] | Y7: [11] | Z7: [12] | AA7: [12] | AB7: [13] | AC7: [14] | AD7: [15] | AE7: [16] | AF7: [17] | AG7: [18]

Sheet NhienlieuXD (hidden)
A1: BẢNG TỔNG HỢP HAO PHÍ NHIÊN LIỆU, NĂNG LƯỢNG PHẦN THI CÔNG XÂY DỰNG
A2: ='Bia1'!D42&'Bia1'!E42 -> CÔNG TRÌNH: NHÀ BIỆT THỰ GXD
A3: ='Bia1'!D43&'Bia1'!E43 -> HẠNG MỤC: ĐỔI BẢNG MÃ FONT RẤT ĐƠN GIẢN TRONG DỰ TOÁN GXD
M4: ĐVT: đồng
A5: STT | B5: MSVT | C5: TÊN MÁY / THIẾT BỊ THI CÔNG | D5: ĐVT | E5: HAO PHÍ CA MÁY | F5: ĐỊNH MỨC TIÊU HAO NHIÊN LIỆU, NĂNG LƯỢNG | J5: TỔNG HAO PHÍ NHIÊN LIỆU, NĂNG LƯỢNG
F6: Xăng | G6: Điện | H6: Diezel | I6: Dầu mazut | J6: Xăng | K6: Điện | L6: Diezel | M6: Dầu mazut
A7: [1] | B7: [2] | C7: [3] | D7: [4] | E7: [5] | F7: [6] | G7: [7] | H7: [8] | I7: [9] | J7: [10] | K7: [11] | L7: [12] | M7: [13]
A14: Tổng cộng | J14: =SUM(J8:J13) -> 0 | K14: =SUM(K8:K13) -> 0 | L14: =SUM(L8:L13) -> 0 | M14: =SUM(M8:M13) -> 0

Sheet Vật tư điều chỉnh xây dựng (hidden)
A1: BẢNG GIÁ TRỊ VẬT TƯ
A2: ='Bia1'!D42&'Bia1'!E42 -> CÔNG TRÌNH: NHÀ BIỆT THỰ GXD
A3: ='Bia1'!D43&'Bia1'!E43 -> HẠNG MỤC: ĐỔI BẢNG MÃ FONT RẤT ĐƠN GIẢN TRONG DỰ TOÁN GXD
G4: Đơn vị tính: VND
A5: STT | B5: MSVT | C5: TÊN VẬT TƯ | D5: ĐƠN VỊ | E5: KHỐI LƯỢNG | F5: ĐƠN GIÁ | G5: THÀNH TIỀN | H5: TỶ TRỌNG CHI PHÍ VL, NC, MTC CT1 | I5: TỶ TRỌNG CHI PHÍ LOẠI VL, NC, NHÓM MTC CHỦ YẾU CT1
A6: [1] | B6: [2] | C6: [3] | D6: [4] | E6: [5] | F6: [6] | G6: [7] | H6: [8] | I6: [9]

Sheet Số liệu điều chỉnh HĐ xây dựng (hidden)
B1: BẢNG TỶ TRỌNG CHI PHÍ
B3: STT | C3: NỘI DUNG | F3: GIÁ TRỊ
B4: [1] | C4: [2] | F4: [3]
B5: I | C5: Vốn đầu tư xây dựng công trình (GXDCT) | F5: ='Tong hop kinh phi'!G16 -> 128,535,782
B6: 1 | C6: Chi phí xây dựng (GXD) | F6: ='Tong hop kinh phi'!G7 -> 109,606,069
B7: 2 | C7: Chi phí thiết bị (GTB) | F7: =SUM(F8:F10) -> 0
C8: + Chi phí mua sắm thiết bị (Gmstb) | F8: ='TH CP thiet bi'!F7 -> 0
C9: + Chi phí đào tạo và chuyển giao công nghệ (Gdtcg) | F9: ='TH CP thiet bi'!F8 -> 0
C10: + Chi phí lắp đặt thiết bị và thí nghiệm, hiệu chỉnh (Gld) | F10: ='TH CP thiet bi'!F9 -> 0
B11: 3 | C11: Chi phí khác (GCPK) | F11: =F5-F6-F7 -> 18,929,713
C12: + Chi phí khảo sát xây dựng | F12: ='Tong hop kinh phi'!#REF! -> 
C13: + Chi phí thiết kế công trình | F13: =SUM('Tong hop kinh phi'!#REF!) -> 
C14: + Chi phí quản lý dự án | F14: ='Tong hop kinh phi'!G12 -> 2,514,961
B15: II | C15: Các tỷ trọng chi phí theo cơ cấu chi phí và yếu tố chi phí
B16: 1 | C16: Tỷ trọng chi phí xây dựng (PXD) | F16: =IF(ISERROR(F6/$F$5),0,F6/$F$5) -> 85.27%
B17: 2 | C17: Tỷ trọng chi phí thiết bị (PTB) | F17: =IF(ISERROR(F7/$F$5),0,F7/$F$5) -> 0.00%
C18: Trong đó:
C19: + Tỷ trọng chi phí mua sắm thiết bị (Gmstb) | F19: =IF(ISERROR(F8/$F$7),0,F8/$F$7) -> 0.00%
C20: + Tỷ trọng chi phí đào tạo và chuyển giao công nghệ (Gdtcg) | F20: =IF(ISERROR(F9/$F$7),0,F9/$F$7) -> 0.00%
C21: + Tỷ trọng chi phí lắp đặt thiết bị và thí nghiệm, hiệu chỉnh (Gld) | F21: =IF(ISERROR(F10/$F$7),0,F10/$F$7) -> 0.00%
B22: 3 | C22: Tỷ trọng chi phí khác (PCPK) | F22: =IF(ISERROR(F11/$F$5),0,F11/$F$5) -> 14.73%
C23: Trong đó:
C24: + Tỷ trọng chi phí khảo sát xây dựng: | F24: =IF(ISERROR(F12/$F$11),0,F12/$F$11) -> 0.00%
C25: + Tỷ trọng chi phí thiết kế công trình: | F25: =IF(ISERROR(F13/$F$11),0,F13/$F$11) -> 0.00%
C26: + Tỷ trọng chi phí quản lý dự án: | F26: =IF(ISERROR(F14/$F$11),0,F14/$F$11) -> 13.29%
B30: BẢNG SỐ LIỆU ĐIỀU CHỈNH HỢP ĐỒNG
B31: ='Bia1'!D42&'Bia1'!E42 -> CÔNG TRÌNH: NHÀ BIỆT THỰ GXD
B32: ='Bia1'!D43&'Bia1'!E43 -> HẠNG MỤC: ĐỔI BẢNG MÃ FONT RẤT ĐƠN GIẢN TRONG DỰ TOÁN GXD
B34: - Các yếu tố điều chỉnh
C35: + Chí phí vật liệu (VL) | E35: 1
C36: + Chí phí nhân công (NC) | E36: 1
C37: + Chí phí máy thi công (MTC) | E37: 1
C38: + Tỷ lệ tạm ứng của nhà đầu tư (u) | E38: 0
C39: + Giá hợp đồng (G) | E39: 0
C40: + Chi phí điều chỉnh (T) | E40: =E35+E36+E37 -> 3
B42: Trường hợp tổng quát
B44: STT | C44: HỆ SỐ CỐ ĐỊNH a(%) | D44: TỶ TRỌNG NHÂN CÔNG b(%) | E44: TỶ TRỌNG MÁY c(%) | F44: TỶ TRỌNG VẬT LiỆU d(%)
B45: 1 | C45: a=1-(b+c+d) | D45: b=NC/G | E45: c=MTC/G | F45: d=VL/G
B46: 2 | C46: =1-(D46+E46+F46) -> 100.00% | D46: =IF(E39=0,0,E36/E39) -> 0.00% | E46: =IF(E39=0,0,E37/E39) -> 0.00% | F46: =IF(E39=0,0,E35/E39) -> 0.00%
B49: Trường hợp xét đến tỷ lệ tạm ứng hợp đồng của Chủ đầu tư cho nhà thầu
B51: STT | C51: HỆ SỐ CỐ ĐỊNH a(%) | D51: TỶ TRỌNG NHÂN CÔNG b(%) | E51: TỶ TRỌNG MÁY c(%) | F51: TỶ TRỌNG VẬT LiỆU d(%)
B52: 1 | C52: a=1-T/G*(1-u) | D52: b=NC/T*(1-a) | E52: c=MTC/T*(1-a) | F52: d=VL/T*(1-a)
B53: 2 | C53: =IF(E39=0,0,1-E40/E39*(1-E38)) -> 0.00% | D53: =E36/E40*(1-C53) -> 33.33% | E53: =E37/E40*(1-C53) -> 33.33% | F53: =E35/E40*(1-C53) -> 33.33%
B56: Trường hợp xác định trước hệ số cố định
B58: STT | C58: HỆ SỐ CỐ ĐỊNH a(%) | D58: TỶ TRỌNG NHÂN CÔNG b(%) | E58: TỶ TRỌNG MÁY c(%) | F58: TỶ TRỌNG VẬT LiỆU d(%)
B59: 1 | D59: b=NC/T*(1-a) | E59: c=MTC/T*(1-a) | F59: d=VL/T*(1-a)
B60: 2 | D60: =E36/E40*(1-C60) -> 33.33% | E60: =E37/E40*(1-C60) -> 33.33% | F60: =E35/E40*(1-C60) -> 33.33%

Sheet Du thau
A1: BẢNG DỰ TOÁN DỰ THẦU THI CÔNG XÂY DỰNG
A2: ='Bia1'!D42&'Bia1'!E42 -> CÔNG TRÌNH: NHÀ BIỆT THỰ GXD
A3: ='Bia1'!D43&'Bia1'!E43 -> HẠNG MỤC: ĐỔI BẢNG MÃ FONT RẤT ĐƠN GIẢN TRONG DỰ TOÁN GXD
A5: STT | B5: MÃ HIỆU | C5: NỘI DUNG CÔNG VIỆC | D5: ĐƠN VỊ | E5: KHỐI LƯỢNG | F5: ĐƠN GIÁ | G5: THÀNH TIỀN | H5: ĐGVL | I5: ĐGVLP | J5: ĐGNC | K5: ĐGM | L5: TT | M5: T | N5: C | O5: TL | P5: G | Q5: GTGT | R5: GXDNT | S5: GXD
A6: [1] | B6: [2] | C6: [3] | D6: [4] | E6: [5] | F6: [6] | G6: [7]=[5]*[6]

Sheet VCLC XD (hidden)
A1: BẢNG TỔNG HỢP VẬT TƯ XÂY DỰNG VẬN CHUYỂN LÊN CAO
A2: ='Bia1'!D42&'Bia1'!E42 -> CÔNG TRÌNH: NHÀ BIỆT THỰ GXD
A3: ='Bia1'!D43&'Bia1'!E43 -> HẠNG MỤC: ĐỔI BẢNG MÃ FONT RẤT ĐƠN GIẢN TRONG DỰ TOÁN GXD
A5: STT | B5: MÃ HIỆU | C5: TÊN VẬT TƯ | D5: ĐƠN VỊ | E5: KHỐI LƯỢNG
A6: [1] | B6: [2] | C6: [3] | D6: [4] | E6: [5]

Sheet Gia tri vat tu
A1: BẢNG GIÁ TRỊ VẬT TƯ THI CÔNG XÂY DỰNG
A2: =Ts!B3&Ts!B4 -> CÔNG TRÌNH: NHÀ BIỆT THỰ GXD
A3: =Ts!B5&Ts!B6 -> HẠNG MỤC: ĐỔI BẢNG MÃ FONT RẤT ĐƠN GIẢN TRONG DỰ TOÁN GXD
G4: ĐVT: đồng
A5: STT | B5: MSVT | C5: TÊN VẬT TƯ | D5: ĐƠN VỊ | E5: KHỐI LƯỢNG | F5: ĐƠN GIÁ | G5: THÀNH TIỀN
A6: [1] | B6: [2] | C6: [3] | D6: [4] | E6: [5] | F6: [6] | G6: [7]=[5]*[6]

Sheet TDTC XD (hidden)
A1: BẢNG TIẾN ĐỘ THI CÔNG XÂY DỰNG
A2: =Ts!B3&Ts!B4 -> CÔNG TRÌNH: NHÀ BIỆT THỰ GXD
A3: =Ts!B5&Ts!B6 -> HẠNG MỤC: ĐỔI BẢNG MÃ FONT RẤT ĐƠN GIẢN TRONG DỰ TOÁN GXD
A5: STT | B5: MÃ HIỆU | C5: NỘI DUNG CÔNG VIỆC | D5: ĐƠN VỊ | E5: HAO PHÍ NC | F5: TIẾN ĐỘ THI CÔNG
F6: T1 | G6: T2 | H6: T3 | I6: T4 | J6: T5

Sheet CP tu van
A1: BẢNG TỔNG HỢP CHI PHÍ TƯ VẤN
A2: ='Bia1'!D42&'Bia1'!E42 -> CÔNG TRÌNH: NHÀ BIỆT THỰ GXD
A3: ='Bia1'!D43&'Bia1'!E43 -> HẠNG MỤC: ĐỔI BẢNG MÃ FONT RẤT ĐƠN GIẢN TRONG DỰ TOÁN GXD
G4: ĐVT: đồng
A5: STT | B5: NỘI DUNG CHI PHÍ | C5: ĐMTL | D5: CÁCH TÍNH | E5: CHI PHÍ TRƯỚC THUẾ | F5: THUẾ GTGT | G5: CHI PHÍ SAU THUẾ
A7: =IF(B7<>"",COUNTA($B$7:B7)-COUNTIF($B$7:B7,""),"") -> 1 | B7: Chi phí lập quy hoạch chi tiết 1/500 (trường hợp ở mục 3.2.3 - QĐ 957) | D7: 65% mức chi phí lập quy hoạch chi tiết QHĐT | F7: =E7*10% -> 0 | G7: =E7+F7 -> 0
A8: =IF(B8<>"",COUNTA($B$7:B8)-COUNTIF($B$7:B8,""),"") -> 2 | B8: ='QD957'!C14 -> Chi phí lập báo cáo KTKT | C8: ='QD957'!H14/100 -> 3.600% | D8: ĐMTL*(GXD+GTB) | E8: =C8*('Tong hop kinh phi'!E7+'Tong hop kinh phi'!E10) -> 3,587,108 | F8: =E8*10% -> 358,711 | G8: =E8+F8 -> 3,945,818
A9: =IF(B9<>"",COUNTA($B$7:B9)-COUNTIF($B$7:B9,""),"") -> 3 | B9: Chi phí khảo sát địa chất | D9: Theo hợp đồng KSĐC | F9: =E9*10% -> 0 | G9: =E9+F9 -> 0
A10: =IF(B10<>"",COUNTA($B$7:B10)-COUNTIF($B$7:B10,""),"") -> 4 | B10: Chi phí lập nhiệm vụ khảo sát xây dựng | D10: Lập dự toán riêng | F10: 0 | G10: 0
A11: =IF(B11<>"",COUNTA($B$7:B11)-COUNTIF($B$7:B11,""),"") -> 5 | B11: Chi phí khảo sát xây dựng | D11: Lập dự toán riêng | F11: 0 | G11: 0
A12: =IF(B12<>"",COUNTA($B$7:B12)-COUNTIF($B$7:B12,""),"") -> 6 | B12: Chi phí giám sát khảo sát xây dựng | D12: Lập dự toán riêng | F12: 0 | G12: 0
A13: =IF(B13<>"",COUNTA($B$7:B13)-COUNTIF($B$7:B13,""),"") -> 7 | B13: Chi phí thi tuyển, tuyển chọn thiết kế kiến trúc | D13: Lập dự toán riêng | F13: 0 | G13: 0
A14: =IF(B14<>"",COUNTA($B$7:B14)-COUNTIF($B$7:B14,""),"") ->  | B14: ='QD957'!C16 ->  | C14: ='QD957'!H16/100 -> 0.000% | D14: ĐMTL*GXD | E14: =C14*'Tong hop kinh phi'!E7 -> 0 | F14: =E14*10% -> 0 | G14: =E14+F14 -> 0
A15: =IF(B15<>"",COUNTA($B$7:B15)-COUNTIF($B$7:B15,""),"") ->  | B15: ='QD957'!C17 ->  | C15: ='QD957'!H17/100 -> 0.000% | D15: =IF(C15<>0,IF(LCT=2,"60%*TKKT","55%*TKKT"),"") ->  | E15: =C15*'Tong hop kinh phi'!E7 -> 0 | F15: =E15*10% -> 0 | G15: =E15+F15 -> 0
A16: =IF(B16<>"",COUNTA($B$7:B16)-COUNTIF($B$7:B16,""),"") -> 8 | B16: Chi phí đo vẽ hiện trạng (Nếu trong dự án có công trình phải tháo dỡ hoặc sửa chữa) | D16: Lập dự toán riêng | F16: 0 | G16: 0
A17: =IF(B17<>"",COUNTA($B$7:B17)-COUNTIF($B$7:B17,""),"") -> 9 | B17: Chi phí thẩm tra tính hiệu quả và khả thi của dự án đầu tư | C17: ='QD957'!H15/100 -> 0.000% | D17: ĐMTL*(GXD+GTB) | E17: =C17*('Tong hop kinh phi'!E7+'Tong hop kinh phi'!E10) -> 0 | F17: =E17*10% -> 0 | G17: =E17+F17 -> 0
A18: =IF(B18<>"",COUNTA($B$7:B18)-COUNTIF($B$7:B18,""),"") -> 10 | B18: Chi phí thẩm tra thiết kế kỹ thuật, thiết kế bản vẽ thi công | C18: ='QD957'!H18/100 -> 0.206% | D18: ĐMTL*GXD | E18: =C18*'Tong hop kinh phi'!E7 -> 205,262 | F18: =E18*10% -> 20,526 | G18: =E18+F18 -> 225,789
A19: =IF(B19<>"",COUNTA($B$7:B19)-COUNTIF($B$7:B19,""),"") -> 11 | B19: Chi phí thẩm tra tổng mức đầu tư | D19: Lập dự toán riêng | F19: 0 | G19: 0
A20: =IF(B20<>"",COUNTA($B$7:B20)-COUNTIF($B$7:B20,""),"") -> 12 | B20: Chi phí thẩm tra dự toán xây dựng công trình | C20: ='QD957'!H19/100 -> 0.200% | D20: ĐMTL*GXD | E20: =C20*'Tong hop kinh phi'!E7 -> 199,284 | F20: =E20*10% -> 19,928 | G20: =E20+F20 -> 219,212
A21: =IF(B21<>"",COUNTA($B$7:B21)-COUNTIF($B$7:B21,""),"") -> 13 | B21: Chi phí thẩm định giá thiết bị | D21: HĐ thẩm định giá | F21: 0 | G21: 0
A22: =IF(B22<>"",COUNTA($B$7:B22)-COUNTIF($B$7:B22,""),"") -> 14 | B22: Chi phí chi phí lập hồ sơ mời thầu, đánh giá hồ sơ dự thầu thi công xây dựng | C22: ='QD957'!H20/100 -> 0.337% | D22: ĐMTL*GXD | E22: =C22*'Tong hop kinh phi'!E7 -> 335,793 | F22: 33,579 | G22: 369,372
A23: =IF(B23<>"",COUNTA($B$7:B23)-COUNTIF($B$7:B23,""),"") -> 15 | B23: Chi phí lập hồ sơ mời thầu, đánh giá hồ sơ dự thầu mua sắm thiết bị | C23: ='QD957'!H21/100 -> 0.000% | D23: ĐMTL*GTB | E23: =C23*'Tong hop kinh phi'!E10 -> 0 | F23: 0 | G23: 0
A24: =IF(B24<>"",COUNTA($B$7:B24)-COUNTIF($B$7:B24,""),"") -> 16 | B24: Chi phí thẩm tra hồ sơ mời thầu XL | D24: TT | E24: 0 | F24: 0 | G24: 0
A25: =IF(B25<>"",COUNTA($B$7:B25)-COUNTIF($B$7:B25,""),"") -> 17 | B25: Chi phí thẩm tra kết quả lựa chọn nhà thầu XL | C25: 0.010% | D25: ĐMTL*GXD | E25: =IF('Tong hop kinh phi'!E7=0,0,IF(C25*'Tong hop kinh phi'!E7<1000000,1000000,MIN(50000000,C25*'Tong hop kinh phi'!E7))) -> 1,000,000 | F25: 100,000 | G25: 1,100,000
A26: =IF(B26<>"",COUNTA($B$7:B26)-COUNTIF($B$7:B26,""),"") -> 18 | B26: Chi phí thẩm tra hồ sơ mời thầu TB | D26: TT | E26: 0 | F26: 0 | G26: 0
A27: =IF(B27<>"",COUNTA($B$7:B27)-COUNTIF($B$7:B27,""),"") -> 19 | B27: Chi phí thẩm tra kết quả lựa chọn nhà thầu TB | C27: 0.010% | D27: ĐMTL*GTB | E27: =IF('Tong hop kinh phi'!E10=0,0,IF(C27*'Tong hop kinh phi'!E10<1000000,1000000,MIN(50000000,C27*'Tong hop kinh phi'!E10))) -> 0 | F27: 0 | G27: 0
A28: =IF(B28<>"",COUNTA($B$7:B28)-COUNTIF($B$7:B28,""),"") -> 20 | B28: Chi phí giám sát thi công xây dựng | C28: ='QD957'!H22/100 -> 2.628% | D28: ĐMTL*GXD | E28: =C28*'Tong hop kinh phi'!E7 -> 2,618,589 | F28: 261,859 | G28: 2,880,447
A29: =IF(B29<>"",COUNTA($B$7:B29)-COUNTIF($B$7:B29,""),"") -> 21 | B29: Chi phí giám sát lắp đặt thiết bị | C29: ='QD957'!H23/100 -> 0.000% | D29: ĐMTL*GTB | E29: =C29*'Tong hop kinh phi'!E10 -> 0 | F29: 0 | G29: 0
A30: =IF(B30<>"",COUNTA($B$7:B30)-COUNTIF($B$7:B30,""),"") -> 22 | B30: Chi phí lập báo cáo đánh giá tác động môi trường (ĐTM) | D30: Lập dự toán riêng | F30: 0 | G30: 0
A31: =IF(B31<>"",COUNTA($B$7:B31)-COUNTIF($B$7:B31,""),"") -> 23 | B31: Chi phí lập định mức xây dựng, đơn giá xây dựng công trình | D31: Lập dự toán riêng | F31: 0 | G31: 0
A32: =IF(B32<>"",COUNTA($B$7:B32)-COUNTIF($B$7:B32,""),"") -> 24 | B32: Chi phí kiểm soát chi phí xây dựng | D32: Lập dự toán riêng | F32: 0 | G32: 0
A33: =IF(B33<>"",COUNTA($B$7:B33)-COUNTIF($B$7:B33,""),"") -> 25 | B33: Chi phí quản lý chi phí đầu tư xây dựng: tổng mức đầu tư, dự toán công trình, định mức xây dựng, đơn giá xây dựng công trình, hợp đồng trong hoạt động xây dựng,... | D33: Lập dự toán riêng | F33: 0 | G33: 0
A34: =IF(B34<>"",COUNTA($B$7:B34)-COUNTIF($B$7:B34,""),"") -> 26 | B34: Chi phí tư vấn quản lý dự án (trường hợp thuê tư vấn) | D34: Lập dự toán riêng | F34: 0 | G34: 0
A35: =IF(B35<>"",COUNTA($B$7:B35)-COUNTIF($B$7:B35,""),"") -> 27 | B35: Chi phí thí nghiệm chuyên ngành | D35: Lập dự toán riêng | F35: 0 | G35: 0
A36: =IF(B36<>"",COUNTA($B$7:B36)-COUNTIF($B$7:B36,""),"") -> 28 | B36: Chi phí kiểm tra chất lượng vật liệu, kiểm định chất lượng công trình theo yêu cầu của Chủ đầu tư | D36: Lập dự toán riêng | F36: 0 | G36: 0
A37: =IF(B37<>"",COUNTA($B$7:B37)-COUNTIF($B$7:B37,""),"") -> 29 | B37: Chi phí kiểm định chất lượng xây dựng | D37: Lập dự toán riêng | E37: 0 | F37: 0 | G37: 0
A38: =IF(B38<>"",COUNTA($B$7:B38)-COUNTIF($B$7:B38,""),"") -> 30 | B38: Chi phí kiểm tra chứng nhận đủ điều kiện bảo đảm an toàn chịu lực và chứng nhận sự phù hợp về chất lượng công trình | D38: Lập dự toán riêng | E38: 0 | F38: 0 | G38: 0
A39: =IF(B39<>"",COUNTA($B$7:B39)-COUNTIF($B$7:B39,""),"") -> 31 | B39: Chi phí giám sát, đánh giá dự án đầu tư xây dựng công trình | C39: 20%*GQLDA | D39: Thông tư 22/2010/TT-BKH ngày 02/12/2010 | E39: =20%*'Tong hop kinh phi'!E12 -> 502,992 | F39: 50,299 | G39: 553,291
A40: =IF(B40<>"",COUNTA($B$7:B40)-COUNTIF($B$7:B40,""),"") -> 32 | B40: Chi phí giám định tư pháp trong xây dựng | D40: Lập dự toán riêng | F40: 0 | G40: 0
A41: =IF(B41<>"",COUNTA($B$7:B41)-COUNTIF($B$7:B41,""),"") -> 33 | B41: Chi phí quy đổi vốn đầu tư xây dựng công trình tại thời điểm bàn giao, đưa vào khai thác sử dụng | D41: Lập dự toán riêng | F41: 0 | G41: 0
A42: =IF(B42<>"",COUNTA($B$7:B42)-COUNTIF($B$7:B42,""),"") -> 34 | B42: Chi phí thực hiện các công việc tư vấn khác | D42: Lập dự toán riêng | F42: 0 | G42: 0
B43: Tổng cộng: | E43: =SUM(E7:E42) -> 8,449,028 | F43: =SUM(F7:F42) -> 844,903 | G43: =SUM(G7:G42) -> 9,293,931
B44: LÀM TRÒN (GTV) | E44: =ROUND(E43,-3) -> 8,449,000 | F44: =ROUND(F43,-3) -> 845,000 | G44: =ROUND(G43,-3) -> 9,294,000
A47: Ghi chú:
A48: - Bảng tổng hợp chi phí tư vấn liệt kê các khác đầu mục chi phí có thể có.
A49: - Tùy vào điều kiện cụ thể của công trình bạn xóa bớt hoặc chèn thêm dòng để bổ sung các khoản chi phí cho phù hợp.
A50: - Bảng Tổng hợp chi phí tư vấn và chi phí khác trên đây được kê ra các khoản mục chi phí bao gồm cả việc xác định trong TMĐT, khi lập dự toán hay tổng dự toán phải lược bỏ các khoản chi phí cho phù hợp.
A51: Ví dụ:
A52: Nếu tính Chi phí lập dự án đầu tư xây dựng công trình thì xóa dòng Chi phí lập báo cáo kinh tế - kỹ thuật.

Sheet Cp khac
A1: BẢNG TỔNG HỢP CHI PHÍ KHÁC
A2: ='Bia1'!D42&'Bia1'!E42 -> CÔNG TRÌNH: NHÀ BIỆT THỰ GXD
A3: ='Bia1'!D43&'Bia1'!E43 -> HẠNG MỤC: ĐỔI BẢNG MÃ FONT RẤT ĐƠN GIẢN TRONG DỰ TOÁN GXD
G4: ĐVT: đồng | I4: TMĐT | J4: =TMDT -> 0 đồng
A5: STT | B5: NỘI DUNG CHI PHÍ | C5: ĐMTL | D5: CÁCH TÍNH | E5: CHI PHÍ TRƯỚC THUẾ | F5: THUẾ GTGT | G5: CHI PHÍ SAU THUẾ
A7: 1 | B7: Chi phí rà phá bom mìn, vật nổ | D7: Lập dự toán riêng | F7: =E7*10% -> 0 | G7: =E7+F7 -> 0
A8: 2 | B8: Chi phí bảo hiểm công trình | D8: ĐMTL*(GXD+GTB) | E8: =C8*('Tong hop kinh phi'!E7+'Tong hop kinh phi'!E10) -> 0 | F8: 0 | G8: =E8+F8 -> 0
A9: 3 | B9: Chi phí bảo hiểm tư vấn | D9: Lập dự toán riêng | F9: 0 | G9: =E9+F9 -> 0
A10: 4 | B10: Chi phí di chuyển thiết bị thi công và lực lượng lao động đến công trường | D10: Lập dự toán riêng | F10: 0 | G10: 0
A11: 5 | B11: Chi phí đăng kiểm chất lượng quốc tế, quan trắc biến dạng công trình | D11: Lập dự toán riêng | F11: 0 | G11: 0
A12: 6 | B12: Chi phí đảm bảo an toàn giao thông phục vụ thi công các công trình | D12: Lập dự toán riêng | F12: 0 | G12: 0
A13: 7 | B13: Chi phí hoàn trả hạ tầng kỹ thuật bị ảnh hưởng khi thi công công trình | D13: Lập dự toán riêng | F13: 0 | G13: 0
A14: 8 | B14: Chi phí kiểm toán | C14: ='QD957'!H28/100 -> 0.640% | D14: ĐMTL*TMĐT | E14: =C14*$J$4 -> 0 | F14: =E14*10% -> 0 | G14: 0
A15: 9 | B15: Chi phí nghiên cứu khoa học công nghệ liên quan đến dự án | D15: Lập dự toán riêng | F15: =E15*10% -> 0 | G15: 0
A16: 10 | B16: Vốn lưu động ban đầu (đối với các dự án đầu tư xây dựng nhằm mục đích kinh doanh) | D16: Lập dự toán riêng | G16: 0
A17: 11 | B17: Lãi vay trong thời gian xây dựng | D17: Lập dự toán riêng | G17: 0
A18: 12 | B18: Chi phí cho quá trình chạy thử không tải và có tải theo quy trình công nghệ | D18: Lập dự toán riêng | F18: =E18*10% -> 0 | G18: 0
A19: 13 | B19: Chi phí thẩm tra phê duyệt quyết toán vốn đầu tư | C19: ='QD957'!H29/100 -> 0.380% | D19: ĐMTL*TMĐT | E19: =C19*$J$4 -> 0 | G19: 0
A20: 14 | B20: Phí thẩm định dự án đầu tư | C20: ='QD957'!H27/100 -> 0.019% | D20: ĐMTL*TMĐT | E20: =C20*$J$4 -> 0 | G20: 0
A21: 15 | B21: Chi phí thẩm định kết quả lựa chọn nhà thầu xây dựng | C21: 0.010% | D21: ĐMTL*GXD | E21: =IF('Tong hop kinh phi'!E7=0,0,IF(C21*'Tong hop kinh phi'!E7<1000000,1000000,MIN(50000000,C21*'Tong hop kinh phi'!E7))) -> 1,000,000 | G21: 1,000,000
A22: 16 | B22: Chi phí thẩm định kết quả lựa chọn nhà thầu cung cấp, lắp đặt thiết bị | C22: 0.010% | D22: ĐMTL*GTB | E22: =IF('Tong hop kinh phi'!E10=0,0,IF(C22*'Tong hop kinh phi'!E10<1000000,1000000,MIN(50000000,C22*'Tong hop kinh phi'!E10))) -> 0 | G22: 0
A23: 17 | B23: Lệ phí cấp phép xây dựng | D23: Theo quy định | G23: 0
B24: Tổng cộng: | E24: =SUM(E7:E23) -> 1,000,000 | F24: =SUM(F7:F23) -> 0 | G24: =SUM(G7:G23) -> 1,000,000
B25: LÀM TRÒN (GK) | E25: =ROUND(E24,-3) -> 1,000,000 | F25: =ROUND(F24,-3) -> 0 | G25: =ROUND(G24,-3) -> 1,000,000
A28: Ghi chú:
A29: - Bảng tổng hợp chi phí khác liệt kê các khác đầu mục chi phí có thể có.
A30: - Tùy vào điều kiện cụ thể của công trình bạn xóa bớt hoặc chèn thêm dòng để bổ sung thêm các khoản chi phí cho phù hợp.
A31: - Bảng Tổng hợp chi phí khác trên được kê ra các khoản mục chi phí bao gồm cả việc xác định trong TMĐT, khi lập dự toán hay tổng dự toán phải lược bỏ các khoản chi phí cho phù hợp.

Sheet CP Du phong
A1: BẢNG CHI PHÍ DỰ PHÒNG CHO YẾU TỐ TRƯỢT GIÁ
A2: ='Bia1'!D42&'Bia1'!E42 -> CÔNG TRÌNH: NHÀ BIỆT THỰ GXD
A3: ='Bia1'!D43&'Bia1'!E43 -> HẠNG MỤC: ĐỔI BẢNG MÃ FONT RẤT ĐƠN GIẢN TRONG DỰ TOÁN GXD
B4: Chi phí xây dựng (GXD): | C4: ='Tong hop kinh phi'!G7 -> 109,606,069
B5: Chi phí thiết bị (GTB): | C5: ='Tong hop kinh phi'!G10 -> 0
B6: Chi phí quản lý dự án (GQLDA): | C6: ='Tong hop kinh phi'!G12 -> 2,514,961
B7: Chi phí tư vấn đầu tư xây dựng (GTV): | C7: ='Tong hop kinh phi'!G13 -> 9,294,000
B8: Chi phí khác (GK): | C8: ='Tong hop kinh phi'!G14 -> 1,000,000
B9: Tổng chi phí dự kiến thực hiện ở năm t (Vt) | C9: =SUM(C4:C8) -> 122,415,030
A11: I. Dự phòng cho khối lượng công việc phát sinh (Gdp1)
D12: Kps = | E12: 5%
B13: GDP1 = | C13: =$E$12*(C4+C5+C6+C7+C8) -> 6120751.509
A14: II. Dự phòng cho yếu tố trượt giá (Gdp2)
A17: T: Độ dài thời gian thi công xây dựng công trình (năm);
A18: t: Số thứ tự năm phân bổ vốn thực hiện dự án (t=1÷T);
A19: Vt: Vốn đầu tư dự kiến thực hiện trong năm thứ t;
A20: IXDCTbq: Mức độ trượt giá bình quân tính;
A21: DIXDCTbq: Mức dự báo biến động của các yếu tố chi phí, giá cả. | C21: 0%
A23: BẢNG 1: PHÂN BỔ VỐN ĐẦU TƯ THEO TIẾN ĐỘ THỰC HIỆN
A24: STT | B24: Nội dung | C24: Tiến độ thực hiện (năm)
C25: 1 | D25: 2 | E25: 3 | F25: 4 | G25: 5
A26: 1 | B26: Mức phân bổ vốn từng năm (%)
A27: 2 | B27: Vốn phân bổ (tỷ đồng) | C27: =C26*$C$9 -> 0 | D27: =D26*$C$9 -> 0 | E27: =E26*$C$9 -> 0 | F27: =F26*$C$9 -> 0 | G27: =G26*$C$9 -> 0
A29: BẢNG 2 TÍNH MỨC ĐỘ TRƯỢT GIÁ BÌNH QUÂN
A30: STT | B30: Chỉ tiêu | C30: Tiến độ thực hiện (năm)
C31: 1 | D31: 2 | E31: 3 | F31: 4 | G31: 5
A32: 1 | B32: Chỉ số giá xây dựng (theo công bố của Bộ Xây dựng) | C32: 139 | D32: 144 | E32: 149 | F32: 175 | G32: 254
A33: 2 | B33: Hệ số trượt giá (chỉ số giá năm đó chia cho chỉ số giá năm liền trước) | D33: =D32/C32 -> 1.036 | E33: =E32/D32 -> 1.035 | F33: =F32/E32 -> 1.174 | G33: =G32/F32 -> 1.451
A34: 3 | B34: Mức độ trượt giá từng năm | D34: =D33-1 -> 0.036 | E34: =E33-1 -> 0.035 | F34: =F33-1 -> 0.174 | G34: =G33-1 -> 0.451
A35: 4 | B35: Mức độ trượt giá trung bình hàng năm IXDbq | G35: =ROUND(AVERAGE(D34:G34),G31-1) -> 0.174
A37: BẢNG 3: TÍNH CHI PHÍ DỰ PHÒNG CHO YẾU TỐ TRƯỢT GIÁ
A38: STT | B38: Nội dung | C38: Tiến độ thực hiện (năm)
C39: 1 | D39: 2 | E39: 3 | F39: 4 | G39: 5
A40: 1 | B40: Chi phí thực hiện dự án theo tiến độ chưa có trượt giá (tỷ đồng) | C40: =C27 -> 0 | D40: =D27 -> 0 | E40: =E27 -> 0 | F40: =F27 -> 0 | G40: =G27 -> 0
A41: 3 | B41: Chi phí thực hiện dự án theo tiến độ đã có trượt giá | C41: =C40*(1+$G$35+$C$21)^C39 -> 0 | D41: =D40*(1+$G$35+$C$21)^D39 -> 0 | E41: =E40*(1+$G$35+$C$21)^E39 -> 0 | F41: =F40*(1+$G$35+$C$21)^F39 -> 0 | G41: =G40*(1+$G$35+$C$21)^G39 -> 0
A42: 4 | B42: Trượt giá từng năm | C42: =C41-C40 -> 0 | D42: =D41-D40 -> 0 | E42: =E41-E40 -> 0 | F42: =F41-F40 -> 0 | G42: =G41-G40 -> 0
A43: 5 | B43: Trượt giá tích luỹ (GDP2) | C43: =C42 -> 0 | D43: =C43+D42 -> 0 | E43: =D43+E42 -> 0 | F43: =E43+F42 -> 0 | G43: =F43+G42 -> 0
C45: GDP = GDP1 + GDP2 = | D45: =C13+G43 -> 6,120,752 đồng
C46: Tỷ lệ % dự phòng phí: | D46: =IF(ISERROR(D45/C9),"",D45/C9) -> 5%
A48: Ghi chú:
A49: - Điều chỉnh lại công thức khi tiến độ thực hiện thi công xây dựng công trình khác đi.
A50: - Kích chuột vào các ô bôi màu để xem hướng dẫn.

Sheet QD957
B1: BẢNG TÍNH NỘI SUY CÁC ĐỊNH MỨC TỶ LỆ | AA1: Bảng số 1: Định mức chi phí quản lý dự án
C2: Chi phí XD trước thuế (GXDTT): | D2: ='Tong hop kinh phi'!E7 -> 99,641,881 đồng
C3: Chi phí TB trước thuế (GTBTT): | D3: ='Tong hop kinh phi'!E10 -> 0 đồng | AN3: Đơn vị tính: Tỷ lệ %
C4: Tổng mức đầu tư (TMĐT) | AA4: TT | AB4: Loại công trình | AC4: Chi phí xây dựng và thiết bị (chưa có thuế GTGT) (tỷ đồng)
C5: Loại công trình: | D5: 1 | AC5: <=10 | AD5: 20 | AE5: 50 | AF5: 100 | AG5: 200 | AH5: 500 | AI5: 1,000 | AJ5: 2,000 | AK5: 5,000 | AL5: 10,000 | AM5: 20,000 | AN5: 30,000
C6: Số bước thiết kế: | D6: 1 | F6: =IF(D6=1,"Chi phí lập BCKTKT gồm cả chi phí thiết kế",IF(OR(AND(BTK=3,D8=2),AND(BTK=2,D8=2)),"Không thể thiết kế 2 hoặc 3 bước với Báo cáo kinh tế kỹ thuật","")) -> Chi phí lập BCKTKT gồm cả chi phí thiết kế | AA6: 1 | AB6: Công trình dân dụng | AC6: 2.524 | AD6: 2.141 | AE6: 1.912 | AF6: 1.537 | AG6: 1.436 | AH6: 1.254 | AI6: 1.026 | AJ6: 0.793 | AK6: 0.589 | AL6: 0.442 | AM6: 0.330 | AN6: 0.264
C7: Cấp công trình: | D7: 5 | AA7: 2 | AB7: Công trình công nghiệp | AC7: 2.657 | AD7: 2.254 | AE7: 2.013 | AF7: 1.617 | AG7: 1.512 | AH7: 1.320 | AI7: 1.080 | AJ7: 0.931 | AK7: 0.620 | AL7: 0.465 | AM7: 0.347 | AN7: 0.278
C8: Loại báo cáo: | D8: =IF(BTK=1,2,1) -> 2 | F8: =IF(AND(D6=D8,D6=1),"Lập dự án đầu tư thì không thể thiết 1 bước",IF(D2+D3=0,"",IF(AND(D8=1,(D2+D3)<15000000000),"Công trình dưới 15 tỷ phải lập DAĐT sao?",IF(AND(D8=2,(D2+D3)>=15000000000),"Công trình từ 15 tỷ trở lên phải lập DAĐT","")))) ->  | AA8: 3 | AB8: Công trình giao thông | AC8: 2.259 | AD8: 1.916 | AE8: 1.711 | AF8: 1.375 | AG8: 1.285 | AH8: 1.122 | AI8: 0.918 | AJ8: 0.791 | AK8: 0.527 | AL8: 0.395 | AM8: 0.295 | AN8: 0.236
AA9: 4 | AB9: Công trình thuỷ lợi | AC9: 2.391 | AD9: 2.029 | AE9: 1.811 | AF9: 1.455 | AG9: 1.361 | AH9: 1.188 | AI9: 0.972 | AJ9: 0.838 | AK9: 0.558 | AL9: 0.419 | AM9: 0.313 | AN9: 0.250
B10: TT | C10: LOẠI CHI PHÍ | D10: Ga | E10: Gb | F10: Na | G10: Nb | H10: ĐMTL (%) | AA10: 5 | AB10: Công trình hạ tầng kỹ thuật | AC10: 2.125 | AD10: 1.803 | AE10: 1.610 | AF10: 1.294 | AG10: 1.210 | AH10: 1.056 | AI10: 0.864 | AJ10: 0.744 | AK10: 0.496 | AL10: 0.372 | AM10: 0.278 | AN10: 0.222
B11: I | C11: CHI PHÍ QUẢN LÝ DỰ ÁN (QĐ 957)
B12: 1 | C12: Chi phí quản lý dự án | D12: =IF(XDTT+TBTT<=AC5,AC5,OFFSET(AC5,0,J12-1)) -> 10 | E12: =OFFSET(AC5,0,K12-1) -> 10 | F12: =IF(D12=E12,OFFSET(AC5,LCT,K12-1),OFFSET(AC5,LCT,J12-1)) -> 2.5240 | G12: =OFFSET(AC5,LCT,K12-1) -> 2.5240 | H12: =ROUND(IF(D12=E12,OFFSET(AC5,LCT,K12-1),FORECAST(XDTT+TBTT,F12:G12,D12:E12)),3) -> 2.524 | J12: =IF(XDTT+TBTT>AN5,K12,K12+1) -> 2 | K12: =IF(XDTT+TBTT<=AC5,1,MATCH(XDTT+TBTT,AC5:AN5,1)) -> 1 | AA12: Bảng số 2: Định mức chi phí lập dự án đầu tư
B13: II | C13: CHI PHÍ TƯ VẤN ĐẦU TƯ XÂY DỰNG CÔNG TRÌNH (QĐ 957) | AN13: Đơn vị tính: Tỷ lệ %
B14: =IF(C14<>"",COUNTA($C$14:C14)-COUNTIF($C$14:C14,""),"") -> 1 | C14: =IF(D8=1,"Chi phí lập dự án đầu tư xây dựng công trình","Chi phí lập báo cáo KTKT") -> Chi phí lập báo cáo KTKT | D14: =IF(D8=1,IF(XDTT+TBTT<=AC15,AC15,OFFSET(AC15,0,J14-1)),IF(XDTT+TBTT<=AC25,AC25,OFFSET(AC25,0,L14-1))) -> 3 | E14: =IF(D8=1,OFFSET(AC15,0,K14-1),OFFSET(AC25,0,K14-1)) -> 3 | F14: =IF(D8=1,IF(D14=E14,OFFSET(AC15,LCT,K14-1),OFFSET(AC15,LCT,J14-1)),IF(D14=E14,OFFSET(AC25,LCT,K14-1),OFFSET(AC25,LCT,J14-1))) -> 3.6000 | G14: =IF(D8=1,OFFSET(AC15,LCT,K14-1),OFFSET(AC25,LCT,K14-1)) -> 3.6000 | H14: =IF(D8=2,ROUND(IF(D14=E14,OFFSET(AC25,LCT,K16-1),FORECAST(XDTT+TBTT,F14:G14,D14:E14)),3),ROUND(IF(D14=E14,OFFSET(AC15,LCT,K14-1),FORECAST(XDTT+TBTT,F14:G14,D14:E14)),3)) -> 3.600 | J14: =IF(XDTT+TBTT>AN15,K14,K14+1) -> 2 | K14: =IF(D8=1,IF(XDTT+TBTT<=AC15,1,MATCH(XDTT+TBTT,AC15:AN15,1)),IF(XDTT+TBTT<=AC25,1,MATCH(XDTT+TBTT,AC25:AE25,1))) -> 1 | L14: =IF(XDTT+TBTT>AE25,M14,M14+1) -> 2 | M14: =IF(XDTT+TBTT<=AC25,1,MATCH(XDTT+TBTT,AC25:AN25,1)) -> 1 | AA14: TT | AB14: Loại công trình | AC14: Chi phí xây dựng và thiết bị (chưa có thuế GTGT) trong tổng mức đầu tư được duyệt (tỷ đồng)
B15: =IF(C15<>"",COUNTA($C$14:C15)-COUNTIF($C$14:C15,""),"") ->  | C15: =IF(D8=1,"Chi phí thẩm tra tính hiệu quả dự án đầu tư","") ->  | D15: =IF(D8=1,IF(XDTT+TBTT<=AC140,AC140,OFFSET(AC140,0,J15-1)),0) -> 0 | E15: =IF(D8=1,OFFSET(AC140,0,K15-1),0) -> 0 | F15: =IF(D8=1,IF(D15=E15,OFFSET(AC140,LCT,K15-1),OFFSET(AC140,LCT,J15-1)),0) -> 0.0000 | G15: =IF(D8=1,OFFSET(AC140,LCT,K15-1),0) -> 0.0000 | H15: =IF(AND(D8=1,XDTT+TBTT>=15),ROUND(IF(D15=E15,OFFSET(AC140,LCT,K15-1),FORECAST(XDTT+TBTT,F15:G15,D15:E15)),3),0) -> 0.000 | J15: =IF(XDTT+TBTT>AN140,K15,K15+1) -> 2 | K15: =IF(XDTT+TBTT<=AC140,1,MATCH(XDTT+TBTT,AC140:AN140,1)) -> 1 | AC15: >=15 | AD15: 20 | AE15: 50 | AF15: 100 | AG15: 200 | AH15: 500 | AI15: 1,000 | AJ15: 2,000 | AK15: 5,000 | AL15: 10,000 | AM15: 20,000 | AN15: 30,000
B16: =IF(C16<>"",COUNTA($C$14:C16)-COUNTIF($C$14:C16,""),"") ->  | C16: =IF(D6=3,"Chi phí thiết kế kỹ thuật",IF(D6=2,"Chi phí thiết kế bản vẽ thi công","")) ->  | D16: =IF(D8=1,IF(E16=8000,E16,IF(XDTT<=AC36,AC36,OFFSET(AC36,0,J16-1))),0) -> 0 | E16: =IF(D8=1,OFFSET(AC36,0,K16-1),0) -> 0 | F16: =IF(D8=1,IF(E16=8000,VLOOKUP(BTK,$M$19:$O$20,3,0),VLOOKUP(BTK,$M$19:$O$20,2,0)),0) -> 0.0000 | G16: =IF(D8=1,VLOOKUP(BTK,$M$19:$O$20,3,0),0) -> 0.0000 | H16: =IF(D8=1,ROUND(IF(D16=E16,G16,FORECAST(XDTT,F16:G16,D16:E16)),3),0) -> 0.000 | J16: =IF(XDTT>AM36,K16,K16+1) -> 2 | K16: =IF(XDTT<=AC36,1,MATCH(XDTT,AC36:AM36,1)) -> 1 | M16: Thiết kế kỹ thuật - 3 bước | V16: Thiết kế BVTC - 2 bước | AA16: 1 | AB16: Công trình dân dụng | AC16: 0.655 | AD16: 0.538 | AE16: 0.442 | AF16: 0.314 | AG16: 0.237 | AH16: 0.191 | AI16: 0.164 | AJ16: 0.139 | AK16: 0.111 | AL16: 0.089 | AM16: 0.070 | AN16: 0.057
B17: =IF(C17<>"",COUNTA($C$14:C17)-COUNTIF($C$14:C17,""),"") ->  | C17: =IF(D6=3,"Chi phí thiết kế bản vẽ thi công","") ->  | H17: =IF(BTK=3,ROUND(IF(D5=2,H16*60%,H16*55%),3),0) -> 0.000 | P17: DD | Q17: CN | R17: GT | S17: TL | T17: HT | V17: DD | W17: CN | X17: GT | Y17: TL | Z17: HT | AA17: 2 | AB17: Công trình công nghiệp | AC17: 0.934 | AD17: 0.794 | AE17: 0.630 | AF17: 0.467 | AG17: 0.368 | AH17: 0.345 | AI17: 0.299 | AJ17: 0.242 | AK17: 0.207 | AL17: 0.145 | AM17: 0.104 | AN17: 0.074
B18: =IF(C18<>"",COUNTA($C$14:C18)-COUNTIF($C$14:C18,""),"") -> 2 | C18: Chi phí thẩm tra thiết kế | D18: =IF(E18=8000,E18,IF(XDTT<=AC152,AC152,OFFSET(AC152,0,J18-1))) -> 10 | E18: =OFFSET(AC152,0,K18-1) -> 10 | F18: =IF(E18=8000,OFFSET(AC152,LCT,K18-1),IF(D18=E18,G18,OFFSET(AC152,LCT,J18-1))) -> 0.2060 | G18: =OFFSET(AC152,LCT,K18-1) -> 0.2060 | H18: =IF(D18=E18,G18,ROUND(FORECAST(XDTT,F18:G18,D18:E18),3)) -> 0.206 | J18: =IF(XDTT>AL152,K18,K18+1) -> 2 | K18: =IF(XDTT<=AC152,1,MATCH(XDTT,AC152:AL152,1)) -> 1 | P18: 1 | Q18: 2 | R18: 3 | S18: 4 | T18: 5 | V18: 1 | W18: 2 | X18: 3 | Y18: 4 | Z18: 5 | AA18: 3 | AB18: Công trình giao thông | AC18: 0.492 | AD18: 0.449 | AE18: 0.358 | AF18: 0.281 | AG18: 0.194 | AH18: 0.150 | AI18: 0.131 | AJ18: 0.112 | AK18: 0.089 | AL18: 0.072 | AM18: 0.058 | AN18: 0.047
B19: =IF(C19<>"",COUNTA($C$14:C19)-COUNTIF($C$14:C19,""),"") -> 3 | C19: Chi phí thẩm tra dự toán | D19: =IF(E19=8000,E19,IF(XDTT<=AC163,AC163,OFFSET(AC163,0,J19-1))) -> 10 | E19: =OFFSET(AC163,0,K19-1) -> 10 | F19: =IF(E19=8000,OFFSET(AC163,LCT,K19-1),IF(D19=E19,G19,OFFSET(AC163,LCT,J19-1))) -> 0.2000 | G19: =OFFSET(AC163,LCT,K19-1) -> 0.2000 | H19: =IF(D19=E19,G19,ROUND(FORECAST(XDTT,F19:G19,D19:E19),3)) -> 0.200 | J19: =IF(XDTT>AL163,K19,K19+1) -> 2 | K19: =IF(XDTT<=AC163,1,MATCH(XDTT,AC163:AL163,1)) -> 1 | M19: 3 | N19: =HLOOKUP(LCT,$P$18:$T$20,2) ->  | O19: =HLOOKUP(LCT,$P$18:$T$20,3) ->  | P19: =HLOOKUP($D$16,$AC$36:$AM$41,CCT+1) ->  | Q19: =HLOOKUP($D$16,$AC$57:$AM$62,CCT+1) ->  | R19: =HLOOKUP($D$16,$AC$78:$AM$83,CCT+1) ->  | S19: =HLOOKUP($D$16,$AC$99:$AM$104,CCT+1) ->  | T19: =HLOOKUP($D$16,$AC$120:$AM$125,CCT+1) ->  | V19: =HLOOKUP($D$16,$AC$46:$AM$51,CCT+1) ->  | W19: =HLOOKUP($D$16,$AC$67:$AM$72,CCT+1) ->  | X19: =HLOOKUP($D$16,$AC$88:$AM$93,CCT+1) ->  | Y19: =HLOOKUP($D$16,$AC$109:$AM$114,CCT+1) ->  | Z19: =HLOOKUP($D$16,$AC$130:$AM$135,CCT+1) ->  | AA19: 4 | AB19: Công trình thủy lợi | AC19: 0.589 | AD19: 0.536 | AE19: 0.428 | AF19: 0.300 | AG19: 0.226 | AH19: 0.182 | AI19: 0.156 | AJ19: 0.134 | AK19: 0.107 | AL19: 0.086 | AM19: 0.069 | AN19: 0.056
B20: =IF(C20<>"",COUNTA($C$14:C20)-COUNTIF($C$14:C20,""),"") -> 4 | C20: Chi phí lập HSMT, đánh giá HSDT thi công xây dựng | D20: =IF(E20=8000,E20,IF(XDTT<=AC173,AC173,OFFSET(AC173,0,J20-1))) -> 10 | E20: =OFFSET(AC173,0,K20-1) -> 10 | F20: =IF(E20=8000,OFFSET(AC173,LCT,K20-1),IF(D20=E20,G20,OFFSET(AC173,LCT,J20-1))) -> 0.3370 | G20: =OFFSET(AC173,LCT,K20-1) -> 0.3370 | H20: =IF(D20=E20,G20,ROUND(FORECAST(XDTT,F20:G20,D20:E20),3)) -> 0.337 | J20: =IF(XDTT>AL173,K20,K20+1) -> 2 | K20: =IF(XDTT<=AC173,1,MATCH(XDTT,AC173:AL173,1)) -> 1 | M20: 2 | N20: =HLOOKUP(LCT,$V$18:$Z$20,2) ->  | O20: =HLOOKUP(LCT,$V$18:$Z$20,3) ->  | P20: =HLOOKUP($E$16,$AC$36:$AM$41,CCT+1) ->  | Q20: =HLOOKUP($E$16,$AC$57:$AM$62,CCT+1) ->  | R20: =HLOOKUP($E$16,$AC$78:$AM$83,CCT+1) ->  | S20: =HLOOKUP($E$16,$AC$99:$AM$104,CCT+1) ->  | T20: =HLOOKUP($E$16,$AC$120:$AM$125,CCT+1) ->  | V20: =HLOOKUP($E$16,$AC$46:$AM$51,CCT+1) ->  | W20: =HLOOKUP($E$16,$AC$67:$AM$72,CCT+1) ->  | X20: =HLOOKUP($E$16,$AC$88:$AM$93,CCT+1) ->  | Y20: =HLOOKUP($E$16,$AC$109:$AM$114,CCT+1) ->  | Z20: =HLOOKUP($E$16,$AC$130:$AM$135,CCT+1) ->  | AA20: 5 | AB20: Công trình hạ tầng kỹ thuật | AC20: 0.514 | AD20: 0.467 | AE20: 0.374 | AF20: 0.291 | AG20: 0.200 | AH20: 0.156 | AI20: 0.137 | AJ20: 0.117 | AK20: 0.094 | AL20: 0.075 | AM20: 0.060 | AN20: 0.048
B21: =IF(C21<>"",COUNTA($C$14:C21)-COUNTIF($C$14:C21,""),"") -> 5 | C21: Chi phí lập HSMT, đánh giá HSDT mua sắm thiết bị | D21: =IF(E21=8000,E21,IF(TBTT<=AC183,AC183,OFFSET(AC183,0,J21-1))) -> 10 | E21: =OFFSET(AC183,0,K21-1) -> 10 | F21: =IF(E21=8000,OFFSET(AC183,LCT,K21-1),IF(D21=E21,G21,OFFSET(AC183,LCT,J21-1))) -> 0.2870 | G21: =OFFSET(AC183,LCT,K21-1) -> 0.2870 | H21: =IF(D3=0,0,ROUND(IF(D21=E21,G21,FORECAST(TBTT,F21:G21,D21:E21)),3)) -> 0.000 | J21: =IF(TBTT>AL183,K21,K21+1) -> 2 | K21: =IF(TBTT<=AC183,1,MATCH(TBTT,AC183:AL183,1)) -> 1
B22: =IF(C22<>"",COUNTA($C$14:C22)-COUNTIF($C$14:C22,""),"") -> 6 | C22: Chi phí giám sát thi công xây dựng | D22: =IF(E22=8000,E22,IF(XDTT<=AC193,AC193,OFFSET(AC193,0,J22-1))) -> 10 | E22: =OFFSET(AC193,0,K22-1) -> 10 | F22: =IF(E22=8000,OFFSET(AC193,LCT,K22-1),IF(D22=E22,G22,OFFSET(AC193,LCT,J22-1))) -> 2.6280 | G22: =OFFSET(AC193,LCT,K22-1) -> 2.6280 | H22: =IF(D22=E22,G22,ROUND(FORECAST(XDTT,F22:G22,D22:E22),3)) -> 2.628 | J22: =IF(XDTT>AL193,K22,K22+1) -> 2 | K22: =IF(XDTT<=AC193,1,MATCH(XDTT,AC193:AL193,1)) -> 1 | AA22: Bảng số 3: Định mức chi phí lập báo cáo kinh tế - kỹ thuật
B23: =IF(C23<>"",COUNTA($C$14:C23)-COUNTIF($C$14:C23,""),"") -> 7 | C23: Chi phí giám sát lắp đặt thiết bị | D23: =IF(E23=8000,E23,IF(TBTT<=AC203,AC203,OFFSET(AC203,0,J23-1))) -> 10 | E23: =OFFSET(AC203,0,K23-1) -> 10 | F23: =IF(E23=8000,OFFSET(AC203,LCT,K23-1),IF(D23=E23,G23,OFFSET(AC203,LCT,J23-1))) -> 0.6750 | G23: =OFFSET(AC203,LCT,K23-1) -> 0.6750 | H23: =IF(D3=0,0,IF(D23=E23,G23,ROUND(FORECAST(TBTT,F23:G23,D23:E23),3))) -> 0.000 | J23: =IF(TBTT>AL203,K23,K23+1) -> 2 | K23: =IF(TBTT<=AC203,1,MATCH(TBTT,AC203:AL203,1)) -> 1 | AE23: Đơn vị tính: Tỷ lệ %
B24: III | C24: CHI PHÍ KHÁC (176/BTC và Thông tư 19/2011/TT-BTC) | J24: =IF(LCT=1,"V",IF(LCT=2,"I",IF(LCT=3,"IV",IF(LCT=4,"III","II")))) -> V | K24: =IF(LCT=1,5,IF(LCT=2,1,IF(LCT=3,4,IF(LCT=4,3,2)))) -> 5 | AA24: TT | AB24: Loại công trình | AC24: Chi phí xây dựng và thiết bị (chưa có thuế GTGT) trong dự toán của Báo cáo kinh tế - kỹ thuật được duyệt (tỷ đồng)
B25: 1 | C25: Lệ phí thẩm định thiết kế | D25: =IF(XDTT<=AC226,AC226,OFFSET(AC226,0,J25-1)) -> 0.5 | E25: =OFFSET(AC226,0,K25-1) -> 0.5 | F25: =IF(D25=E25,OFFSET(AC226,$K$24,K25-1),OFFSET(AC226,$K$24,J25-1)) -> 0.0960 | G25: =OFFSET(AC226,$K$24,K25-1) -> 0.0960 | H25: =IF(D25=E25,G25,ROUND(FORECAST(XDTT,F25:G25,D25:E25),3)) -> 0.096 | J25: =IF(XDTT>AM226,K25,K25+1) -> 2 | K25: =IF(XDTT<=AC226,1,MATCH(XDTT,AC226:AM226,1)) -> 1 | AC25: 3 | AD25: 7 | AE25: 15
B26: 2 | C26: Lệ phí thẩm định dự toán | D26: =IF(XDTT<=AC232,AC232,OFFSET(AC232,0,J26-1)) -> 0.5 | E26: =OFFSET(AC232,0,K26-1) -> 0.5 | F26: =IF(D26=E26,OFFSET(AC232,$K$24,K26-1),OFFSET(AC232,$K$24,J26-1)) -> 0.0720 | G26: =OFFSET(AC232,$K$24,K26-1) -> 0.0720 | H26: =IF(D26=E26,G26,ROUND(FORECAST(XDTT,F26:G26,D26:E26),3)) -> 0.072 | J26: =IF(XDTT>AM232,K26,K26+1) -> 2 | K26: =IF(XDTT<=AC232,1,MATCH(XDTT,AC232:AM232,1)) -> 1 | AA26: 1 | AB26: Công trình dân dụng | AC26: 3.6 | AD26: 3.2 | AE26: 2.8
B27: 3 | C27: Phí thẩm định dự án | D27: =IF(TMDT<=AC247,AC247,OFFSET(AC247,0,J27-1)) -> 15 | E27: =OFFSET(AC247,0,K27-1) -> 15 | F27: =IF(D27=E27,OFFSET(AC247,1,K27-1),OFFSET(AC247,1,J27-1)) -> 0.0190 | G27: =OFFSET(AC247,1,K27-1) -> 0.0190 | H27: =IF(D27=E27,G27,ROUND(FORECAST(TMDT,F27:G27,D27:E27),4)) -> 0.019 | J27: =IF(TMDT>AL247,K27,K27+1) -> 2 | K27: =IF(TMDT<=AC247,1,MATCH(TMDT,AC247:AL247,1)) -> 1 | AA27: 2 | AB27: Công trình công nghiệp | AC27: 3.7 | AD27: 3.3 | AE27: 2.9
B28: 4 | C28: Chi phí kiểm toán | D28: =IF(TMDT<=AC212,AC212,OFFSET(AC212,0,J28-1)) -> 5 | E28: =OFFSET(AC212,0,K28-1) -> 5 | F28: =IF(D28=E28,OFFSET(AC212,2,K28-1),OFFSET(AC212,2,J28-1)) -> 0.6400 | G28: =OFFSET(AC212,2,K28-1) -> 0.6400 | H28: =IF(D28=E28,G28,ROUND(FORECAST(TMDT,F28:G28,D28:E28),3)) -> 0.640 | J28: =IF(TMDT>AJ212,K28,K28+1) -> 2 | K28: =IF(TMDT<=AC212,1,MATCH(TMDT,AC212:AJ212,1)) -> 1 | AA28: 3 | AB28: Công trình giao thông | AC28: 2.8 | AD28: 2.1 | AE28: 1.9
B29: 5 | C29: Chi phí thẩm tra phê duyệt, quyết toán vốn | D29: =IF(TMDT<=AC212,AC212,OFFSET(AC212,0,J29-1)) -> 5 | E29: =OFFSET(AC212,0,K29-1) -> 5 | F29: =IF(D29=E29,OFFSET(AC212,1,K29-1),OFFSET(AC212,1,J29-1)) -> 0.3800 | G29: =OFFSET(AC212,1,K29-1) -> 0.3800 | H29: =IF(D29=E29,G29,ROUND(FORECAST(TMDT,F29:G29,D29:E29),3)) -> 0.380 | J29: =IF(TMDT>AJ212,K29,K29+1) -> 2 | K29: =IF(TMDT<=AC212,1,MATCH(TMDT,AC212:AJ212,1)) -> 1 | AA29: 4 | AB29: Công trình thuỷ lợi | AC29: 3.4 | AD29: 3 | AE29: 2.8
AA30: 5 | AB30: Công trình hạ tầng kỹ thuật | AC30: 3.2 | AD30: 2.6 | AE30: 2.3
AA32: 3.3.10. Định mức chi phí thiết kế công trình dân dụng
AA33: Bảng số 4: Định mức chi phí thiết kế kỹ thuật của công trình dân dụng có yêu cầu thiết kế 3 bước
M34: TMDT | N34: =D4/10^9 -> 0 | AM34: Đơn vị tính: Tỷ lệ %
M35: XDTT | N35: =D2/10^9 -> 0.099641881 | AA35: TT | AB35: Cấp công trình | AC35: Chi phí xây dựng (chưa có thuế GTGT) trong dự toán công trình được duyệt (tỷ đồng)
M36: TBTT | N36: =D3/10^9 -> 0 | AC36: <=7 | AD36: 10 | AE36: 20 | AF36: 50 | AG36: 100 | AH36: 200 | AI36: 500 | AJ36: 1,000 | AK36: 2,000 | AL36: 5,000 | AM36: 8,000
M37: Thiết kế 1 bước | AA37: 1 | AB37: Cấp đặc biệt | AC37: 2.74 | AD37: 2.74 | AE37: 2.38 | AF37: 2.00 | AG37: 1.82 | AH37: 1.66 | AI37: 1.40 | AJ37: 1.13 | AK37: 0.97 | AL37: 0.75 | AM37: 0.58
M38: Thiết kế 2 bước | AA38: 2 | AB38: Cấp I | AC38: 2.48 | AD38: 2.48 | AE38: 2.17 | AF38: 1.82 | AG38: 1.64 | AH38: 1.51 | AI38: 1.27 | AJ38: 1.03 | AK38: 0.89 | AL38: 0.68 | AM38: 0.53
M39: Thiết kế 3 bước | AA39: 3 | AB39: Cấp II | AC39: 2.36 | AD39: 2.25 | AE39: 1.96 | AF39: 1.66 | AG39: 1.51 | AH39: 1.37 | AI39: 1.16 | AJ39: 0.95 | AK39: 0.80 | AL39: 0.62 | AM39: 0.47
M40: Loại công trình | AA40: 4 | AB40: Cấp III | AC40: 2.12 | AD40: 2.03 | AE40: 1.76 | AF40: 1.48 | AG40: 1.34 | AH40: 1.23 | AI40: 1.04 | AJ40: 0.85 | AK40: 0.72 | AL40: 0.55 | AM40: 0.42
M41: Bước thiết kế | AA41: 5 | AB41: Cấp IV | AC41: 1.88 | AD41: 1.80 | AE41: 1.57 | AF41: 1.23 | AG41: 1.04 | AH41: 0.88 | AI41: 0.75 | AJ41: 0.61 | AK41: 0.61 | AL41: 0.61 | AM41: 0.61
M42: Cấp công trình
M43: Lập dự án đầu tư | AA43: Bảng số 5: Định mức chi phí thiết kế bản vẽ thi công của công trình dân dụng có yêu cầu thiết kế 2 bước
M44: Báo cáo kinh tế kỹ thuật | AM44: Đơn vị tính: Tỷ lệ %
AA45: TT | AB45: Cấp công trình | AC45: Chi phí xây dựng (chưa có thuế GTGT) trong dự toán công trình được duyệt (tỷ đồng)
AC46: <=7 | AD46: 10 | AE46: 20 | AF46: 50 | AG46: 100 | AH46: 200 | AI46: 500 | AJ46: 1,000 | AK46: 2,000 | AL46: 5,000 | AM46: 8,000
AA47: 1 | AB47: Cấp đặc biệt | AC47: 4.24 | AD47: 4.24 | AE47: 3.68 | AF47: 3.10 | AG47: 2.82 | AH47: 2.57 | AI47: 2.17 | AJ47: 1.75 | AK47: 1.50 | AL47: 1.16 | AM47: 0.90
AA48: 2 | AB48: Cấp I | AC48: 3.84 | AD48: 3.84 | AE48: 3.36 | AF48: 2.82 | AG48: 2.54 | AH48: 2.34 | AI48: 1.96 | AJ48: 1.59 | AK48: 1.38 | AL48: 1.05 | AM48: 0.82
AA49: 3 | AB49: Cấp II | AC49: 3.63 | AD49: 3.48 | AE49: 3.01 | AF49: 2.54 | AG49: 2.29 | AH49: 2.10 | AI49: 1.79 | AJ49: 1.45 | AK49: 1.24 | AL49: 0.96 | AM49: 0.73
AA50: 4 | AB50: Cấp III | AC50: 3.27 | AD50: 3.15 | AE50: 2.73 | AF50: 2.29 | AG50: 2.08 | AH50: 1.90 | AI50: 1.62 | AJ50: 1.31 | AK50: 1.11 | AL50: 0.86 | AM50: 0.65
AA51: 5 | AB51: Cấp IV | AC51: 2.90 | AD51: 2.78 | AE51: 2.43 | AF51: 1.91 | AG51: 1.62 | AH51: 1.37 | AI51: 1.16 | AJ51: 0.95 | AK51: 0.95 | AL51: 0.95 | AM51: 0.95
AA53: 3.3.11. Định mức chi phí thiết kế công trình công nghiệp
AA54: Bảng số 6: Định mức chi phí thiết kế kỹ thuật của công trình công nghiệp có yêu cầu thiết kế 3 bước
AM55: Đơn vị tính: Tỷ lệ %
AA56: TT | AB56: Cấp công trình | AC56: Chi phí xây dựng (chưa có thuế GTGT) trong dự toán công trình được duyệt (tỷ đồng)
AC57: <=7 | AD57: 10 | AE57: 20 | AF57: 50 | AG57: 100 | AH57: 200 | AI57: 500 | AJ57: 1,000 | AK57: 2,000 | AL57: 5,000 | AM57: 8,000
AA58: 1 | AB58: Cấp đặc biệt | AC58: 2.79 | AD58: 2.79 | AE58: 2.58 | AF58: 2.21 | AG58: 2.01 | AH58: 1.82 | AI58: 1.66 | AJ58: 1.45 | AK58: 1.23 | AL58: 0.95 | AM58: 0.73
AA59: 2 | AB59: Cấp I | AC59: 2.33 | AD59: 2.33 | AE59: 2.15 | AF59: 1.83 | AG59: 1.67 | AH59: 1.51 | AI59: 1.38 | AJ59: 1.21 | AK59: 1.03 | AL59: 0.79 | AM59: 0.61
AA60: 3 | AB60: Cấp II | AC60: 1.99 | AD60: 1.94 | AE60: 1.79 | AF60: 1.53 | AG60: 1.39 | AH60: 1.26 | AI60: 1.15 | AJ60: 1.01 | AK60: 0.86 | AL60: 0.66 | AM60: 0.51
AA61: 4 | AB61: Cấp III | AC61: 1.73 | AD61: 1.69 | AE61: 1.56 | AF61: 1.32 | AG61: 1.2 | AH61: 1.1 | AI61: 1.01 | AJ61: 0.9 | AK61: 0.77 | AL61: 0.59 | AM61: 0.46
AA62: 5 | AB62: Cấp IV | AC62: 1.54 | AD62: 1.5 | AE62: 1.39 | AF62: 1.17 | AG62: 1.08 | AH62: 0.92 | AI62: 0.78 | AJ62: 0.67 | AK62: 0.67 | AL62: 0.67 | AM62: 0.67
AA64: Bảng số 7: Định mức chi phí thiết kế bản vẽ thi công của công trình công nghiệp có yêu cầu thiết kế 2 bước
AM65: Đơn vị tính: Tỷ lệ %
AA66: TT | AB66: Cấp công trình | AC66: Chi phí xây dựng (chưa có thuế GTGT) trong dự toán công trình được duyệt (tỷ đồng)
AC67: <=7 | AD67: 10 | AE67: 20 | AF67: 50 | AG67: 100 | AH67: 200 | AI67: 500 | AJ67: 1,000 | AK67: 2,000 | AL67: 5,000 | AM67: 8,000
AA68: 1 | AB68: Cấp đặc biệt | AC68: 4.67 | AD68: 4.67 | AE68: 4.12 | AF68: 3.53 | AG68: 3.21 | AH68: 2.91 | AI68: 2.65 | AJ68: 2.32 | AK68: 1.96 | AL68: 1.52 | AM68: 1.16
AA69: 2 | AB69: Cấp I | AC69: 3.73 | AD69: 3.73 | AE69: 3.44 | AF69: 2.92 | AG69: 2.67 | AH69: 2.41 | AI69: 2.2 | AJ69: 1.93 | AK69: 1.64 | AL69: 1.26 | AM69: 0.97
AA70: 3 | AB70: Cấp II | AC70: 3.07 | AD70: 2.99 | AE70: 2.76 | AF70: 2.35 | AG70: 2.15 | AH70: 1.94 | AI70: 1.77 | AJ70: 1.55 | AK70: 1.32 | AL70: 1.02 | AM70: 0.78
AA71: 4 | AB71: Cấp III | AC71: 2.76 | AD71: 2.69 | AE71: 2.49 | AF71: 2.11 | AG71: 1.92 | AH71: 1.75 | AI71: 1.61 | AJ71: 1.44 | AK71: 1.22 | AL71: 0.94 | AM71: 0.72
AA72: 5 | AB72: Cấp IV | AC72: 2.45 | AD72: 2.39 | AE72: 2.21 | AF72: 1.87 | AG72: 1.72 | AH72: 1.46 | AI72: 1.24 | AJ72: 1.06 | AK72: 1.06 | AL72: 1.06 | AM72: 1.06
AA74: 3.3.12. Định mức chi phí thiết kế công trình giao thông
AA75: Bảng số 8: Định mức chi phí thiết kế kỹ thuật của công trình giao thông có yêu cầu thiết kế 3 bước
AM76: Đơn vị tính: Tỷ lệ %
AA77: TT | AB77: Cấp công trình | AC77: Chi phí xây dựng (chưa có thuế GTGT) trong dự toán công trình được duyệt (tỷ đồng)
AC78: <=7 | AD78: 10 | AE78: 20 | AF78: 50 | AG78: 100 | AH78: 200 | AI78: 500 | AJ78: 1,000 | AK78: 2,000 | AL78: 5,000 | AM78: 8,000
AA79: 1 | AB79: Cấp đặc biệt | AC79: 1.81 | AD79: 1.81 | AE79: 1.67 | AF79: 1.46 | AG79: 1.26 | AH79: 1145.000 | AI79: 1.06 | AJ79: 0.91 | AK79: 0.76 | AL79: 0.58 | AM79: 0.44
AA80: 2 | AB80: Cấp I | AC80: 1.11 | AD80: 1.11 | AE80: 1.05 | AF80: 0.87 | AG80: 0.81 | AH80: 0.73 | AI80: 0.67 | AJ80: 0.57 | AK80: 0.48 | AL80: 0.37 | AM80: 0.28
AA81: 3 | AB81: Cấp II | AC81: 1.04 | AD81: 1.01 | AE81: 0.94 | AF81: 0.8 | AG81: 0.73 | AH81: 0.67 | AI81: 0.61 | AJ81: 0.52 | AK81: 0.44 | AL81: 0.34 | AM81: 0.26
AA82: 4 | AB82: Cấp III | AC82: 0.95 | AD82: 0.92 | AE82: 0.85 | AF82: 0.73 | AG82: 0.67 | AH82: 0.61 | AI82: 0.5 | AJ82: 0.42 | AK82: 0.24 | AL82: 0.28 | AM82: 0.21
AA83: 5 | AB83: Cấp IV | AC83: 0.85 | AD83: 0.83 | AE83: 0.76 | AF83: 0.66 | AG83: 0.6 | AH83: 0.51 | AI83: 0.43 | AJ83: 0.37 | AK83: 0.31 | AL83: 0.24 | AM83: 0.24
AA85: Bảng số 9: Định mức chi phí thiết kế bản vẽ thi công của công trình giao thông có yêu cầu thiết kế 2 bước
AM86: Đơn vị tính: Tỷ lệ %
AA87: TT | AB87: Cấp công trình | AC87: Chi phí xây dựng (chưa có thuế GTGT) trong dự toán công trình được duyệt (tỷ đồng)
AC88: <=7 | AD88: 10 | AE88: 20 | AF88: 50 | AG88: 100 | AH88: 200 | AI88: 500 | AJ88: 1,000 | AK88: 2,000 | AL88: 5,000 | AM88: 8,000
AA89: 1 | AB89: Cấp đặc biệt | AC89: 2.80 | AD89: 2.80 | AE89: 2.58 | AF89: 2.21 | AG89: 2.01 | AH89: 1.82 | AI89: 1.66 | AJ89: 1.45 | AK89: 1.23 | AL89: 0.95 | AM89: 0.73
AA90: 2 | AB90: Cấp I | AC90: 2.72 | AD90: 2.72 | AE90: 2.15 | AF90: 1.83 | AG90: 1.67 | AH90: 1.51 | AI90: 1.38 | AJ90: 1.21 | AK90: 1.03 | AL90: 0.79 | AM90: 0.61
AA91: 3 | AB91: Cấp II | AC91: 1.61 | AD91: 1.56 | AE91: 1.45 | AF91: 1.23 | AG91: 1.12 | AH91: 1.03 | AI91: 0.93 | AJ91: 0.79 | AK91: 0.67 | AL91: 0.52 | AM91: 0.40
AA92: 4 | AB92: Cấp III | AC92: 1.46 | AD92: 1.42 | AE92: 1.31 | AF92: 1.13 | AG92: 1.03 | AH92: 0.92 | AI92: 0.77 | AJ92: 0.65 | AK92: 0.55 | AL92: 0.42 | AM92: 0.32
AA93: 5 | AB93: Cấp IV | AC93: 1.31 | AD93: 1.28 | AE93: 1.18 | AF93: 1.01 | AG93: 0.92 | AH93: 0.78 | AI93: 0.66 | AJ93: 0.57 | AK93: 0.48 | AL93: 0.37 | AM93: 0.37
AA95: 3.3.13. Định mức chi phí thiết kế công trình thủy lợi
AA96: Bảng số 10: Định mức chi phí thiết kế kỹ thuật của công trình thuỷ lợi có yêu cầu thiết kế 3 bước
AM97: Đơn vị tính: Tỷ lệ %
AA98: TT | AB98: Cấp công trình | AC98: Chi phí xây dựng (chưa có thuế GTGT) trong dự toán công trình được duyệt (tỷ đồng)
AC99: <=7 | AD99: 10 | AE99: 20 | AF99: 50 | AG99: 100 | AH99: 200 | AI99: 500 | AJ99: 1,000 | AK99: 2,000 | AL99: 5,000 | AM99: 8,000
AA100: 1 | AB100: Cấp đặc biệt | AC100: 2.59 | AD100: 2.59 | AE100: 2.25 | AF100: 1.91 | AG100: 1.72 | AH100: 1.57 | AI100: 1.34 | AJ100: 1.13 | AK100: 0.96 | AL100: 0.74 | AM100: 0.57
AA101: 2 | AB101: Cấp I | AC101: 2.35 | AD101: 2.35 | AE101: 2.05 | AF101: 1.73 | AG101: 1.55 | AH101: 1.43 | AI101: 1.21 | AJ101: 1.02 | AK101: 0.87 | AL101: 0.67 | AM101: 0.51
AA102: 3 | AB102: Cấp II | AC102: 2.22 | AD102: 2.13 | AE102: 1.86 | AF102: 1.57 | AG102: 1.42 | AH102: 1.31 | AI102: 1.06 | AJ102: 0.91 | AK102: 0.76 | AL102: 0.58 | AM102: 0.45
AA103: 4 | AB103: Cấp III | AC103: 2.01 | AD103: 1.93 | AE103: 1.67 | AF103: 1.40 | AG103: 1.27 | AH103: 1.08 | AI103: 0.92 | AJ103: 0.78 | AK103: 0.67 | AL103: 0.51 | AM103: 0.40
AA104: 5 | AB104: Cấp IV | AC104: 1.77 | AD104: 1.70 | AE104: 1.49 | AF104: 1.10 | AG104: 0.93 | AH104: 0.80 | AI104: 0.67 | AJ104: 0.58 | AK104: 0.49 | AL104: 0.38 | AM104: 0.38
AA106: Bảng số 11: Định mức chi phí thiết kế bản vẽ thi công của công trình thuỷ lợi có yêu cầu thiết kế 2 bước
AM107: Đơn vị tính: Tỷ lệ %
AA108: TT | AB108: Cấp công trình | AC108: Chi phí xây dựng (chưa có thuế GTGT) trong dự toán công trình được duyệt (tỷ đồng)
AC109: <=7 | AD109: 10 | AE109: 20 | AF109: 50 | AG109: 100 | AH109: 200 | AI109: 500 | AJ109: 1000 | AK109: 2000 | AL109: 5000 | AM109: 8000
AA110: 1 | AB110: Cấp đặc biệt | AC110: 4.01 | AD110: 4.01 | AE110: 3.48 | AF110: 2.96 | AG110: 2.66 | AH110: 2.43 | AI110: 2.07 | AJ110: 1.75 | AK110: 1.48 | AL110: 1.14 | AM110: 0.88
AA111: 2 | AB111: Cấp I | AC111: 3.64 | AD111: 3.64 | AE111: 3.17 | AF111: 2.68 | AG111: 2.40 | AH111: 2.21 | AI111: 1.87 | AJ111: 1.58 | AK111: 1.34 | AL111: 1.03 | AM111: 0.79
AA112: 3 | AB112: Cấp II | AC112: 3.42 | AD112: 3.29 | AE112: 2.87 | AF112: 2.41 | AG112: 2.19 | AH112: 2.01 | AI112: 1.62 | AJ112: 1.38 | AK112: 1.17 | AL112: 0.90 | AM112: 0.51
AA113: 4 | AB113: Cấp III | AC113: 3.11 | AD113: 2.98 | AE113: 2.58 | AF113: 2.16 | AG113: 1.96 | AH113: 1.67 | AI113: 1.42 | AJ113: 1.21 | AK113: 1.03 | AL113: 0.79 | AM113: 0.46
AA114: 5 | AB114: Cấp IV | AC114: 2.74 | AD114: 2.63 | AE114: 2.31 | AF114: 1.70 | AG114: 1.44 | AH114: 1.23 | AI114: 1.04 | AJ114: 0.89 | AK114: 0.75 | AL114: 0.58 | AM114: 0.58
AA116: 3.3.14. Định mức chi phí thiết kế công trình hạ tầng kỹ thuật
AA117: Bảng số 12: Định mức chi phí thiết kế kỹ thuật của công trình hạ tầng kỹ thuật có yêu cầu thiết kế 3 bước
AM118: Đơn vị tính: Tỷ lệ %
AA119: TT | AB119: Cấp công trình | AC119: Chi phí xây dựng (chưa có thuế GTGT) trong dự toán công trình được duyệt (tỷ đồng)
AC120: <=7 | AD120: 10 | AE120: 20 | AF120: 50 | AG120: 100 | AH120: 200 | AI120: 500 | AJ120: 1,000 | AK120: 2,000 | AL120: 5,000 | AM120: 8,000
AA121: 1 | AB121: Cấp đặc biệt | AC121: 1.95 | AD121: 1.95 | AE121: 1.69 | AF121: 1.42 | AG121: 1.29 | AH121: 1.18 | AI121: 0.99 | AJ121: 0.84 | AK121: 0.72 | AL121: 0.55 | AM121: 0.42
AA122: 2 | AB122: Cấp I | AC122: 1.77 | AD122: 1.77 | AE122: 1.54 | AF122: 1.31 | AG122: 1.17 | AH122: 1.07 | AI122: 0.85 | AJ122: 0.72 | AK122: 0.61 | AL122: 0.47 | AM122: 0.31
AA123: 3 | AB123: Cấp II | AC123: 1.68 | AD123: 1.61 | AE123: 1.41 | AF123: 1.18 | AG123: 1.06 | AH123: 0.98 | AI123: 0.78 | AJ123: 0.67 | AK123: 0.57 | AL123: 0.44 | AM123: 0.29
AA124: 4 | AB124: Cấp III | AC124: 1.50 | AD124: 1.44 | AE124: 1.26 | AF124: 1.05 | AG124: 0.96 | AH124: 0.84 | AI124: 0.76 | AJ124: 0.64 | AK124: 0.55 | AL124: 0.42 | AM124: 0.27
AA125: 5 | AB125: Cấp IV | AC125: 1.34 | AD125: 1.28 | AE125: 1.11 | AF125: 0.88 | AG125: 0.8 | AH125: 0.6 | AI125: 0.58 | AJ125: 0.5 | AK125: 0.42 | AL125: 0.32 | AM125: 0.32
AA127: Bảng số 13: Định mức chi phí thiết kế bản vẽ thi công của công trình hạ tầng kỹ thuật có yêu cầu thiết kế 2 bước
AM128: Đơn vị tính: Tỷ lệ %
AA129: TT | AB129: Cấp công trình | AC129: Chi phí xây dựng (chưa có thuế GTGT) trong dự toán công trình được duyệt (tỷ đồng)
AC130: <=7 | AD130: 10 | AE130: 20 | AF130: 50 | AG130: 100 | AH130: 200 | AI130: 500 | AJ130: 1,000 | AK130: 2,000 | AL130: 5,000 | AM130: 8,000
AA131: 1 | AB131: Cấp đặc biệt | AC131: 3.02 | AD131: 3.02 | AE131: 2.61 | AF131: 2.2 | AG131: 1.99 | AH131: 1.82 | AI131: 1.53 | AJ131: 1.3 | AK131: 1.11 | AL131: 0.85 | AM131: 0.65
AA132: 2 | AB132: Cấp I | AC132: 2.74 | AD132: 2.74 | AE132: 2.38 | AF132: 2.03 | AG132: 1.81 | AH132: 1.65 | AI132: 1.31 | AJ132: 1.11 | AK132: 0.94 | AL132: 0.72 | AM132: 0.56
AA133: 3 | AB133: Cấp II | AC133: 2.58 | AD133: 2.48 | AE133: 2.15 | AF133: 1.81 | AG133: 1.64 | AH133: 1.51 | AI133: 1.21 | AJ133: 1.02 | AK133: 0.87 | AL133: 0.67 | AM133: 0.51
AA134: 4 | AB134: Cấp III | AC134: 2.32 | AD134: 2.23 | AE134: 1.94 | AF134: 1.62 | AG134: 1.48 | AH134: 1.29 | AI134: 1.17 | AJ134: 0.99 | AK134: 0.84 | AL134: 0.64 | AM134: 0.41
AA135: 5 | AB135: Cấp IV | AC135: 2.07 | AD135: 1.98 | AE135: 1.72 | AF135: 1.35 | AG135: 1.23 | AH135: 0.92 | AI135: 0.89 | AJ135: 0.76 | AK135: 0.64 | AL135: 0.49 | AM135: 0.49
AA137: Bảng số 14: Định mức chi phí thẩm tra tính hiệu quả và tính khả thi của dự án đầu tư
AN138: Đơn vị tính: Tỷ lệ %
AA139: TT | AB139: Loại công trình | AC139: Chi phí xây dựng và thiết bị (chưa có thuế GTGT) trong tổng mức đầu tư được duyệt (tỷ đồng)
AC140: >=15 | AD140: 20 | AE140: 50 | AF140: 100 | AG140: 200 | AH140: 500 | AI140: 1,000 | AJ140: 2,000 | AK140: 5,000 | AL140: 10,000 | AM140: 20,000 | AN140: 30,000
AA141: 1 | AB141: Công trình dân dụng | AC141: 0.098 | AD141: 0.081 | AE141: 0.066 | AF141: 0.047 | AG141: 0.035 | AH141: 0.023 | AI141: 0.020 | AJ141: 0.017 | AK141: 0.014 | AL141: 0.010 | AM141: 0.008 | AN141: 0.006
AA142: 2 | AB142: Công trình công nghiệp | AC142: 0.140 | AD142: 0.119 | AE142: 0.095 | AF142: 0.070 | AG142: 0.055 | AH142: 0.041 | AI142: 0.036 | AJ142: 0.029 | AK142: 0.025 | AL142: 0.015 | AM142: 0.010 | AN142: 0.007
AA143: 3 | AB143: Công trình giao thông | AC143: 0.074 | AD143: 0.067 | AE143: 0.054 | AF143: 0.042 | AG143: 0.029 | AH143: 0.018 | AI143: 0.016 | AJ143: 0.013 | AK143: 0.011 | AL143: 0.007 | AM143: 0.005 | AN143: 0.004
AA144: 4 | AB144: Công trình thuỷ lợi | AC144: 0.088 | AD144: 0.080 | AE144: 0.064 | AF144: 0.045 | AG144: 0.034 | AH144: 0.022 | AI144: 0.019 | AJ144: 0.016 | AK144: 0.013 | AL144: 0.009 | AM144: 0.007 | AN144: 0.005
AA145: 5 | AB145: Công trình hạ tầng | AC145: 0.077 | AD145: 0.070 | AE145: 0.056 | AF145: 0.044 | AG145: 0.030 | AH145: 0.019 | AI145: 0.017 | AJ145: 0.014 | AK145: 0.012 | AL145: 0.008 | AM145: 0.006 | AN145: 0.004
AA147: Bảng số 15: Định mức chi phí thẩm tra thiết kế kỹ thuật đối với công trình có yêu cầu thiết kế 3 bước; thẩm tra thiết kế bản vẽ thi công
AA148: đối với công trình có yêu cầu thiết kế 1 bước và 2 bước
AL149: Đơn vị tính: Tỷ lệ %
AA150: TT | AB150: Loại công trình | AC150: Chi phí xây dựng (chưa có thuế GTGT) trong dự toán công trình hoặc
AC151: dự toán gói thầu được duyệt (tỷ đồng)
AC152: <=10 | AD152: 20 | AE152: 50 | AF152: 100 | AG152: 200 | AH152: 500 | AI152: 1,000 | AJ152: 2,000 | AK152: 5,000 | AL152: 8,000
AA153: 1 | AB153: Công trình dân dụng | AC153: 0.206 | AD153: 0.179 | AE153: 0.138 | AF153: 0.106 | AG153: 0.081 | AH153: 0.063 | AI153: 0.051 | AJ153: 0.036 | AK153: 0.028 | AL153: 0.024
AA154: 2 | AB154: Công trình công nghiệp | AC154: 0.238 | AD154: 0.206 | AE154: 0.158 | AF154: 0.121 | AG154: 0.094 | AH154: 0.073 | AI154: 0.055 | AJ154: 0.044 | AK154: 0.033 | AL154: 0.028
AA155: 3 | AB155: Công trình giao thông | AC155: 0.136 | AD155: 0.118 | AE155: 0.09 | AF155: 0.069 | AG155: 0.054 | AH155: 0.041 | AI155: 0.031 | AJ155: 0.026 | AK155: 0.02 | AL155: 0.017
AA156: 4 | AB156: Công trình thuỷ lợi | AC156: 0.151 | AD156: 0.13 | AE156: 0.1 | AF156: 0.076 | AG156: 0.06 | AH156: 0.046 | AI156: 0.035 | AJ156: 0.029 | AK156: 0.021 | AL156: 0.018
AA157: 5 | AB157: Công trình hạ tầng kỹ | AC157: 0.158 | AD157: 0.138 | AE157: 0.106 | AF157: 0.081 | AG157: 0.063 | AH157: 0.049 | AI157: 0.038 | AJ157: 0.033 | AK157: 0.024 | AL157: 0.021
AA159: Bảng số 16: Định mức chi phí thẩm tra dự toán công trình
AL160: Đơn vị tính: Tỷ lệ %
AA161: TT | AB161: Loại công trình | AC161: Chi phí xây dựng (chưa có thuế GTGT) trong dự toán công trình hoặc
AC162: dự toán gói thầu được duyệt (tỷ đồng)
AC163: <=10 | AD163: 20 | AE163: 50 | AF163: 100 | AG163: 200 | AH163: 500 | AI163: 1,000 | AJ163: 2,000 | AK163: 5,000 | AL163: 8,000
AA164: 1 | AB164: Công trình dân dụng | AC164: 0.200 | AD164: 0.175 | AE164: 0.133 | AF164: 0.104 | AG164: 0.078 | AH164: 0.058 | AI164: 0.048 | AJ164: 0.035 | AK164: 0.026 | AL164: 0.023
AA165: 2 | AB165: Công trình công nghiệp | AC165: 0.231 | AD165: 0.200 | AE165: 0.151 | AF165: 0.118 | AG165: 0.090 | AH165: 0.069 | AI165: 0.051 | AJ165: 0.041 | AK165: 0.029 | AL165: 0.025
AA166: 3 | AB166: Công trình giao thông | AC166: 0.133 | AD166: 0.114 | AE166: 0.085 | AF166: 0.068 | AG166: 0.051 | AH166: 0.039 | AI166: 0.030 | AJ166: 0.025 | AK166: 0.018 | AL166: 0.015
AA167: 4 | AB167: Công trình thuỷ lợi | AC167: 0.146 | AD167: 0.126 | AE167: 0.095 | AF167: 0.075 | AG167: 0.058 | AH167: 0.044 | AI167: 0.033 | AJ167: 0.028 | AK167: 0.020 | AL167: 0.017
AA168: 5 | AB168: Công trình hạ tầng kỹ thuật | AC168: 0.153 | AD168: 0.133 | AE168: 0.103 | AF168: 0.078 | AG168: 0.059 | AH168: 0.046 | AI168: 0.036 | AJ168: 0.030 | AK168: 0.021 | AL168: 0.018
AA170: Bảng số 17: Định mức chi phí lập hồ sơ mời thầu, đánh giá hồ sơ dự thầu thi công xây dựng
AL171: Đơn vị tính: Tỷ lệ %
AA172: TT | AB172: Loại công trình | AC172: Chi phí xây dựng (chưa có thuế GTGT) trong dự toán gói thầu được duyệt (tỷ đồng)
AC173: <=10 | AD173: 20 | AE173: 50 | AF173: 100 | AG173: 200 | AH173: 500 | AI173: 1,000 | AJ173: 2,000 | AK173: 5,000 | AL173: 8,000
AA174: 1 | AB174: Công trình dân dụng | AC174: 0.337 | AD174: 0.270 | AE174: 0.152 | AF174: 0.099 | AG174: 0.059 | AH174: 0.043 | AI174: 0.030 | AJ174: 0.026 | AK174: 0.022 | AL174: 0.019
AA175: 2 | AB175: Công trình công nghiệp | AC175: 0.439 | AD175: 0.303 | AE175: 0.169 | AF175: 0.115 | AG175: 0.074 | AH175: 0.053 | AI175: 0.040 | AJ175: 0.034 | AK175: 0.027 | AL175: 0.023
AA176: 3 | AB176: Công trình giao thông | AC176: 0.270 | AD176: 0.185 | AE176: 0.118 | AF176: 0.070 | AG176: 0.045 | AH176: 0.035 | AI176: 0.022 | AJ176: 0.019 | AK176: 0.016 | AL176: 0.014
AA177: 4 | AB177: Công trình thuỷ lợi | AC177: 0.282 | AD177: 0.236 | AE177: 0.130 | AF177: 0.074 | AG177: 0.047 | AH177: 0.037 | AI177: 0.024 | AJ177: 0.021 | AK177: 0.018 | AL177: 0.016
AA178: 5 | AB178: Công trình hạ tầng kỹ thuật | AC178: 0.303 | AD178: 0.254 | AE178: 0.135 | AF178: 0.083 | AG178: 0.049 | AH178: 0.040 | AI178: 0.026 | AJ178: 0.022 | AK178: 0.019 | AL178: 0.017
AA180: Bảng số 18: Định mức chi phí lập hồ sơ mời thầu, đánh giá hồ sơ dự thầu mua sắm thiết bị
AL181: Đơn vị tính: Tỷ lệ %
AA182: TT | AB182: Loại công trình | AC182: Chi phí thiết bị (chưa có thuế GTGT) trong dự toán gói thầu được duyệt (tỷ đồng)
AC183: <=10 | AD183: 20 | AE183: 50 | AF183: 100 | AG183: 200 | AH183: 500 | AI183: 1,000 | AJ183: 2,000 | AK183: 5,000 | AL183: 8,000
AA184: 1 | AB184: Công trình dân dụng | AC184: 0.287 | AD184: 0.27 | AE184: 0.142 | AF184: 0.089 | AG184: 0.079 | AH184: 0.066 | AI184: 0.045 | AJ184: 0.035 | AK184: 0.027 | AL184: 0.023
AA185: 2 | AB185: Công trình công nghiệp | AC185: 0.439 | AD185: 0.395 | AE185: 0.224 | AF185: 0.141 | AG185: 0.122 | AH185: 0.1 | AI185: 0.068 | AJ185: 0.054 | AK185: 0.041 | AL185: 0.036
AA186: 3 | AB186: Công trình giao thông | AC186: 0.204 | AD186: 0.179 | AE186: 0.103 | AF186: 0.066 | AG186: 0.058 | AH186: 0.046 | AI186: 0.032 | AJ186: 0.026 | AK186: 0.021 | AL186: 0.019
AA187: 4 | AB187: Công trình thuỷ lợi | AC187: 0.219 | AD187: 0.191 | AE187: 0.11 | AF187: 0.07 | AG187: 0.061 | AH187: 0.049 | AI187: 0.04 | AJ187: 0.03 | AK187: 0.024 | AL187: 0.02
AA188: 5 | AB188: Công trình hạ tầng kỹ thuật | AC188: 0.236 | AD188: 0.203 | AE188: 0.122 | AF188: 0.079 | AG188: 0.068 | AH188: 0.056 | AI188: 0.044 | AJ188: 0.034 | AK188: 0.026 | AL188: 0.022
AA190: Bảng số 19: Định mức chi phí giám sát thi công xây dựng
AL191: Đơn vị tính: Tỷ lệ %
AA192: TT | AB192: Loại công trình | AC192: Chi phí xây dựng (chưa có thuế GTGT) trong dự toán gói thầu được duyệt (tỷ đồng)
AC193: <=10 | AD193: 20 | AE193: 50 | AF193: 100 | AG193: 200 | AH193: 500 | AI193: 1,000 | AJ193: 2,000 | AK193: 5,000 | AL193: 8,000
AA194: 1 | AB194: Công trình dân dụng | AC194: 2.628 | AD194: 2.282 | AE194: 1.948 | AF194: 1.512 | AG194: 1.267 | AH194: 0.974 | AI194: 0.653 | AJ194: 0.589 | AK194: 0.529 | AL194: 0.46
AA195: 2 | AB195: Công trình công nghiệp | AC195: 2.806 | AD195: 2.510 | AE195: 2.047 | AF195: 1.700 | AG195: 1.314 | AH195: 1.066 | AI195: 0.674 | AJ195: 0.607 | AK195: 0.546 | AL195: 0.474
AA196: 3 | AB196: Công trình giao thông | AC196: 2.562 | AD196: 2.160 | AE196: 1.885 | AF196: 1.405 | AG196: 1.043 | AH196: 0.822 | AI196: 0.599 | AJ196: 0.539 | AK196: 0.485 | AL196: 0.422
AA197: 4 | AB197: Công trình thuỷ lợi | AC197: 2.079 | AD197: 1.834 | AE197: 1.660 | AF197: 1.266 | AG197: 0.974 | AH197: 0.779 | AI197: 0.518 | AJ197: 0.466 | AK197: 0.419 | AL197: 0.364
AA198: 5 | AB198: Công trình hạ tầng kỹ thuật | AC198: 2.053 | AD198: 1.805 | AE198: 1.588 | AF198: 1.198 | AG198: 0.936 | AH198: 0.748 | AI198: 0.478 | AJ198: 0.431 | AK198: 0.388 | AL198: 0.337
AA200: Bảng số 20: Định mức chi phí giám sát lắp đặt thiết bị
AL201: Đơn vị tính: Tỷ lệ %
AA202: TT | AB202: Loại công trình | AC202: Chi phí thiết bị (chưa có thuế GTGT) trong dự toán gói thầu được duyệt (tỷ đồng)
AC203: <=10 | AD203: 20 | AE203: 50 | AF203: 100 | AG203: 200 | AH203: 500 | AI203: 1,000 | AJ203: 2,000 | AK203: 5,000 | AL203: 8,000
AA204: 1 | AB204: Công trình dân dụng | AC204: 0.675 | AD204: 0.572 | AE204: 0.477 | AF204: 0.315 | AG204: 0.25 | AH204: 0.214 | AI204: 0.144 | AJ204: 0.13 | AK204: 0.117 | AL204: 0.102
AA205: 2 | AB205: Công trình công nghiệp | AC205: 0.918 | AD205: 0.804 | AE205: 0.767 | AF205: 0.649 | AG205: 0.402 | AH205: 0.346 | AI205: 0.292 | AJ205: 0.262 | AK205: 0.235 | AL205: 0.204
AA206: 3 | AB206: Công trình giao thông | AC206: 0.542 | AD206: 0.464 | AE206: 0.389 | AF206: 0.256 | AG206: 0.214 | AH206: 0.178 | AI206: 0.12 | AJ206: 0.108 | AK206: 0.097 | AL206: 0.084
AA207: 4 | AB207: Công trình thuỷ lợi | AC207: 0.574 | AD207: 0.468 | AE207: 0.416 | AF207: 0.275 | AG207: 0.226 | AH207: 0.19 | AI207: 0.13 | AJ207: 0.117 | AK207: 0.105 | AL207: 0.091
AA208: 5 | AB208: Công trình hạ tầng kỹ thuật | AC208: 0.643 | AD208: 0.552 | AE208: 0.46 | AF208: 0.307 | AG208: 0.246 | AH208: 0.214 | AI208: 0.142 | AJ208: 0.127 | AK208: 0.114 | AL208: 0.099
AB210: Chi phí kiểm toán, thẩm tra phê duyệt quyết toán (Thông tư 19/2011/QĐ-BTC)
AB211: Loại chi phí | AC211: Tổng mức đầu tư (tỷ đồng)
AC212: 5 | AD212: 10 | AE212: 50 | AF212: 100 | AG212: 500 | AH212: 1000 | AI212: 10000 | AJ212: 20000
AB213: Chi phí thẩm tra, phê duyệt quyết toán vốn | AC213: 0.38 | AD213: 0.26 | AE213: 0.19 | AF213: 0.15 | AG213: 0.09 | AH213: 0.06 | AI213: 0.032 | AJ213: 0
AB214: Chi phí kiểm toán | AC214: 0.64 | AD214: 0.43 | AE214: 0.3 | AF214: 0.23 | AG214: 0.13 | AH214: 0.086 | AI214: 0.046 | AJ214: 0
AA216: Biểu mức thu lệ phí thẩm định đầu tư (109/2000/TT-BTC ngày 13/11/2000 của Bộ Tài Chính)
AA217: Nhóm | AB217: Lệ phí thẩm định | AC217: Giá trị công trình (ĐV tỷ đồng và không bao gồm thuế GTGT)
AA218: DA | AC218: Tổng mức đầu tư phê duyệt
... 28 more rows

Sheet Bia2
A2: CÔNG TY CP GIÁ XÂY DỰNG | F2: CỘNG HOÀ XÃ HỘI CHỦ NGHĨA VIỆT NAM
A3: WWW.GIAXAYDUNG.VN | F3: Độc lập - Tự do - Hạnh phúc
A5: Số : ……./……….
A9: DỰ TOÁN LẮP ĐẶT THIẾT BỊ
D11: DỰ ÁN: | E11: ='Bia1'!E11 -> 0
D12: CÔNG TRÌNH: | E12: =Ts!B4 -> NHÀ BIỆT THỰ GXD
D13: ĐỊA ĐIỂM: | E13: =Ts!B10 -> SỐ 2A, NGÕ 55, NGUYỄN NGỌC NẠI, THANH XUÂN, HÀ NỘI
D14: CHỦ ĐẦU TƯ: | E14: =Ts!B8 -> CÔNG TY GIÁ XÂY DỰNG
D16: Giá trị dự toán: | E16: ='TH CP thiet bi'!F13 -> 0 | I16: đồng
D17: ="(Bằng chữ: "&vnd(E16)&")" -> (Bằng chữ: đồng.)
H20: Hà Nội, | I20: ngày | J20: =NOW() -> 2013-12-24T23:43:21.750 | K20: tháng | L20: =NOW() -> 2013-12-24T23:43:21.750 | M20: năm | N20: =NOW() -> 2013-12-24T23:43:21.750
I21: GIÁM ĐỐC
I27: NGUYỄN THÀNH CÔNG
A30: CÔNG TY CP GIÁ XÂY DỰNG | F30: CỘNG HOÀ XÃ HỘI CHỦ NGHĨA VIỆT NAM
A31: WWW.GIAXAYDUNG.VN | F31: Độc lập - Tự do - Hạnh phúc
A39: DỰ TOÁN LẮP ĐẶT THIẾT BỊ
A40: Số : ……./…….
D42: CÔNG TRÌNH: | E42: =IF(Ts!B4="","",Ts!B4) -> NHÀ BIỆT THỰ GXD
D43: HẠNG MỤC: | E43: =IF(Ts!B6="","",Ts!B6) -> ĐỔI BẢNG MÃ FONT RẤT ĐƠN GIẢN TRONG DỰ TOÁN GXD
D44: ĐỊA ĐIỂM: | E44: =Ts!B10 -> SỐ 2A, NGÕ 55, NGUYỄN NGỌC NẠI, THANH XUÂN, HÀ NỘI
D45: CHỦ ĐẦU TƯ: | E45: =Ts!B8 -> CÔNG TY GIÁ XÂY DỰNG

Sheet TH CP thiet bi
A1: BẢNG TỔNG HỢP DỰ TOÁN CHI PHÍ THIẾT BỊ
A2: ='Bia1'!D42&'Bia1'!E42 -> CÔNG TRÌNH: NHÀ BIỆT THỰ GXD
A3: ='Bia2'!D43&'Bia2'!E43 -> HẠNG MỤC: ĐỔI BẢNG MÃ FONT RẤT ĐƠN GIẢN TRONG DỰ TOÁN GXD
F4: ĐVT: đồng
A5: STT | B5: TÊN THIẾT BỊ HAY NHÓM THIẾT BỊ | C5: CÁCH TÍNH | D5: CHI PHÍ TRƯỚC THUẾ | E5: THUẾ GTGT | F5: CHI PHÍ SAU THUẾ
A7: 1 | B7: Chi phí mua sắm thiết bị (Gmstb) | C7: bảng tính | D7: ='CP mua sam tbi'!F13 -> 0 | E7: ='CP mua sam tbi'!G13 -> 0 | F7: ='CP mua sam tbi'!H13 -> 0
A8: 2 | B8: Chi phí đào tạo và chuyển giao công nghệ (Gdtcg) | C8: bảng tính | D8: ='CP dao tao'!F22 -> 0 | E8: ='CP dao tao'!G22 -> 0 | F8: ='CP dao tao'!H22 -> 0
A9: 3 | B9: Chi phí lắp đặt thiết bị và thí nghiệm, hiệu chỉnh (Gld) | C9: (3.1)+(3.2) | D9: =D10+D11 -> 0 | E9: =E10+E11 -> 0 | F9: =F10+F11 -> 0
A10: 3.1 | B10: Chi phí lắp đặt thiết bị và thí nghiệm, hiệu chỉnh | C10: bảng tính | D10: ='Hang muc TB'!C12 -> 0 | E10: ='Hang muc TB'!D12 -> 0 | F10: ='Lap dat'!D23 -> 0
A11: 3.2 | B11: Chi phí nhà tạm tại hiện trường để ở và điều hành thi công | C11: bảng tính | D11: =F11/1.1 -> 0 | E11: =F11-D11 -> 0 | F11: ='Hang muc TB'!F12 -> 0
B12: Tổng cộng: | C12: (1)+(2)+(3) | D12: =D7+D8+D9 -> 0 | E12: =E7+E8+E9 -> 0 | F12: =F7+F8+F9 -> 0
B13: LÀM TRÒN (GTB) | D13: =ROUND(D12,-3) -> 0 | E13: =ROUND(E12,-3) -> 0 | F13: =SUM(D13:E13) -> 0
B15: NGƯỜI LẬP | C15: NGƯỜI CHỦ TRÌ
C19: Chứng chỉ KS định giá XD hạng …, số …

Sheet CP mua sam tbi
A1: BẢNG DỰ TOÁN CHI PHÍ MUA SẮM THIẾT BỊ
A2: ='Bia1'!D42&'Bia1'!E42 -> CÔNG TRÌNH: NHÀ BIỆT THỰ GXD
A3: ='Bia2'!D43&'Bia2'!E43 -> HẠNG MỤC: ĐỔI BẢNG MÃ FONT RẤT ĐƠN GIẢN TRONG DỰ TOÁN GXD
H4: ĐVT: đồng
A5: STT | B5: TÊN THIẾT BỊ HAY NHÓM THIẾT BỊ | C5: ĐƠN VỊ TÍNH | D5: KHỐI LƯỢNG | E5: ĐƠN GIÁ TRƯỚC THUẾ | F5: THÀNH TIỀN TRƯỚC THUẾ | G5: THUẾ GTGT | H5: THÀNH TIỀN SAU THUẾ | I5: THUẾ SUẤT | J5: GHI CHÚ NGUỒN MUA, BÁO GIÁ
A7: 1 | B7: Thiết bị 1 | F7: =D7*E7 -> 0 | G7: =F7*I7 -> 0 | H7: =F7+G7 -> 0 | I7: 10%
A8: 2 | B8: Thiết bị 2 | F8: =D8*E8 -> 0 | G8: =F8*I8 -> 0 | H8: =F8+G8 -> 0 | I8: 10%
A9: 3 | B9: Thiết bị 3 | F9: =D9*E9 -> 0 | G9: =F9*I9 -> 0 | H9: =F9+G9 -> 0 | I9: 10%
A10: … | B10: … | F10: =D10*E10 -> 0 | G10: =F10*I10 -> 0 | H10: =F10+G10 -> 0 | I10: 10%
A11: n | B11: Thiết bị n | F11: =D11*E11 -> 0 | G11: =F11*I11 -> 0 | H11: =F11+G11 -> 0 | I11: 10%
B12: Cộng chi phí mua sắm thiết bị (Gmstb) | F12: =SUM(F7:F11) -> 0 | G12: =SUM(G7:G11) -> 0 | H12: =SUM(H7:H11) -> 0
B13: LÀM TRÒN (GTB) | F13: =ROUND(F12,-3) -> 0 | G13: =ROUND(G12,-3) -> 0 | H13: =SUM(F13:G13) -> 0
B15: NGƯỜI LẬP | D15: NGƯỜI CHỦ TRÌ
D19: Chứng chỉ KS định giá XD hạng …, số …

Sheet CP dao tao
A1: BẢNG TỔNG HỢP CHI PHÍ ĐÀO TẠO CHUYỂN GIAO CÔNG NGHỆ
A2: ='Bia1'!D42&'Bia1'!E42 -> CÔNG TRÌNH: NHÀ BIỆT THỰ GXD
A3: ='Bia2'!D43&'Bia2'!E43 -> HẠNG MỤC: ĐỔI BẢNG MÃ FONT RẤT ĐƠN GIẢN TRONG DỰ TOÁN GXD
H4: ĐVT: đồng
A5: STT | B5: NỘI DUNG CHI PHÍ | C5: ĐVT | D5: KHỐI LƯỢNG | E5: ĐƠN GIÁ TRƯỚC THUẾ | F5: CHI PHÍ TRƯỚC THUẾ | G5: THUẾ GTGT | H5: CHI PHÍ SAU THUẾ | I5: THUẾ SUẤT
A7: I | B7: Chi phí trực tiếp | F7: =SUM(F8,F12,F13:F16) -> 0 | G7: =SUM(G8,G12,G13:G16) -> 0 | H7: =SUM(H8,H12,H13:H16) -> 0
A8: 1 | B8: Chi phí đi lại | F8: =SUM(F9:F11) -> 0 | G8: =SUM(G9:G11) -> 0 | H8: =SUM(H9:H11) -> 0
B9: - Taxi | F9: =D9*E9 -> 0 | G9: =F9*I9 -> 0 | H9: =F9+G9 -> 0 | I9: 10%
B10: - Máy bay | F10: =D10*E10 -> 0 | G10: 0 | H10: 0 | I10: 10%
B11: - Tàu | F11: 0 | G11: 0 | H11: 0 | I11: 10%
A12: 2 | B12: Chi phí ăn, ở | F12: 0 | G12: 0 | H12: 0 | I12: 10%
A13: 3 | B13: Chi phí đào tạo | F13: 0 | G13: 0 | H13: 0 | I13: 0%
A14: 4 | B14: Chi phí tài liệu học tập | F14: 0 | G14: 0 | H14: 0 | I14: 10%
A15: 5 | B15: Chi phí chuyên gia giảng dạy | F15: 0 | G15: 0 | H15: 0 | I15: 10%
B16: ... | G16: 0 | H16: 0 | I16: 10%
A17: II | B17: Chi phí khác | F17: 0 | G17: 0 | H17: 0 | I17: 10%
A18: III | B18: Chi phí chung, chi phí quản lý | F18: 0 | G18: 0 | H18: 0 | I18: 10%
A19: IV | B19: Chi phí dự phòng | F19: 0 | G19: 0 | H19: 0 | I19: 10%
B21: Tổng cộng [I + II + ... + III]: | F21: =F7+F17+F18+F19 -> 0 | G21: =G7+G17+G18+G19 -> 0 | H21: =H7+H17+H18+H19 -> 0
B22: LÀM TRÒN (Gdtcg): | F22: =ROUND(F21,-3) -> 0 | G22: =ROUND(G21,-3) -> 0 | H22: =ROUND(H21,-3) -> 0

Sheet Hang muc TB
A1: TỔNG HỢP DỰ TOÁN LẮP ĐẶT THIẾT BỊ CÁC HẠNG MỤC
A2: ='Bia1'!D42&'Bia1'!E42 -> CÔNG TRÌNH: NHÀ BIỆT THỰ GXD
A3: ='Bia2'!D43&'Bia2'!E43 -> HẠNG MỤC: ĐỔI BẢNG MÃ FONT RẤT ĐƠN GIẢN TRONG DỰ TOÁN GXD
H4: ĐVT: đồng
A5: STT | B5: HẠNG MỤC | C5: GIÁ TRỊ LẮP ĐẶT THIẾT BỊ TRƯỚC THUẾ | D5: THUẾ GTGT | E5: GIÁ TRỊ LẮP ĐẶT THIẾT BỊ SAU THUẾ | F5: CHI PHÍ XÂY DỰNG NHÀ TẠM | G5: TỔNG CỘNG | H5: KÝ HIỆU
B6: ='Bia2'!E12 -> NHÀ BIỆT THỰ GXD | C6: ='Lap dat'!D21 -> 0 | D6: ='Lap dat'!D22 -> 0 | E6: ='Lap dat'!D23 -> 0 | F6: ='Lap dat'!D24 -> 0 | G6: ='Lap dat'!D25 -> 0
G7: =SUM(C7:F7) -> 0
G8: 0
G9: 0
G10: 0
G11: 0
B12: TỔNG CỘNG | C12: =SUM(C6:C11) -> 0 | D12: 0 | E12: 0 | F12: 0 | G12: =SUM(G6:G11) -> 0 | H12: Gld

Sheet Lap dat
A1: BẢNG TỔNG HỢP DỰ TOÁN CHI PHÍ LẮP ĐẶT THIẾT BỊ
A2: ='Bia1'!D42&'Bia1'!E42 -> CÔNG TRÌNH: NHÀ BIỆT THỰ GXD
A3: ='Bia2'!D43&'Bia2'!E43 -> HẠNG MỤC: ĐỔI BẢNG MÃ FONT RẤT ĐƠN GIẢN TRONG DỰ TOÁN GXD
E4: ĐVT: đồng
A5: STT | B5: KHOẢN MỤC CHI PHÍ | C5: CÁCH TÍNH | D5: GIÁ TRỊ | E5: KÝ HIỆU | F5: HS1 | G5: HS2
B6: CHI PHÍ THEO ĐƠN GIÁ
B7: Chi phí vật liệu | D7: ='Dutoan lap dat'!L28+'Dutoan lap dat'!M28 -> 0 | E7: A
B8: Chênh lệch vật liệu | E8: CLVL
B9: Chi phí nhân công | D9: ='Dutoan lap dat'!N28 -> 0 | E9: B
B10: Chênh lệch nhân công | E10: CLNC
B11: Chi phí máy xây dựng | D11: ='Dutoan lap dat'!O28 -> 0 | E11: C
B12: Chênh lệch máy xây dựng | E12: CLM
A13: I | B13: CHI PHÍ TRỰC TIẾP
A14: 1 | B14: Chi phí vật liệu | C14: =CPVLgld -> A*1 | D14: =IF(F14=0,D7+D8,(D7+D8)*F14) -> 0 | E14: VL | F14: =ROUND(Ts!C12,3) -> 1
A15: 2 | B15: Chi phí nhân công | C15: =CPNCgld -> B*1 | D15: =IF(F15=0,D9+D10,IF(D10<>0,IF(G15<>0,D9*F15*G15+D10,D9*F15+D10),IF(G15<>0,D9*F15*G15,D9*F15))) -> 0 | E15: NC | F15: =ROUND(Ts!C13,3) -> 1
A16: 3 | B16: Chi phí máy thi công | C16: =CPMTCgld -> C*1 | D16: =IF(F16=0,D11+D12,IF(G16<>0,D11*F16*G16+D12,D11*F16+D12)) -> 0 | E16: M | F16: =ROUND(Ts!C14,3) -> 1
A17: 4 | B17: Chi phí trực tiếp khác | C17: ="(VL+NC+M)*"&F17&"%" -> (VL+NC+M)*2,5% | D17: =(D14+D15+D16)*F17% -> 0 | E17: TT | F17: =Ts!C15 -> 2.5
B18: Chi phí trực tiếp | C18: VL+NC+M+TT | D18: =SUM(D14:D17) -> 0 | E18: T
A19: II | B19: CHI PHÍ CHUNG | C19: ="T * "&F19&"%" -> T * 6,5% | D19: =D18*F19% -> 0 | E19: C | F19: =Ts!C16 -> 6.5
A20: III | B20: THU NHẬP CHỊU THUẾ TÍNH TRƯỚC | C20: ="(T+C) * "&F20&"%" -> (T+C) * 5,5% | D20: =(D18+D19)*F20% -> 0 | E20: TL | F20: =Ts!C17 -> 5.5
B21: Chi phí lắp đặt thiết bị trước thuế | C21: T+C+TL | D21: =D18+D19+D20 -> 0 | E21: G
A22: IV | B22: THUẾ GIÁ TRỊ GIA TĂNG | C22: G*TGTGT-XD | D22: =D21*F22% -> 0 | E22: GTGT | F22: =Ts!C18 -> 10
B23: Chi phí lắp đặt thiết bị sau thuế | C23: G + GTGT | D23: =D21+D22 -> 0 | E23: GLD
A24: V | B24: CHI PHÍ XÂY DỰNG NHÀ TẠM TẠI HIỆN TRƯỜNG ĐỂ Ở VÀ ĐIỀU HÀNH THI CÔNG | C24: G*tỷ lệ*(1+TGTGT-XD) | D24: =D23*F24% -> 0 | E24: GXDNT | F24: =Ts!C19 -> 1
B25: TỔNG CỘNG | C25: GLD + GXDNT | D25: =D23+D24 -> 0
B26: LÀM TRÒN | D26: =ROUND(D25,-3) -> 0
B30: NGƯỜI LẬP | C30: NGƯỜI CHỦ TRÌ
C35: Chứng chỉ KS định giá XD hạng …, số …

Sheet Dutoan lap dat
A1: BẢNG DỰ TOÁN CHI PHÍ LẮP ĐẶT THIẾT BỊ
A2: ='Bia1'!D42&'Bia1'!E42 -> CÔNG TRÌNH: NHÀ BIỆT THỰ GXD
A3: ='Bia2'!D43&'Bia2'!E43 -> HẠNG MỤC: ĐỔI BẢNG MÃ FONT RẤT ĐƠN GIẢN TRONG DỰ TOÁN GXD
O4: ĐVT: đồng
A5: STT | B5: MÃ VỮA | C5: MÃ HIỆU ĐỊNH MỨC | D5: MÃ HIỆU ĐƠN GIÁ | E5: NỘI DUNG CÔNG VIỆC | F5: ĐƠN VỊ | G5: KHỐI LƯỢNG | H5: ĐƠN GIÁ | L5: THÀNH TIỀN | P5: SỐ BỘ PHẬN GIỐNG NHAU | Q5: KÍCH THƯỚC | T5: HỆ SỐ | U5: K.L MỘT BỘ PHẬN | V5: K.L TOÀN BỘ PHẬN | W5: GHI CHÚ
H6: VẬT LIỆU | I6: VẬT LIỆU P | J6: NHÂN CÔNG | K6: MÁY | L6: VẬT LIỆU | M6: VẬT LIỆU P | N6: NHÂN CÔNG | O6: MÁY | Q6: DÀI | R6: RỘNG | S6: CAO (sâu)
A7: [1] | B7: [1a] | C7: [1b] | D7: [2] | E7: [3] | F7: [4] | G7: [5] | H7: [6] | I7: [6'] | J7: [7] | K7: [8] | L7: [9]=[5]*[6] | M7: [9']=[5]*[6'] | N7: [10]=[5]*[7] | O7: [11]=[5]*[8] | P7: [5] | Q7: [6] | R7: [6'] | S7: [7] | T7: [8] | U7: [9] | V7: [10] | W7: [11]
D28: TC | E28: Cộng | L28: =SUM(L8:L27) -> 0 | M28: =SUM(M8:M27) -> 0 | N28: =SUM(N8:N27) -> 0 | O28: =SUM(O8:W27) -> 0
L29: A | M29: Ap | N29: B | O29: C

Sheet Don gia lap dat
A1: BẢNG PHÂN TÍCH ĐƠN GIÁ CHI TIẾT LẮP ĐẶT THIẾT BỊ | N1: VL | O1: NC | P1: M | Q1: TT | R1: C | S1: TL | T1: GTGT | U1: GXDNT | V1: Cnc | W1: Gpa | X1: Gbc | Y1: Gnt | Z1: GDP
A2: ='Bia1'!D42&'Bia1'!E42 -> CÔNG TRÌNH: NHÀ BIỆT THỰ GXD | N2: ='CP xay dung'!F14 -> 1 | O2: ='CP xay dung'!F15 -> 1 | P2: ='CP xay dung'!F16 -> 1 | Q2: ='CP xay dung'!F17 -> 2.5 | R2: ='CP xay dung'!F19 -> 6.5 | S2: ='CP xay dung'!F20 -> 5.5 | T2: ='CP xay dung'!F22 -> 10 | U2: ='CP xay dung'!F24 -> 1 | V2: =Ts!H26*100 -> 51 | W2: =Ts!C20 -> 5 | X2: 5 | Y2: 5 | Z2: 10
A3: ='Bia2'!D43&'Bia2'!E43 -> HẠNG MỤC: ĐỔI BẢNG MÃ FONT RẤT ĐƠN GIẢN TRONG DỰ TOÁN GXD
K4: ĐVT: đồng
A5: STT | B5: MÃ VỮA | C5: MÃ HiỆU ĐỊNH MỨC | D5: MÃ HIỆU ĐƠN GIÁ | E5: MSVT | F5: TÊN CÔNG VIỆC / THÀNH PHẦN HAO PHÍ | G5: ĐƠN VỊ | H5: ĐỊNH MỨC HAO PHÍ | I5: ĐƠN GIÁ | J5: HỆ SỐ | K5: THÀNH TIỀN | L5: HAO PHÍ
A6: [1] | B6: [1a] | C6: [1b] | D6: [2] | E6: [3] | F6: [4] | G6: [5] | H6: [6] | I6: [7] | J6: [8] | K6: [9] | L6: [9']

Sheet TH&Chenh lech LD
A1: BẢNG TỔNG HỢP VÀ TÍNH CHÊNH LỆCH VẬT TƯ LẮP ĐẶT THIẾT BỊ
A2: ='Bia1'!D42&'Bia1'!E42 -> CÔNG TRÌNH: NHÀ BIỆT THỰ GXD
A3: ='Bia2'!D43&'Bia2'!E43 -> HẠNG MỤC: ĐỔI BẢNG MÃ FONT RẤT ĐƠN GIẢN TRONG DỰ TOÁN GXD
I4: ĐVT: đồng
A5: STT | B5: MSVT | C5: TÊN VẬT TƯ | D5: ĐƠN VỊ | E5: KHỐI LƯỢNG | F5: GIÁ VẬT TƯ GỐC | G5: GIÁ VẬT TƯ TẠI THỜI ĐIỂM LẬP DỰ TOÁN | H5: CHÊNH LỆCH | I5: THÀNH TIỀN
A6: [1] | B6: [2] | C6: [3] | D6: [4] | E6: [5] | F6: [6] | G6: [7] | H6: [8]=[7]-[6] | I6: [9]=[5]*[8]

Sheet VLSG TB (hidden)
A1: BẢNG GIÁ TRỊ CHÊNH LỆCH VẬT LIỆU TÍNH VÀO SAU CHI PHÍ LẮP ĐẶT THIẾT BỊ TRƯỚC THUẾ
A2: ='Bia1'!D42&'Bia1'!E42 -> CÔNG TRÌNH: NHÀ BIỆT THỰ GXD
A3: ='Bia2'!D43&'Bia2'!E43 -> HẠNG MỤC: ĐỔI BẢNG MÃ FONT RẤT ĐƠN GIẢN TRONG DỰ TOÁN GXD
A5: STT | B5: MSVT | C5: TÊN VẬT LIỆU | D5: ĐƠN VỊ | E5: KHỐI LƯỢNG | F5: GIÁ QUY VỀ | G5: GIÁ THỰC TẾ | H5: CHÊNH LỆCH | I5: THÀNH TIỀN
A6: [1] | B6: [2] | C6: [3] | D6: [4] | E6: [5] | F6: [6] | G6: [7] | H6: [8] | I6: [9]
A15: Ghi chú:
A16: Giá trị chênh lệch được tính vào sau giá trị dự toán xây dựng trước thuế trong bảng tổng hợp dự toán chi phí xây dựng (chèn thêm 1 dòng).
A17: Xem thêm Thông tư số 17/2000/TT-BXD của Bộ Xây dựng.

Sheet VL hien truong LD
A1: BẢNG TÍNH GIÁ VẬT LIỆU ĐẾN HIỆN TRƯỜNG LẮP ĐẶT THIẾT BỊ
A2: ='Bia1'!D42&'Bia1'!E42 -> CÔNG TRÌNH: NHÀ BIỆT THỰ GXD
A3: ='Bia2'!D43&'Bia2'!E43 -> HẠNG MỤC: ĐỔI BẢNG MÃ FONT RẤT ĐƠN GIẢN TRONG DỰ TOÁN GXD
V4: ĐVT: đồng
A5: STT | B5: MSVT | C5: LOẠI VẬT LIỆU | D5: ĐƠN VỊ | E5: KHỐI LƯỢNG | F5: TRỌNG LƯỢNG ĐƠN VỊ | G5: LOẠI ĐƯỜNG | H5: CỰ LY (Km) | I5: GIÁ CƯỚC | J5: HỆ SỐ BẬC HÀNG | K5: HỆ SỐ ĐỔ BEN | L5: CƯỚC TĂNG THÊM | M5: CHI PHÍ VẬN CHUYỂN | N5: CHI PHÍ TRUNG CHUYỂN | T5: CHI PHÍ BỐC XẾP | U5: GIÁ GỐC (GIÁ MUA) | V5: GIÁ ĐẾN HIỆN TRƯỜNG | W5: NGUỒN MUA
B6: MÃ HIỆU | N6: Bốc xếp | O6: VC bộ khởi điểm | P6: VC bộ 10m tiếp theo | Q6: VC phương tiện thô sơ kđiểm | R6: VC phương tiện thô sơ 10m tiếp | S6: Cộng chi phí trung chuyển
A7: [1] | B7: [2] | C7: [3] | D7: [4] | E7: [5] | F7: [6] | G7: [7] | H7: [8] | I7: [9] | J7: [10] | K7: [11] | L7: [12] | M7: [13] | N7: [14] | O7: [15] | P7: [16] | Q7: [17] | R7: [18] | S7: [19] | T7: [20] | U7: [21] | V7: [22] | W7: [23]

Sheet PLV lap dat
A1: BẢNG PHỤ LỤC VỮA LẮP ĐẶT THIẾT BỊ
A2: ='Bia1'!D42&'Bia1'!E42 -> CÔNG TRÌNH: NHÀ BIỆT THỰ GXD
A3: ='Bia2'!D43&'Bia2'!E43 -> HẠNG MỤC: ĐỔI BẢNG MÃ FONT RẤT ĐƠN GIẢN TRONG DỰ TOÁN GXD
H4: ĐVT: đồng
A5: STT | B5: MÃ VỮA | C5: MSVT | D5: LOẠI VẬT LIỆU | E5: ĐƠN VỊ | F5: ĐỊNH MỨC | G5: ĐƠN GIÁ | H5: THÀNH TIỀN
A6: [1] | B6: [2] | C6: [3] | D6: [4] | E6: [5] | F6: [6] | G6: [7] | H6: [8]=[6]*[7]

Sheet Nhan cong LD
A1: BẢNG LƯƠNG NHÂN CÔNG LẮP ĐẶT THIẾT BỊ
A2: ='Bia1'!D42&'Bia1'!E42 -> CÔNG TRÌNH: NHÀ BIỆT THỰ GXD
A3: ='Bia2'!D43&'Bia2'!E43 -> HẠNG MỤC: ĐỔI BẢNG MÃ FONT RẤT ĐƠN GIẢN TRONG DỰ TOÁN GXD
A4: - Mức lương tối thiểu chung (LTTC): | F4: =LTTC -> 1,050,000 | G4: đồng/tháng
A5: - Mức lương tối thiểu vùng (LTTV): | F5: =LTTV -> 2,000,000 | G5: đồng/tháng
A6: - Các khoản phụ cấp theo LTT:
B7: Phụ cấp lưu động: | D7: =Ts!C24 -> 20% LTTC | F7: =$F$4*luudong -> 210,000 | G7: đồng/tháng
B8: Phụ cấp khu vực: | D8: =Ts!C28 -> 0% LTTC | F8: =$F$4*khuvuc -> 0 | G8: đồng/tháng
B9: Phụ cấp độc hại: | D9: =Ts!C30 -> 0% LTTC | F9: =$F$4*dochai -> 0 | G9: đồng/tháng
B10: Tổng các phụ cấp theo LTT: | F10: =SUM(F7:F9) -> 210,000 | G10: đồng/tháng
A12: STT | B12: MSVT | C12: LOẠI NHÂN CÔNG | D12: CẤP BẬC | E12: HỆ SỐ LƯƠNG (HSL) | F12: LƯƠNG CẤP BẬC (LCB= HSLxLTTV) (đ/tháng) | G12: TỔNG CÁC KHOẢN PHỤ CẤP THEO LTT | H12: PHỤ CẤP THEO LƯƠNG CẤP BẬC (LCB) | N12: TỔNG L+PC (đ/công)
G13: Lưu động | H13: Lương phụ | I13: Khoán trực tiếp | J13: Không ổn định SX | K13: Thu hút | L13: Đặc biệt | M13: Ca đêm
H14: =Ts!$C$25 -> 12% LCB | I14: =Ts!$C$26 -> 4% LCB | J14: =Ts!$C$27 -> 0% LCB | K14: =thuhut -> 0% LCB | L14: =Ts!$C$31 -> 0% LCB | M14: =Ts!$C$32 -> 0% LCB
A15: [1] | B15: [2] | C15: [3] | D15: [4] | E15: [5] | F15: [6] | G15: [7] | H15: [8] | I15: [9] | J15: [10] | K15: [11] | L15: [11a] | M15: [11b] | N15: [12]

Sheet Gia ca may LD
A1: BẢNG GIÁ CA MÁY VÀ THIẾT BỊ THI CÔNG LẮP ĐẶT THIẾT BỊ | AI1: Xăng (đ/lít) | AJ1: Dầu Diezel (đ/lít) | AK1: Điện (đ/kw) | AL1: Ma dút (đ/lít) | AM1: Dầu hỏa (đ/lít) | AN1: Dầu DO (đ/lít)
A2: ='Bia1'!D42&'Bia1'!E42 -> CÔNG TRÌNH: NHÀ BIỆT THỰ GXD | AH2: GNL GCM đp: | AI2: =xang -> 19,000 | AJ2: =diezel -> 18,955 | AK2: =dien -> 1,242 | AL2: =mazut -> 13,548 | AM2: =Ts!C38 -> 0 | AN2: =Ts!C39 -> 0
A3: ='Bia2'!D43&'Bia2'!E43 -> HẠNG MỤC: ĐỔI BẢNG MÃ FONT RẤT ĐƠN GIẢN TRONG DỰ TOÁN GXD | AH3: GNC GCM ht: | AI3: =Ts!C42 -> 19,909 | AJ3: =Ts!C43 -> 19,545 | AK3: =Ts!C47 -> 2,061 | AL3: =Ts!C44 -> 14,548 | AM3: =Ts!C45 -> 0 | AN3: =Ts!C46 -> 0
S4: ĐVT: đồng
A5: STT | B5: MSVT | C5: LOẠI MÁY, THIẾT BỊ | D5: SỐ CA/ NĂM | E5: ĐỊNH MỨC KHẤU HAO, SỬA CHỮA, CHI PHÍ KHÁC / NĂM (%/GIÁ TÍNH KH) | I5: ĐỊNH MỨC TIÊU HAO NHIÊN LIỆU, NĂNG LƯỢNG 1 CA (CNL) | K5: HỆ SỐ NHIÊN LIỆU PHỤ | L5: THÀNH PHẦN CẤP BẬC THỢ ĐIỀU KHIỂN MÁY | M5: NGUYÊN GIÁ (GIÁ TÍNH KHẤU HAO) | N5: CHI PHÍ KHẤU HAO (CKH) | O5: CHI PHÍ SỬA CHỮA (CSC) | P5: CHI PHÍ NHIÊN LIỆU, NĂNG LƯỢNG (CNL) | Q5: CHI PHÍ TIỀN LƯƠNG (CTL) | R5: CHI PHÍ KHÁC (CCPK) | S5: GIÁ CA MÁY (CCM) | T5: CHI PHÍ TRONG GCM TẠI THỜI ĐIỂM GỐC | W5: CHI PHÍ NHIÊN LIỆU, NĂNG LƯỢNG TẠI THỜI ĐIỂM GỐC | X5: CHI PHÍ TIỀN LƯƠNG TẠI THỜI ĐIỂM GỐC | Y5: NGUYÊN GIÁ (GIÁ TÍNH KHẤU HAO) TẠI THỜI ĐIỂM GỐC | Z5: NGUYÊN GIÁ (GIÁ TÍNH KHẤU HAO) TẠI THỜI ĐIỂM ĐIỀU CHỈNH | AA5: GIÁ CA MÁY GỐC | AB5: CHI PHÍ NHIỀN LIỆU, NĂNG LƯỢNG TẠI THỜI ĐIỂM ĐIỀU CHỈNH | AC5: CHI PHÍ TIỀN LƯƠNG TẠI THỜI ĐIỂM ĐIỀU CHỈNH | AD5: HỆ SỐ ĐIỀU CHỈNH NGUYÊN GIÁ (K1) | AE5: HỆ SỐ ĐIỀU CHỈNH CHI PHÍ NHIÊN LIỆU, NĂNG LƯỢNG (K2) | AF5: HỆ SỐ ĐIỀU CHỈNH CHI PHÍ TIỀN LƯƠNG (K3) | AG5: GIÁ CA MÁY ĐIỀU CHỈNH (CCMĐC)
E6: Khấu hao | F6: Hệ số thu hồi khi thanh lý | G6: Sửa chữa | H6: CP # | T6: CP khấu hao | U6: CP sửa chữa | V6: CP khác
A7: [1] | B7: [2] | C7: [3] | D7: [4] | E7: [5] | F7: [6] | G7: [7] | H7: [8] | I7: [9] | K7: [10] | L7: [11] | M7: [12] | N7: [13] | O7: [14] | P7: [15] | Q7: [16] | R7: [17] | S7: [18] | T7: [6] | U7: [7] | V7: [8] | W7: [9] | X7: [10] | Y7: [11] | Z7: [12] | AA7: [12] | AB7: [13] | AC7: [14] | AD7: [15] | AE7: [16] | AF7: [17] | AG7: [18]

Sheet NhienlieuTB (hidden)
A1: BẢNG TỔNG HỢP HAO PHÍ NHIÊN LIỆU, NĂNG LƯỢNG PHẦN LẮP ĐẶT THIẾT BỊ
A2: ='Bia1'!D42&'Bia1'!E42 -> CÔNG TRÌNH: NHÀ BIỆT THỰ GXD
A3: ='Bia1'!D43&'Bia1'!E43 -> HẠNG MỤC: ĐỔI BẢNG MÃ FONT RẤT ĐƠN GIẢN TRONG DỰ TOÁN GXD
M4: ĐVT: đồng
A5: STT | B5: MSVT | C5: TÊN MÁY / THIẾT BỊ THI CÔNG | D5: ĐVT | E5: HAO PHÍ CA MÁY | F5: ĐỊNH MỨC TIÊU HAO NHIÊN LIỆU, NĂNG LƯỢNG | J5: TỔNG HAO PHÍ NHIÊN LIỆU, NĂNG LƯỢNG
F6: Xăng | G6: Điện | H6: Diezel | I6: Dầu mazut | J6: Xăng | K6: Điện | L6: Diezel | M6: Dầu mazut
A7: [1] | B7: [2] | C7: [3] | D7: [4] | E7: [5] | F7: [6] | G7: [7] | H7: [8] | I7: [9] | J7: [10] | K7: [11] | L7: [12] | M7: [13]
A14: Tổng cộng | J14: =SUM(J8:J13) -> 0 | K14: =SUM(K8:K13) -> 0 | L14: =SUM(L8:L13) -> 0 | M14: =SUM(M8:M13) -> 0

Sheet Vật tư điều chỉnh thiết bị (hidden)
A1: BẢNG GIÁ TRỊ VẬT TƯ
A2: ='Bia1'!D42&'Bia1'!E42 -> CÔNG TRÌNH: NHÀ BIỆT THỰ GXD
A3: ='Bia1'!D43&'Bia1'!E43 -> HẠNG MỤC: ĐỔI BẢNG MÃ FONT RẤT ĐƠN GIẢN TRONG DỰ TOÁN GXD
G4: Đơn vị tính: VND
A5: STT | B5: MSVT | C5: TÊN VẬT TƯ | D5: ĐƠN VỊ | E5: KHỐI LƯỢNG | F5: ĐƠN GIÁ | G5: THÀNH TIỀN | H5: TỶ TRỌNG CHI PHÍ VL, NC, MTC CT1 | I5: TỶ TRỌNG CHI PHÍ LOẠI VL, NC, NHÓM MTC CHỦ YẾU CT1
A6: [1] | B6: [2] | C6: [3] | D6: [4] | E6: [5] | F6: [6] | G6: [7] | H6: [8] | I6: [9]

Sheet Số liệu điều chỉnh HĐ thiết bị (hidden)
B1: BẢNG TỶ TRỌNG CHI PHÍ
B3: STT | C3: NỘI DUNG | F3: GIÁ TRỊ
B4: [1] | C4: [2] | F4: [3]
B5: I | C5: Vốn đầu tư xây dựng công trình (GXDCT) | F5: ='Tong hop kinh phi'!G16 -> 128,535,782
B6: 1 | C6: Chi phí xây dựng (GXD) | F6: ='Tong hop kinh phi'!G7 -> 109,606,069
B7: 2 | C7: Chi phí thiết bị (GTB) | F7: =SUM(F8:F10) -> 0
C8: + Chi phí mua sắm thiết bị (Gmstb) | F8: ='TH CP thiet bi'!F7 -> 0
C9: + Chi phí đào tạo và chuyển giao công nghệ (Gdtcg) | F9: ='TH CP thiet bi'!F8 -> 0
C10: + Chi phí lắp đặt thiết bị và thí nghiệm, hiệu chỉnh (Gld) | F10: ='TH CP thiet bi'!F9 -> 0
B11: 3 | C11: Chi phí khác (GCPK) | F11: =F5-F6-F7 -> 18,929,713
C12: + Chi phí khảo sát xây dựng | F12: ='Tong hop kinh phi'!#REF! -> 
C13: + Chi phí thiết kế công trình | F13: =SUM('Tong hop kinh phi'!#REF!) -> 
C14: + Chi phí quản lý dự án | F14: ='Tong hop kinh phi'!G12 -> 2,514,961
B15: II | C15: Các tỷ trọng chi phí theo cơ cấu chi phí và yếu tố chi phí
B16: 1 | C16: Tỷ trọng chi phí xây dựng (PXD) | F16: =IF(ISERROR(F6/$F$5),0,F6/$F$5) -> 85.27%
B17: 2 | C17: Tỷ trọng chi phí thiết bị (PTB) | F17: =IF(ISERROR(F7/$F$5),0,F7/$F$5) -> 0.00%
C18: Trong đó:
C19: + Tỷ trọng chi phí mua sắm thiết bị (Gmstb) | F19: =IF(ISERROR(F8/$F$7),0,F8/$F$7) -> 0.00%
C20: + Tỷ trọng chi phí đào tạo và chuyển giao công nghệ (Gdtcg) | F20: =IF(ISERROR(F9/$F$7),0,F9/$F$7) -> 0.00%
C21: + Tỷ trọng chi phí lắp đặt thiết bị và thí nghiệm, hiệu chỉnh (Gld) | F21: =IF(ISERROR(F10/$F$7),0,F10/$F$7) -> 0.00%
B22: 3 | C22: Tỷ trọng chi phí khác (PCPK) | F22: =IF(ISERROR(F11/$F$5),0,F11/$F$5) -> 14.73%
C23: Trong đó:
C24: + Tỷ trọng chi phí khảo sát xây dựng: | F24: =IF(ISERROR(F12/$F$11),0,F12/$F$11) -> 0.00%
C25: + Tỷ trọng chi phí thiết kế công trình: | F25: =IF(ISERROR(F13/$F$11),0,F13/$F$11) -> 0.00%
C26: + Tỷ trọng chi phí quản lý dự án: | F26: =IF(ISERROR(F14/$F$11),0,F14/$F$11) -> 13.29%
B30: BẢNG SỐ LIỆU ĐIỀU CHỈNH HỢP ĐỒNG
B31: ='Bia1'!D42&'Bia1'!E42 -> CÔNG TRÌNH: NHÀ BIỆT THỰ GXD
B32: ='Bia2'!D43&'Bia2'!E43 -> HẠNG MỤC: ĐỔI BẢNG MÃ FONT RẤT ĐƠN GIẢN TRONG DỰ TOÁN GXD
B34: - Các yếu tố điều chỉnh
C35: + Chí phí vật liệu (VL) | E35: 1
C36: + Chí phí nhân công (NC) | E36: 1
C37: + Chí phí máy thi công (MTC) | E37: 1
C38: + Tỷ lệ tạm ứng của nhà đầu tư (u) | E38: 0
C39: + Giá hợp đồng (G) | E39: 0
C40: + Chi phí điều chỉnh (T) | E40: =E35+E36+E37 -> 3
B42: Trường hợp tổng quát
B44: STT | C44: HỆ SỐ CỐ ĐỊNH a(%) | D44: TỶ TRỌNG NHÂN CÔNG b(%) | E44: TỶ TRỌNG MÁY c(%) | F44: TỶ TRỌNG VẬT LiỆU d(%)
B45: 1 | C45: a=1-(b+c+d) | D45: b=NC/G | E45: c=MTC/G | F45: d=VL/G
B46: 2 | C46: =1-(D46+E46+F46) -> 100.00% | D46: =IF(E39=0,0,E36/E39) -> 0.00% | E46: =IF(E39=0,0,E37/E39) -> 0.00% | F46: =IF(E39=0,0,E35/E39) -> 0.00%
B49: Trường hợp xét đến tỷ lệ tạm ứng hợp đồng của Chủ đầu tư cho nhà thầu
B51: STT | C51: HỆ SỐ CỐ ĐỊNH a(%) | D51: TỶ TRỌNG NHÂN CÔNG b(%) | E51: TỶ TRỌNG MÁY c(%) | F51: TỶ TRỌNG VẬT LiỆU d(%)
B52: 1 | C52: a=1-T/G*(1-u) | D52: b=NC/T*(1-a) | E52: c=MTC/T*(1-a) | F52: d=VL/T*(1-a)
B53: 2 | C53: =IF(E39=0,0,1-E40/E39*(1-E38)) -> 0.00% | D53: =E36/E40*(1-C53) -> 33.33% | E53: =E37/E40*(1-C53) -> 33.33% | F53: =E35/E40*(1-C53) -> 33.33%
B56: Trường hợp xác định trước hệ số cố định
B58: STT | C58: HỆ SỐ CỐ ĐỊNH a(%) | D58: TỶ TRỌNG NHÂN CÔNG b(%) | E58: TỶ TRỌNG MÁY c(%) | F58: TỶ TRỌNG VẬT LiỆU d(%)
B59: 1 | D59: b=NC/T*(1-a) | E59: c=MTC/T*(1-a) | F59: d=VL/T*(1-a)
B60: 2 | D60: =E36/E40*(1-C60) -> 33.33% | E60: =E37/E40*(1-C60) -> 33.33% | F60: =E35/E40*(1-C60) -> 33.33%

Sheet Du thau LD
A1: BẢNG DỰ TOÁN DỰ THẦU LẮP ĐẶT THIẾT BỊ
A2: ='Bia1'!D42&'Bia1'!E42 -> CÔNG TRÌNH: NHÀ BIỆT THỰ GXD
A3: ='Bia2'!D43&'Bia2'!E43 -> HẠNG MỤC: ĐỔI BẢNG MÃ FONT RẤT ĐƠN GIẢN TRONG DỰ TOÁN GXD
A5: STT | B5: MÃ HIỆU | C5: NỘI DUNG CÔNG VIỆC | D5: ĐƠN VỊ | E5: KHỐI LƯỢNG | F5: ĐƠN GIÁ | G5: THÀNH TIỀN | H5: ĐGVL | I5: ĐGVLP | J5: ĐGNC | K5: ĐGM | L5: TT | M5: T | N5: C | O5: TL | P5: G | Q5: GTGT | R5: GXDNT | S5: GXD
A6: [1] | B6: [2] | C6: [3] | D6: [4] | E6: [5] | F6: [6] | G6: [7]=[5]*[6]

Sheet VCLC TB (hidden)
A1: BẢNG TỔNG HỢP VẬT TƯ VẬN CHUYỂN LÊN CAO
A2: ='Bia1'!D42&'Bia1'!E42 -> CÔNG TRÌNH: NHÀ BIỆT THỰ GXD
A3: ='Bia2'!D43&'Bia2'!E43 -> HẠNG MỤC: ĐỔI BẢNG MÃ FONT RẤT ĐƠN GIẢN TRONG DỰ TOÁN GXD
A5: STT | B5: MÃ HIỆU | C5: TÊN VẬT TƯ | D5: ĐƠN VỊ | E5: KHỐI LƯỢNG
A6: [1] | B6: [2] | C6: [3] | D6: [4] | E6: [5]

Sheet GVT TB (hidden)
A1: BẢNG GIÁ TRỊ VẬT TƯ LẮP ĐẶT THIẾT BỊ
A2: ='Bia1'!D42&'Bia1'!E42 -> CÔNG TRÌNH: NHÀ BIỆT THỰ GXD
A3: ='Bia2'!D43&'Bia2'!E43 -> HẠNG MỤC: ĐỔI BẢNG MÃ FONT RẤT ĐƠN GIẢN TRONG DỰ TOÁN GXD
G4: ĐVT: đồng
A5: STT | B5: MÃ HIỆU | C5: TÊN VẬT TƯ | D5: ĐƠN VỊ | E5: KHỐI LƯỢNG | F5: ĐƠN GIÁ | G5: THÀNH TIỀN
A6: [1] | B6: [2] | C6: [3] | D6: [4] | E6: [5] | F6: [6] | G6: [7]=[5]*[6]

Sheet TDLD TB (hidden)
A1: BẢNG TIẾN ĐỘ LẮP ĐẶT THIẾT BỊ
A2: ='Bia1'!D42&'Bia1'!E42 -> CÔNG TRÌNH: NHÀ BIỆT THỰ GXD
A3: ='Bia2'!D43&'Bia2'!E43 -> HẠNG MỤC: ĐỔI BẢNG MÃ FONT RẤT ĐƠN GIẢN TRONG DỰ TOÁN GXD
A5: STT | B5: MÃ HIỆU | C5: NỘI DUNG CÔNG VIỆC | D5: ĐƠN VỊ | E5: HAO PHÍ NC | F5: TIẾN ĐỘ LẮP ĐẶT THIẾT BỊ
F6: T1 | G6: T2 | H6: T3 | I6: T4 | J6: T5

Sheet NhanCong
A1: BẢNG LƯƠNG NHÂN CÔNG XÂY DỰNG
A2: ='Bia1'!D42&'Bia1'!E42 -> CÔNG TRÌNH: NHÀ BIỆT THỰ GXD
A3: ='Bia1'!D43&'Bia1'!E43 -> HẠNG MỤC: ĐỔI BẢNG MÃ FONT RẤT ĐƠN GIẢN TRONG DỰ TOÁN GXD
A4: - Mức lương tối thiểu chung (LTTC): | E4: =LTTC -> 1,050,000 | F4: đồng/tháng
A5: - Mức lương tối thiểu vùng (LTTV): | E5: =LTTV -> 2,000,000 | F5: đồng/tháng
A6: - Các khoản phụ cấp theo LTT:
C7: Phụ cấp lưu động (20%LTTC) | F7: =$E$4*luudong -> 210,000 | G7: đồng/tháng
C8: Phụ cấp khu vực (0%LTTC) | F8: =$E$4*khuvuc -> 0 | G8: đồng/tháng
C9: Phụ cấp độc hại (0%LTTC) | F9: =$E$4*dochai -> 0 | G9: đồng/tháng
C10: Tổng các phụ cấp theo LTT | F10: =SUM(F7:F9) -> 210,000 | G10: đồng/tháng
A12: STT | B12: MÃ HIỆU | C12: CẤP BẬC | D12: HỆ SỐ LƯƠNG (HSL) | E12: LƯƠNG CẤP BẬC (LCB= HSLxLTTV) (đ/tháng) | F12: TỔNG CÁC KHOẢN PHỤ CẤP THEO LTT | G12: PHỤ CẤP THEO LƯƠNG CẤP BẬC (LCB) | M12: TỔNG L+PC (đ/công)
F13: Lưu động | G13: Lương phụ | H13: Khoán trực tiếp | I13: Không ổn định sản xuất | J13: Thu hút | K13: Đặc biệt | L13: Ca đêm
G14: 12% LCB | H14: 4% LCB | I14: 10% LCB | J14: 0% LCB | K14: 0% LCB | L14: 0% LCB
A15: A.1.8. BẢNG LƯƠNG CÔNG NHÂN XDCB (THEO NGHỊ ĐỊNH 205/2004/NĐ-CP NGÀY 14/12/2004)
A16: Nhóm I
B17: N1207 | C17: 2.0 | D17: 1.830 | E17: =D17*LTTV -> 3,660,000 | F17: =$F$10 -> 210,000 | G17: =E17*luongphu -> 439,200 | H17: =E17*khoantructiep -> 146,400 | I17: =E17*KhongOndinhSX -> 0 | J17: =E17*thuhut -> 0 | K17: 0 | M17: =ROUND(SUM(E17:L17)/26,0) -> 171,369
B18: N1257 | C18: 2.5 | D18: 1.995 | E18: 3,990,000 | F18: 210,000 | G18: 478,800 | H18: 159,600 | I18: 0 | J18: 0 | M18: =ROUND(SUM(E18:L18)/26,0) -> 186,092
B19: N1277 | C19: 2.7 | D19: 2.061 | E19: 4,122,000 | F19: 210,000 | G19: 494,640 | H19: 164,880 | I19: 0 | J19: 0 | M19: 191,982
B20: N1307 | C20: 3.0 | D20: 2.160 | E20: 4,320,000 | F20: 210,000 | G20: 518,400 | H20: 172,800 | I20: 0 | J20: 0 | M20: 200,815
B21: N1327 | C21: 3.2 | D21: 2.238 | E21: 4,476,000 | F21: 210,000 | G21: 537,120 | H21: 179,040 | I21: 0 | J21: 0 | M21: 207,775
B22: N1337 | C22: 3.3 | D22: 2.277 | E22: 4,554,000 | F22: 210,000 | G22: 546,480 | H22: 182,160 | I22: 0 | J22: 0 | M22: 211,255
B23: N1357 | C23: 3.5 | D23: 2.355 | E23: 4,710,000 | F23: 210,000 | G23: 565,200 | H23: 188,400 | I23: 0 | J23: 0 | M23: 218,215
B24: N1377 | C24: 3.7 | D24: 2.433 | E24: 4,866,000 | F24: 210,000 | G24: 583,920 | H24: 194,640 | I24: 0 | J24: 0 | M24: 225,175
B25: N1407 | C25: 4.0 | D25: 2.550 | E25: 5,100,000 | F25: 210,000 | G25: 612,000 | H25: 204,000 | I25: 0 | J25: 0 | M25: 235,615
B26: N1437 | C26: 4.3 | D26: 2.688 | E26: 5,376,000 | F26: 210,000 | G26: 645,120 | H26: 215,040 | I26: 0 | J26: 0 | M26: 247,929
B27: N1457 | C27: 4.5 | D27: 2.780 | E27: 5,560,000 | F27: 210,000 | G27: 667,200 | H27: 222,400 | I27: 0 | J27: 0 | M27: 256,138
B28: N1477 | C28: 4.7 | D28: 2.872 | E28: 5,744,000 | F28: 210,000 | G28: 689,280 | H28: 229,760 | I28: 0 | J28: 0 | M28: 264,348
B29: N1507 | C29: 5.0 | D29: 3.010 | E29: 6,020,000 | F29: 210,000 | G29: 722,400 | H29: 240,800 | I29: 0 | J29: 0 | M29: 276,662
B30: N1527 | C30: 5.2 | D30: 3.120 | E30: 6,240,000 | F30: 210,000 | G30: 748,800 | H30: 249,600 | I30: 0 | J30: 0 | M30: 286,477
B31: N1557 | C31: 5.5 | D31: 3.285 | E31: 6,570,000 | F31: 210,000 | G31: 788,400 | H31: 262,800 | I31: 0 | J31: 0 | M31: 301,200
B32: N1607 | C32: 6.0 | D32: 3.560 | E32: 7,120,000 | F32: 210,000 | G32: 854,400 | H32: 284,800 | I32: 0 | J32: 0 | M32: 325,738
B33: N1707 | C33: 7.0 | D33: 4.200 | E33: 8,400,000 | F33: 210,000 | G33: 1,008,000 | H33: 336,000 | I33: 0 | J33: 0 | M33: 382,846
A34: Nhóm II
B35: N2207 | C35: 2.0 | D35: 1.960 | E35: =D35*LTTV -> 3,920,000 | F35: 210,000 | G35: =E35*luongphu -> 470,400 | H35: =E35*khoantructiep -> 156,800 | I35: =E35*KhongOndinhSX -> 0 | J35: =E35*thuhut -> 0 | M35: =ROUND(SUM(E35:L35)/26,0) -> 182,969
B36: N2257 | C36: 2.5 | D36: 2.135 | E36: 4,270,000 | F36: 210,000 | G36: 512,400 | H36: 170,800 | I36: 0 | J36: 0 | M36: 198,585
B37: N2277 | C37: 2.7 | D37: 2.205 | E37: 4,410,000 | F37: 210,000 | G37: 529,200 | H37: 176,400 | I37: 0 | J37: 0 | M37: 204,831
B38: N2307 | C38: 3.0 | D38: 2.310 | E38: 4,620,000 | F38: 210,000 | G38: 554,400 | H38: 184,800 | I38: 0 | J38: 0 | M38: 214,200
B39: N2327 | C39: 3.2 | D39: 2.390 | E39: 4,780,000 | F39: 210,000 | G39: 573,600 | H39: 191,200 | I39: 0 | J39: 0 | M39: 221,338
B40: N2357 | C40: 3.5 | D40: 2.510 | E40: 5,020,000 | F40: 210,000 | G40: 602,400 | H40: 200,800 | I40: 0 | J40: 0 | M40: 232,046
B41: N2377 | C41: 3.7 | D41: 2.590 | E41: 5,180,000 | F41: 210,000 | G41: 621,600 | H41: 207,200 | I41: 0 | J41: 0 | M41: 239,185
B42: N2407 | C42: 4.0 | D42: 2.710 | E42: 5,420,000 | F42: 210,000 | G42: 650,400 | H42: 216,800 | I42: 0 | J42: 0 | M42: 249,892
B43: N2427 | C43: 4.2 | D43: 2.806 | E43: 5,612,000 | F43: 210,000 | G43: 673,440 | H43: 224,480 | I43: 0 | J43: 0 | M43: 258,458
B44: N2457 | C44: 4.5 | D44: 2.950 | E44: 5,900,000 | F44: 210,000 | G44: 708,000 | H44: 236,000 | I44: 0 | J44: 0 | M44: 271,308
B45: N2477 | C45: 4.7 | D45: 3.046 | E45: 6,092,000 | F45: 210,000 | G45: 731,040 | H45: 243,680 | I45: 0 | J45: 0 | M45: 279,874
B46: N2507 | C46: 5.0 | D46: 3.190 | E46: 6,380,000 | F46: 210,000 | G46: 765,600 | H46: 255,200 | I46: 0 | J46: 0 | M46: 292,723
B47: N2527 | C47: 5.2 | D47: 3.300 | E47: 6,600,000 | F47: 210,000 | G47: 792,000 | H47: 264,000 | I47: 0 | J47: 0 | M47: 302,538
B48: N2557 | C48: 5.5 | D48: 3.465 | E48: 6,930,000 | F48: 210,000 | G48: 831,600 | H48: 277,200 | I48: 0 | J48: 0 | M48: 317,262
B49: N2607 | C49: 6.0 | D49: 3.740 | E49: 7,480,000 | F49: 210,000 | G49: 897,600 | H49: 299,200 | I49: 0 | J49: 0 | M49: 341,800
B50: N2707 | C50: 7.0 | D50: 4.400 | E50: 8,800,000 | F50: 210,000 | G50: 1,056,000 | H50: 352,000 | I50: 0 | J50: 0 | M50: 400,692
A51: Nhóm III
B52: N3207 | C52: 2.0 | D52: 2.180 | E52: =D52*LTTV -> 4,360,000 | F52: 210,000 | G52: =E52*luongphu -> 523,200 | H52: =E52*khoantructiep -> 174,400 | I52: =E52*KhongOndinhSX -> 0 | J52: =E52*thuhut -> 0 | M52: =ROUND(SUM(E52:L52)/26,0) -> 202,600
B53: N3257 | C53: 2.5 | D53: 2.370 | E53: 4,740,000 | F53: 210,000 | G53: 568,800 | H53: 189,600 | I53: 0 | J53: 0 | M53: 219,554
B54: N3277 | C54: 2.7 | D54: 2.446 | E54: 4,892,000 | F54: 210,000 | G54: 587,040 | H54: 195,680 | I54: 0 | J54: 0 | M54: 226,335
B55: N3307 | C55: 3.0 | D55: 2.560 | E55: 5,120,000 | F55: 210,000 | G55: 614,400 | H55: 204,800 | I55: 0 | J55: 0 | M55: 236,508
B56: N3327 | C56: 3.2 | D56: 2.650 | E56: 5,300,000 | F56: 210,000 | G56: 636,000 | H56: 212,000 | I56: 0 | J56: 0 | M56: 244,538
B57: N3357 | C57: 3.5 | D57: 2.785 | E57: 5,570,000 | F57: 210,000 | G57: 668,400 | H57: 222,800 | I57: 0 | J57: 0 | M57: 256,585
B58: N3377 | C58: 3.7 | D58: 2.875 | E58: 5,750,000 | F58: 210,000 | G58: 690,000 | H58: 230,000 | I58: 0 | J58: 0 | M58: 264,615
B59: N3407 | C59: 4.0 | D59: 3.010 | E59: 6,020,000 | F59: 210,000 | G59: 722,400 | H59: 240,800 | I59: 0 | J59: 0 | M59: 276,662
B60: N3427 | C60: 4.2 | D60: 3.116 | E60: 6,232,000 | F60: 210,000 | G60: 747,840 | H60: 249,280 | I60: 0 | J60: 0 | M60: 286,120
B61: N3437 | C61: 4.3 | D61: 3.169 | E61: 6,338,000 | F61: 210,000 | G61: 760,560 | H61: 253,520 | I61: 0 | J61: 0 | M61: 290,849
B62: N3457 | C62: 4.5 | D62: 3.275 | E62: 6,550,000 | F62: 210,000 | G62: 786,000 | H62: 262,000 | I62: 0 | J62: 0 | M62: 300,308
B63: N3477 | C63: 4.7 | D63: 3.381 | E63: 6,762,000 | F63: 210,000 | G63: 811,440 | H63: 270,480 | I63: 0 | J63: 0 | M63: 309,766
B64: N3507 | C64: 5.0 | D64: 3.540 | E64: 7,080,000 | F64: 210,000 | G64: 849,600 | H64: 283,200 | I64: 0 | J64: 0 | M64: 323,954
B65: N3527 | C65: 5.2 | D65: 3.666 | E65: 7,332,000 | F65: 210,000 | G65: 879,840 | H65: 293,280 | I65: 0 | J65: 0 | M65: 335,197
B66: N3557 | C66: 5.5 | D66: 3.855 | E66: 7,710,000 | F66: 210,000 | G66: 925,200 | H66: 308,400 | I66: 0 | J66: 0 | M66: 352,062
B67: N3607 | C67: 6.0 | D67: 4.170 | E67: 8,340,000 | F67: 210,000 | G67: 1,000,800 | H67: 333,600 | I67: 0 | J67: 0 | M67: 380,169
B68: N3707 | C68: 7.0 | D68: 4.900 | E68: 9,800,000 | F68: 210,000 | G68: 1,176,000 | H68: 392,000 | I68: 0 | J68: 0 | M68: 445,308
A69: A.1.5. BẢNG LƯƠNG CÔNG NHÂN CÔNG TRÌNH ĐÔ THỊ (THEO NGHỊ ĐỊNH 205/2004/NĐ-CP NGÀY 14/12/2004)
A70: Nhóm I
B71: N1307dt | C71: 3.0 | D71: 2.160 | E71: =D71*LTTV -> 4,320,000 | F71: =$F$10 -> 210,000 | G71: =E71*luongphu -> 518,400 | H71: =E71*khoantructiep -> 172,800 | I71: =E71*KhongOndinhSX -> 0 | J71: =E71*thuhut -> 0 | M71: =ROUND(SUM(E71:L71)/26,0) -> 200,815
B72: N1357dt | C72: 3.5 | D72: 2.355 | E72: 4,710,000 | F72: 210,000 | G72: 565,200 | H72: 188,400 | I72: 0 | J72: 0 | M72: 218,215
B73: N1407dt | C73: 4.0 | D73: 2.550 | E73: 5,100,000 | F73: 210,000 | G73: 612,000 | H73: 204,000 | I73: 0 | J73: 0 | M73: 235,615
B74: N1457dt | C74: 4.5 | D74: 2.780 | E74: 5,560,000 | F74: 210,000 | G74: 667,200 | H74: 222,400 | I74: 0 | J74: 0 | M74: 256,138
B75: N1507dt | C75: 5.0 | D75: 3.010 | E75: 6,020,000 | F75: 210,000 | G75: 722,400 | H75: 240,800 | I75: 0 | J75: 0 | M75: 276,662
B76: N1557dt | C76: 5.5 | D76: 3.285 | E76: 6,570,000 | F76: 210,000 | G76: 788,400 | H76: 262,800 | I76: 0 | J76: 0 | M76: 301,200
B77: N1607dt | C77: 6.0 | D77: 3.560 | E77: 7,120,000 | F77: 210,000 | G77: 854,400 | H77: 284,800 | I77: 0 | J77: 0 | M77: 325,738
B78: N1707dt | C78: 7.0 | D78: 4.200 | E78: 8,400,000 | F78: 210,000 | G78: 1,008,000 | H78: 336,000 | I78: 0 | J78: 0 | M78: 382,846
A79: Nhóm II
B80: N2307dt | C80: 3.0 | D80: 2.310 | E80: =D80*LTTV -> 4,620,000 | F80: 210,000 | G80: =E80*luongphu -> 554,400 | H80: =E80*khoantructiep -> 184,800 | I80: =E80*KhongOndinhSX -> 0 | J80: =E80*thuhut -> 0 | M80: =ROUND(SUM(E80:L80)/26,0) -> 214,200
B81: N2357dt | C81: 3.5 | D81: 2.510 | E81: 5,020,000 | F81: 210,000 | G81: 602,400 | H81: 200,800 | I81: 0 | J81: 0 | M81: 232,046
B82: N2407dt | C82: 4.0 | D82: 2.710 | E82: 5,420,000 | F82: 210,000 | G82: 650,400 | H82: 216,800 | I82: 0 | J82: 0 | M82: 249,892
B83: N2457dt | C83: 4.5 | D83: 2.950 | E83: 5,900,000 | F83: 210,000 | G83: 708,000 | H83: 236,000 | I83: 0 | J83: 0 | M83: 271,308
B84: N2507dt | C84: 5.0 | D84: 3.190 | E84: 6,380,000 | F84: 210,000 | G84: 765,600 | H84: 255,200 | I84: 0 | J84: 0 | M84: 292,723
B85: N2557dt | C85: 5.5 | D85: 3.465 | E85: 6,930,000 | F85: 210,000 | G85: 831,600 | H85: 277,200 | I85: 0 | J85: 0 | M85: 317,262
B86: N2607dt | C86: 6.0 | D86: 3.740 | E86: 7,480,000 | F86: 210,000 | G86: 897,600 | H86: 299,200 | I86: 0 | J86: 0 | M86: 341,800
B87: N2707dt | C87: 7.0 | D87: 4.400 | E87: 8,800,000 | F87: 210,000 | G87: 1,056,000 | H87: 352,000 | I87: 0 | J87: 0 | M87: 400,692
A88: Nhóm III
B89: N3307dt | C89: 3.0 | D89: 2.480 | E89: =D89*LTTV -> 4,960,000 | F89: =$F$10 -> 210,000 | G89: =E89*luongphu -> 595,200 | H89: =E89*khoantructiep -> 198,400 | I89: =E89*KhongOndinhSX -> 0 | J89: =E89*thuhut -> 0 | M89: =ROUND(SUM(E89:L89)/26,0) -> 229,369
B90: N3357dt | C90: 3.5 | D90: 2.700 | E90: 5,400,000 | F90: 210,000 | G90: 648,000 | H90: 216,000 | I90: 0 | J90: 0 | M90: 249,000
B91: N3407dt | C91: 4.0 | D91: 2.920 | E91: 5,840,000 | F91: 210,000 | G91: 700,800 | H91: 233,600 | I91: 0 | J91: 0 | M91: 268,631
B92: N3457dt | C92: 4.5 | D92: 3.185 | E92: 6,370,000 | F92: 210,000 | G92: 764,400 | H92: 254,800 | I92: 0 | J92: 0 | M92: 292,277
B93: N3507dt | C93: 5.0 | D93: 3.450 | E93: 6,900,000 | F93: 210,000 | G93: 828,000 | H93: 276,000 | I93: 0 | J93: 0 | M93: 315,923
B94: N3557dt | C94: 5.5 | D94: 3.760 | E94: 7,520,000 | F94: 210,000 | G94: 902,400 | H94: 300,800 | I94: 0 | J94: 0 | M94: 343,585
B95: N3607dt | C95: 6.0 | D95: 4.070 | E95: 8,140,000 | F95: 210,000 | G95: 976,800 | H95: 325,600 | I95: 0 | J95: 0 | M95: 371,246
B96: N3707dt | C96: 7.0 | D96: 4.800 | E96: 9,600,000 | F96: 210,000 | G96: 1,152,000 | H96: 384,000 | I96: 0 | J96: 0 | M96: 436,385
A97: II. BẢNG LƯƠNG THỢ LẶN
A98: 1. Thợ lặn
C99: I | D99: 2.99 | E99: =D99*LTTV -> 5,980,000 | F99: =$F$10 -> 210,000 | G99: =E99*luongphu -> 717,600 | H99: =E99*khoantructiep -> 239,200 | I99: =E99*KhongOndinhSX -> 0 | J99: =E99*thuhut -> 0 | M99: =ROUND(SUM(E99:L99)/26,0) -> 274,877
C100: II | D100: 3.28 | E100: =D100*LTTV -> 6,560,000 | F100: =$F$10 -> 210,000 | G100: =E100*luongphu -> 787,200 | H100: =E100*khoantructiep -> 262,400 | I100: =E100*KhongOndinhSX -> 0 | J100: =E100*thuhut -> 0 | M100: =ROUND(SUM(E100:L100)/26,0) -> 300,754
C101: III | D101: 3.72 | E101: =D101*LTTV -> 7,440,000 | F101: =$F$10 -> 210,000 | G101: =E101*luongphu -> 892,800 | H101: =E101*khoantructiep -> 297,600 | I101: =E101*KhongOndinhSX -> 0 | J101: =E101*thuhut -> 0 | M101: =ROUND(SUM(E101:L101)/26,0) -> 340,015
C102: IV | D102: 4.15 | E102: =D102*LTTV -> 8,300,000 | F102: =$F$10 -> 210,000 | G102: =E102*luongphu -> 996,000 | H102: =E102*khoantructiep -> 332,000 | I102: =E102*KhongOndinhSX -> 0 | J102: =E102*thuhut -> 0 | M102: =ROUND(SUM(E102:L102)/26,0) -> 378,385
A103: 2. Thợ lặn cấp I
C104: I | D104: 4.67 | E104: =D104*LTTV -> 9,340,000 | F104: =$F$10 -> 210,000 | G104: =E104*luongphu -> 1,120,800 | H104: =E104*khoantructiep -> 373,600 | I104: =E104*KhongOndinhSX -> 0 | J104: =E104*thuhut -> 0 | M104: =ROUND(SUM(E104:L104)/26,0) -> 424,785
C105: II | D105: 5.27 | E105: =D105*LTTV -> 10,540,000 | F105: =$F$10 -> 210,000 | G105: =E105*luongphu -> 1,264,800 | H105: =E105*khoantructiep -> 421,600 | I105: =E105*KhongOndinhSX -> 0 | J105: =E105*thuhut -> 0 | M105: =ROUND(SUM(E105:L105)/26,0) -> 478,323
A106: 3. Thợ lặn cấp III
C107: I | D107: 5.75 | E107: =D107*LTTV -> 11,500,000 | F107: =$F$10 -> 210,000 | G107: =E107*luongphu -> 1,380,000 | H107: =E107*khoantructiep -> 460,000 | I107: =E107*KhongOndinhSX -> 0 | J107: =E107*thuhut -> 0 | M107: =ROUND(SUM(E107:L107)/26,0) -> 521,154
A108: B.12. BẢNG LƯƠNG CÔNG NHÂN LÁI XE
A109: 1. Xe con, xe tắc xi, xe tải, xe cẩu dưới 3,5 tấn, xe khách dưới 20 ghế
C110: I | D110: 2.18 | E110: =D110*LTTV -> 4,360,000 | F110: =$F$10 -> 210,000 | G110: =E110*luongphu -> 523,200 | H110: =E110*khoantructiep -> 174,400 | I110: =E110*KhongOndinhSX -> 0 | J110: =E110*thuhut -> 0 | M110: =ROUND(SUM(E110:L110)/26,0) -> 202,600
C111: II | D111: 2.57 | E111: =D111*LTTV -> 5,140,000 | F111: =$F$10 -> 210,000 | G111: =E111*luongphu -> 616,800 | H111: =E111*khoantructiep -> 205,600 | I111: =E111*KhongOndinhSX -> 0 | J111: =E111*thuhut -> 0 | M111: =ROUND(SUM(E111:L111)/26,0) -> 237,400
C112: III | D112: 3.05 | E112: =D112*LTTV -> 6,100,000 | F112: =$F$10 -> 210,000 | G112: =E112*luongphu -> 732,000 | H112: =E112*khoantructiep -> 244,000 | I112: =E112*KhongOndinhSX -> 0 | J112: =E112*thuhut -> 0 | M112: =ROUND(SUM(E112:L112)/26,0) -> 280,231
C113: IV | D113: 3.60 | E113: =D113*LTTV -> 7,200,000 | F113: =$F$10 -> 210,000 | G113: =E113*luongphu -> 864,000 | H113: =E113*khoantructiep -> 288,000 | I113: =E113*KhongOndinhSX -> 0 | J113: =E113*thuhut -> 0 | M113: =ROUND(SUM(E113:L113)/26,0) -> 329,308
A114: 2. Xe tải, xe cẩu từ 3,5 tấn đến dưới 7,5 tấn, xe khách từ 20 ghế đến dưới 40 ghế
C115: I | D115: 2.35 | E115: =D115*LTTV -> 4,700,000 | F115: =$F$10 -> 210,000 | G115: =E115*luongphu -> 564,000 | H115: =E115*khoantructiep -> 188,000 | I115: =E115*KhongOndinhSX -> 0 | J115: =E115*thuhut -> 0 | M115: =ROUND(SUM(E115:L115)/26,0) -> 217,769
C116: II | D116: 2.76 | E116: =D116*LTTV -> 5,520,000 | F116: =$F$10 -> 210,000 | G116: =E116*luongphu -> 662,400 | H116: =E116*khoantructiep -> 220,800 | I116: =E116*KhongOndinhSX -> 0 | J116: =E116*thuhut -> 0 | M116: =ROUND(SUM(E116:L116)/26,0) -> 254,354
C117: III | D117: 3.25 | E117: =D117*LTTV -> 6,500,000 | F117: =$F$10 -> 210,000 | G117: =E117*luongphu -> 780,000 | H117: =E117*khoantructiep -> 260,000 | I117: =E117*KhongOndinhSX -> 0 | J117: =E117*thuhut -> 0 | M117: =ROUND(SUM(E117:L117)/26,0) -> 298,077
C118: IV | D118: 3.82 | E118: =D118*LTTV -> 7,640,000 | F118: =$F$10 -> 210,000 | G118: =E118*luongphu -> 916,800 | H118: =E118*khoantructiep -> 305,600 | I118: =E118*KhongOndinhSX -> 0 | J118: =E118*thuhut -> 0 | M118: =ROUND(SUM(E118:L118)/26,0) -> 348,938
A119: 3. Xe tải, xe cẩu từ 7,5 tấn đến dưới 16,5 tấn, xe khách từ 40 ghế đến dưới 60 ghế
C120: I | D120: 2.51 | E120: =D120*LTTV -> 5,020,000 | F120: =$F$10 -> 210,000 | G120: =E120*luongphu -> 602,400 | H120: =E120*khoantructiep -> 200,800 | I120: =E120*KhongOndinhSX -> 0 | J120: =E120*thuhut -> 0 | M120: =ROUND(SUM(E120:L120)/26,0) -> 232,046
C121: II | D121: 2.94 | E121: =D121*LTTV -> 5,880,000 | F121: =$F$10 -> 210,000 | G121: =E121*luongphu -> 705,600 | H121: =E121*khoantructiep -> 235,200 | I121: =E121*KhongOndinhSX -> 0 | J121: =E121*thuhut -> 0 | M121: =ROUND(SUM(E121:L121)/26,0) -> 270,415
C122: III | D122: 3.44 | E122: =D122*LTTV -> 6,880,000 | F122: =$F$10 -> 210,000 | G122: =E122*luongphu -> 825,600 | H122: =E122*khoantructiep -> 275,200 | I122: =E122*KhongOndinhSX -> 0 | J122: =E122*thuhut -> 0 | M122: =ROUND(SUM(E122:L122)/26,0) -> 315,031
C123: IV | D123: 4.05 | E123: =D123*LTTV -> 8,100,000 | F123: =$F$10 -> 210,000 | G123: =E123*luongphu -> 972,000 | H123: =E123*khoantructiep -> 324,000 | I123: =E123*KhongOndinhSX -> 0 | J123: =E123*thuhut -> 0 | M123: =ROUND(SUM(E123:L123)/26,0) -> 369,462
A124: 4. Xe tải, xe cẩu từ 16,5 tấn đến dưới 25 tấn, xe khách từ 60 ghế đến dưới 80 ghế
C125: I | D125: 2.66 | E125: =D125*LTTV -> 5,320,000 | F125: =$F$10 -> 210,000 | G125: =E125*luongphu -> 638,400 | H125: =E125*khoantructiep -> 212,800 | I125: =E125*KhongOndinhSX -> 0 | J125: =E125*thuhut -> 0 | M125: =ROUND(SUM(E125:L125)/26,0) -> 245,431
C126: II | D126: 3.11 | E126: =D126*LTTV -> 6,220,000 | F126: =$F$10 -> 210,000 | G126: =E126*luongphu -> 746,400 | H126: =E126*khoantructiep -> 248,800 | I126: =E126*KhongOndinhSX -> 0 | J126: =E126*thuhut -> 0 | M126: =ROUND(SUM(E126:L126)/26,0) -> 285,585
C127: III | D127: 3.64 | E127: =D127*LTTV -> 7,280,000 | F127: =$F$10 -> 210,000 | G127: =E127*luongphu -> 873,600 | H127: =E127*khoantructiep -> 291,200 | I127: =E127*KhongOndinhSX -> 0 | J127: =E127*thuhut -> 0 | M127: =ROUND(SUM(E127:L127)/26,0) -> 332,877
C128: IV | D128: 4.20 | E128: =D128*LTTV -> 8,400,000 | F128: =$F$10 -> 210,000 | G128: =E128*luongphu -> 1,008,000 | H128: =E128*khoantructiep -> 336,000 | I128: =E128*KhongOndinhSX -> 0 | J128: =E128*thuhut -> 0 | M128: =ROUND(SUM(E128:L128)/26,0) -> 382,846
A129: 5. Xe tải, xe cẩu từ 25 tấn đến dưới 40 tấn, xe khách từ 80 ghế trở lên
C130: I | D130: 2.99 | E130: =D130*LTTV -> 5,980,000 | F130: =$F$10 -> 210,000 | G130: =E130*luongphu -> 717,600 | H130: =E130*khoantructiep -> 239,200 | I130: =E130*KhongOndinhSX -> 0 | J130: =E130*thuhut -> 0 | M130: =ROUND(SUM(E130:L130)/26,0) -> 274,877
C131: II | D131: 3.50 | E131: =D131*LTTV -> 7,000,000 | F131: =$F$10 -> 210,000 | G131: =E131*luongphu -> 840,000 | H131: =E131*khoantructiep -> 280,000 | I131: =E131*KhongOndinhSX -> 0 | J131: =E131*thuhut -> 0 | M131: =ROUND(SUM(E131:L131)/26,0) -> 320,385
C132: III | D132: 4.11 | E132: =D132*LTTV -> 8,220,000 | F132: =$F$10 -> 210,000 | G132: =E132*luongphu -> 986,400 | H132: =E132*khoantructiep -> 328,800 | I132: =E132*KhongOndinhSX -> 0 | J132: =E132*thuhut -> 0 | M132: =ROUND(SUM(E132:L132)/26,0) -> 374,815
C133: IV | D133: 4.82 | E133: =D133*LTTV -> 9,640,000 | F133: =$F$10 -> 210,000 | G133: =E133*luongphu -> 1,156,800 | H133: =E133*khoantructiep -> 385,600 | I133: =E133*KhongOndinhSX -> 0 | J133: =E133*thuhut -> 0 | M133: =ROUND(SUM(E133:L133)/26,0) -> 438,169
A134: 6. Xe tải, xe cẩu từ 40 tấn trở lên
C135: I | D135: 3.20 | E135: =D135*LTTV -> 6,400,000 | F135: =$F$10 -> 210,000 | G135: =E135*luongphu -> 768,000 | H135: =E135*khoantructiep -> 256,000 | I135: =E135*KhongOndinhSX -> 0 | J135: =E135*thuhut -> 0 | M135: =ROUND(SUM(E135:L135)/26,0) -> 293,615
C136: II | D136: 3.75 | E136: =D136*LTTV -> 7,500,000 | F136: =$F$10 -> 210,000 | G136: =E136*luongphu -> 900,000 | H136: =E136*khoantructiep -> 300,000 | I136: =E136*KhongOndinhSX -> 0 | J136: =E136*thuhut -> 0 | M136: =ROUND(SUM(E136:L136)/26,0) -> 342,692
C137: III | D137: 4.39 | E137: =D137*LTTV -> 8,780,000 | F137: =$F$10 -> 210,000 | G137: =E137*luongphu -> 1,053,600 | H137: =E137*khoantructiep -> 351,200 | I137: =E137*KhongOndinhSX -> 0 | J137: =E137*thuhut -> 0 | M137: =ROUND(SUM(E137:L137)/26,0) -> 399,800
C138: IV | D138: 5.15 | E138: =D138*LTTV -> 10,300,000 | F138: =$F$10 -> 210,000 | G138: =E138*luongphu -> 1,236,000 | H138: =E138*khoantructiep -> 412,000 | I138: =E138*KhongOndinhSX -> 0 | J138: =E138*thuhut -> 0 | M138: =ROUND(SUM(E138:L138)/26,0) -> 467,615
A139: B.2. BẢNG LƯƠNG THUYỀN VIÊN VÀ CÔNG NHÂN VIÊN TÀU VẬN TẢI BIỂN, VẬN TẢI SÔNG, TÀU DỊCH VỤ DẦU KHÍ, TÀU CẨU DẦU KHÍ
A140: B.2.I. TÀU VẬN TẢI BIỂN, VẬN TẢI SÔNG
A141: B.2.I.1. Tàu vận tải biển, vận tải sông không theo nhóm tàu
A142: CHỨC DANH KHÔNG THEO NHÓM TÀU
A143: I/ Tàu vận tải biển
A144: 1. Thuỷ thủ
D145: 2.18 | E145: =D145*LTTV -> 4,360,000 | F145: =$F$10 -> 210,000 | G145: =E145*luongphu -> 523,200 | H145: =E145*khoantructiep -> 174,400 | I145: =E145*KhongOndinhSX -> 0 | J145: =E145*thuhut -> 0 | M145: =ROUND(SUM(E145:L145)/26,0) -> 202,600
D146: 2.59 | E146: =D146*LTTV -> 5,180,000 | F146: =$F$10 -> 210,000 | G146: =E146*luongphu -> 621,600 | H146: =E146*khoantructiep -> 207,200 | I146: =E146*KhongOndinhSX -> 0 | J146: =E146*thuhut -> 0 | M146: =ROUND(SUM(E146:L146)/26,0) -> 239,185
D147: 3.08 | E147: =D147*LTTV -> 6,160,000 | F147: =$F$10 -> 210,000 | G147: =E147*luongphu -> 739,200 | H147: =E147*khoantructiep -> 246,400 | I147: =E147*KhongOndinhSX -> 0 | J147: =E147*thuhut -> 0 | M147: =ROUND(SUM(E147:L147)/26,0) -> 282,908
D148: 3.73 | E148: =D148*LTTV -> 7,460,000 | F148: =$F$10 -> 210,000 | G148: =E148*luongphu -> 895,200 | H148: =E148*khoantructiep -> 298,400 | I148: =E148*KhongOndinhSX -> 0 | J148: =E148*thuhut -> 0 | M148: =ROUND(SUM(E148:L148)/26,0) -> 340,908
A149: 2. Thợ máy kiêm cơ khí, thợ bơm
D150: 2.51 | E150: =D150*LTTV -> 5,020,000 | F150: =$F$10 -> 210,000 | G150: =E150*luongphu -> 602,400 | H150: =E150*khoantructiep -> 200,800 | I150: =E150*KhongOndinhSX -> 0 | J150: =E150*thuhut -> 0 | M150: =ROUND(SUM(E150:L150)/26,0) -> 232,046
D151: 2.93 | E151: =D151*LTTV -> 5,860,000 | F151: =$F$10 -> 210,000 | G151: =E151*luongphu -> 703,200 | H151: =E151*khoantructiep -> 234,400 | I151: =E151*KhongOndinhSX -> 0 | J151: =E151*thuhut -> 0 | M151: =ROUND(SUM(E151:L151)/26,0) -> 269,523
D152: 3.49 | E152: =D152*LTTV -> 6,980,000 | F152: =$F$10 -> 210,000 | G152: =E152*luongphu -> 837,600 | H152: =E152*khoantructiep -> 279,200 | I152: =E152*KhongOndinhSX -> 0 | J152: =E152*thuhut -> 0 | M152: =ROUND(SUM(E152:L152)/26,0) -> 319,492
D153: 4.16 | E153: =D153*LTTV -> 8,320,000 | F153: =$F$10 -> 210,000 | G153: =E153*luongphu -> 998,400 | H153: =E153*khoantructiep -> 332,800 | I153: =E153*KhongOndinhSX -> 0 | J153: =E153*thuhut -> 0 | M153: =ROUND(SUM(E153:L153)/26,0) -> 379,277
A154: 3. Thợ máy, điện, vô tuyến điện
D155: 2.35 | E155: =D155*LTTV -> 4,700,000 | F155: =$F$10 -> 210,000 | G155: =E155*luongphu -> 564,000 | H155: =E155*khoantructiep -> 188,000 | I155: =E155*KhongOndinhSX -> 0 | J155: =E155*thuhut -> 0 | M155: =ROUND(SUM(E155:L155)/26,0) -> 217,769
D156: 2.72 | E156: =D156*LTTV -> 5,440,000 | F156: =$F$10 -> 210,000 | G156: =E156*luongphu -> 652,800 | H156: =E156*khoantructiep -> 217,600 | I156: =E156*KhongOndinhSX -> 0 | J156: =E156*thuhut -> 0 | M156: =ROUND(SUM(E156:L156)/26,0) -> 250,785
D157: 3.25 | E157: =D157*LTTV -> 6,500,000 | F157: =$F$10 -> 210,000 | G157: =E157*luongphu -> 780,000 | H157: =E157*khoantructiep -> 260,000 | I157: =E157*KhongOndinhSX -> 0 | J157: =E157*thuhut -> 0 | M157: =ROUND(SUM(E157:L157)/26,0) -> 298,077
D158: 3.91 | E158: =D158*LTTV -> 7,820,000 | F158: =$F$10 -> 210,000 | G158: =E158*luongphu -> 938,400 | H158: =E158*khoantructiep -> 312,800 | I158: =E158*KhongOndinhSX -> 0 | J158: =E158*thuhut -> 0 | M158: =ROUND(SUM(E158:L158)/26,0) -> 356,969
A159: 4. Phục vụ viên
D160: 1.75 | E160: =D160*LTTV -> 3,500,000 | F160: =$F$10 -> 210,000 | G160: =E160*luongphu -> 420,000 | H160: =E160*khoantructiep -> 140,000 | I160: =E160*KhongOndinhSX -> 0 | J160: =E160*thuhut -> 0 | M160: =ROUND(SUM(E160:L160)/26,0) -> 164,231
D161: 1.99 | E161: =D161*LTTV -> 3,980,000 | F161: =$F$10 -> 210,000 | G161: =E161*luongphu -> 477,600 | H161: =E161*khoantructiep -> 159,200 | I161: =E161*KhongOndinhSX -> 0 | J161: =E161*thuhut -> 0 | M161: =ROUND(SUM(E161:L161)/26,0) -> 185,646
D162: 2.35 | E162: =D162*LTTV -> 4,700,000 | F162: =$F$10 -> 210,000 | G162: =E162*luongphu -> 564,000 | H162: =E162*khoantructiep -> 188,000 | I162: =E162*KhongOndinhSX -> 0 | J162: =E162*thuhut -> 0 | M162: =ROUND(SUM(E162:L162)/26,0) -> 217,769
D163: 2.66 | E163: =D163*LTTV -> 5,320,000 | F163: =$F$10 -> 210,000 | G163: =E163*luongphu -> 638,400 | H163: =E163*khoantructiep -> 212,800 | I163: =E163*KhongOndinhSX -> 0 | J163: =E163*thuhut -> 0 | M163: =ROUND(SUM(E163:L163)/26,0) -> 245,431
A164: 5. Cấp dưỡng
D165: 1.93 | E165: =D165*LTTV -> 3,860,000 | F165: =$F$10 -> 210,000 | G165: =E165*luongphu -> 463,200 | H165: =E165*khoantructiep -> 154,400 | I165: =E165*KhongOndinhSX -> 0 | J165: =E165*thuhut -> 0 | M165: =ROUND(SUM(E165:L165)/26,0) -> 180,292
D166: 2.38 | E166: =D166*LTTV -> 4,760,000 | F166: =$F$10 -> 210,000 | G166: =E166*luongphu -> 571,200 | H166: =E166*khoantructiep -> 190,400 | I166: =E166*KhongOndinhSX -> 0 | J166: =E166*thuhut -> 0 | M166: =ROUND(SUM(E166:L166)/26,0) -> 220,446
D167: 2.74 | E167: =D167*LTTV -> 5,480,000 | F167: =$F$10 -> 210,000 | G167: =E167*luongphu -> 657,600 | H167: =E167*khoantructiep -> 219,200 | I167: =E167*KhongOndinhSX -> 0 | J167: =E167*thuhut -> 0 | M167: =ROUND(SUM(E167:L167)/26,0) -> 252,569
D168: 3.15 | E168: =D168*LTTV -> 6,300,000 | F168: =$F$10 -> 210,000 | G168: =E168*luongphu -> 756,000 | H168: =E168*khoantructiep -> 252,000 | I168: =E168*KhongOndinhSX -> 0 | J168: =E168*thuhut -> 0 | M168: =ROUND(SUM(E168:L168)/26,0) -> 289,154
A169: II/ Tàu vận tải sông và sang ngang
A170: 1. Thuỷ thủ
A171: Nhóm I (vận tải dọc sông)
D172: 1.93 | E172: =D172*LTTV -> 3,860,000 | F172: =$F$10 -> 210,000 | G172: =E172*luongphu -> 463,200 | H172: =E172*khoantructiep -> 154,400 | I172: =E172*KhongOndinhSX -> 0 | J172: =E172*thuhut -> 0 | M172: =ROUND(SUM(E172:L172)/26,0) -> 180,292
D173: 2.18 | E173: =D173*LTTV -> 4,360,000 | F173: =$F$10 -> 210,000 | G173: =E173*luongphu -> 523,200 | H173: =E173*khoantructiep -> 174,400 | I173: =E173*KhongOndinhSX -> 0 | J173: =E173*thuhut -> 0 | M173: =ROUND(SUM(E173:L173)/26,0) -> 202,600
D174: 2.51 | E174: =D174*LTTV -> 5,020,000 | F174: =$F$10 -> 210,000 | G174: =E174*luongphu -> 602,400 | H174: =E174*khoantructiep -> 200,800 | I174: =E174*KhongOndinhSX -> 0 | J174: =E174*thuhut -> 0 | M174: =ROUND(SUM(E174:L174)/26,0) -> 232,046
D175: 2.83 | E175: =D175*LTTV -> 5,660,000 | F175: =$F$10 -> 210,000 | G175: =E175*luongphu -> 679,200 | H175: =E175*khoantructiep -> 226,400 | I175: =E175*KhongOndinhSX -> 0 | J175: =E175*thuhut -> 0 | M175: =ROUND(SUM(E175:L175)/26,0) -> 260,600
A176: Nhóm II (vận tải sang ngang)
D177: 2.12 | E177: =D177*LTTV -> 4,240,000 | F177: =$F$10 -> 210,000 | G177: =E177*luongphu -> 508,800 | H177: =E177*khoantructiep -> 169,600 | I177: =E177*KhongOndinhSX -> 0 | J177: =E177*thuhut -> 0 | M177: =ROUND(SUM(E177:L177)/26,0) -> 197,246
D178: 2.39 | E178: =D178*LTTV -> 4,780,000 | F178: =$F$10 -> 210,000 | G178: =E178*luongphu -> 573,600 | H178: =E178*khoantructiep -> 191,200 | I178: =E178*KhongOndinhSX -> 0 | J178: =E178*thuhut -> 0 | M178: =ROUND(SUM(E178:L178)/26,0) -> 221,338
D179: 2.76 | E179: =D179*LTTV -> 5,520,000 | F179: =$F$10 -> 210,000 | G179: =E179*luongphu -> 662,400 | H179: =E179*khoantructiep -> 220,800 | I179: =E179*KhongOndinhSX -> 0 | J179: =E179*thuhut -> 0 | M179: =ROUND(SUM(E179:L179)/26,0) -> 254,354
D180: 3.11 | E180: =D180*LTTV -> 6,220,000 | F180: =$F$10 -> 210,000 | G180: =E180*luongphu -> 746,400 | H180: =E180*khoantructiep -> 248,800 | I180: =E180*KhongOndinhSX -> 0 | J180: =E180*thuhut -> 0 | M180: =ROUND(SUM(E180:L180)/26,0) -> 285,585
A181: 2. Thợ máy, thợ điện
A182: Nhóm I (vận tải dọc sông)
D183: 2.05 | E183: =D183*LTTV -> 4,100,000 | F183: =$F$10 -> 210,000 | G183: =E183*luongphu -> 492,000 | H183: =E183*khoantructiep -> 164,000 | I183: =E183*KhongOndinhSX -> 0 | J183: =E183*thuhut -> 0 | M183: =ROUND(SUM(E183:L183)/26,0) -> 191,000
D184: 2.35 | E184: =D184*LTTV -> 4,700,000 | F184: =$F$10 -> 210,000 | G184: =E184*luongphu -> 564,000 | H184: =E184*khoantructiep -> 188,000 | I184: =E184*KhongOndinhSX -> 0 | J184: =E184*thuhut -> 0 | M184: =ROUND(SUM(E184:L184)/26,0) -> 217,769
D185: 2.66 | E185: =D185*LTTV -> 5,320,000 | F185: =$F$10 -> 210,000 | G185: =E185*luongphu -> 638,400 | H185: =E185*khoantructiep -> 212,800 | I185: =E185*KhongOndinhSX -> 0 | J185: =E185*thuhut -> 0 | M185: =ROUND(SUM(E185:L185)/26,0) -> 245,431
D186: 2.99 | E186: =D186*LTTV -> 5,980,000 | F186: =$F$10 -> 210,000 | G186: =E186*luongphu -> 717,600 | H186: =E186*khoantructiep -> 239,200 | I186: =E186*KhongOndinhSX -> 0 | J186: =E186*thuhut -> 0 | M186: =ROUND(SUM(E186:L186)/26,0) -> 274,877
A187: Nhóm II (vận tải sang ngang)
D188: 2.25 | E188: =D188*LTTV -> 4,500,000 | F188: =$F$10 -> 210,000 | G188: =E188*luongphu -> 540,000 | H188: =E188*khoantructiep -> 180,000 | I188: =E188*KhongOndinhSX -> 0 | J188: =E188*thuhut -> 0 | M188: =ROUND(SUM(E188:L188)/26,0) -> 208,846
D189: 2.58 | E189: =D189*LTTV -> 5,160,000 | F189: =$F$10 -> 210,000 | G189: =E189*luongphu -> 619,200 | H189: =E189*khoantructiep -> 206,400 | I189: =E189*KhongOndinhSX -> 0 | J189: =E189*thuhut -> 0 | M189: =ROUND(SUM(E189:L189)/26,0) -> 238,292
D190: 2.92 | E190: =D190*LTTV -> 5,840,000 | F190: =$F$10 -> 210,000 | G190: =E190*luongphu -> 700,800 | H190: =E190*khoantructiep -> 233,600 | I190: =E190*KhongOndinhSX -> 0 | J190: =E190*thuhut -> 0 | M190: =ROUND(SUM(E190:L190)/26,0) -> 268,631
D191: 3.28 | E191: =D191*LTTV -> 6,560,000 | F191: =$F$10 -> 210,000 | G191: =E191*luongphu -> 787,200 | H191: =E191*khoantructiep -> 262,400 | I191: =E191*KhongOndinhSX -> 0 | J191: =E191*thuhut -> 0 | M191: =ROUND(SUM(E191:L191)/26,0) -> 300,754
A192: 3. Phục vụ viên
D193: 1.55 | E193: =D193*LTTV -> 3,100,000 | F193: =$F$10 -> 210,000 | G193: =E193*luongphu -> 372,000 | H193: =E193*khoantructiep -> 124,000 | I193: =E193*KhongOndinhSX -> 0 | J193: =E193*thuhut -> 0 | M193: =ROUND(SUM(E193:L193)/26,0) -> 146,385
D194: 1.75 | E194: =D194*LTTV -> 3,500,000 | F194: =$F$10 -> 210,000 | G194: =E194*luongphu -> 420,000 | H194: =E194*khoantructiep -> 140,000 | I194: =E194*KhongOndinhSX -> 0 | J194: =E194*thuhut -> 0 | M194: =ROUND(SUM(E194:L194)/26,0) -> 164,231
D195: 2.05 | E195: =D195*LTTV -> 4,100,000 | F195: =$F$10 -> 210,000 | G195: =E195*luongphu -> 492,000 | H195: =E195*khoantructiep -> 164,000 | I195: =E195*KhongOndinhSX -> 0 | J195: =E195*thuhut -> 0 | M195: =ROUND(SUM(E195:L195)/26,0) -> 191,000
D196: 2.35 | E196: =D196*LTTV -> 4,700,000 | F196: =$F$10 -> 210,000 | G196: =E196*luongphu -> 564,000 | H196: =E196*khoantructiep -> 188,000 | I196: =E196*KhongOndinhSX -> 0 | J196: =E196*thuhut -> 0 | M196: =ROUND(SUM(E196:L196)/26,0) -> 217,769
A198: Các chức danh quản lý vận hành luồng tàu biển VTS vận dụng xếp như Kiểm soát viên không lưu Bảng lương công nhân viên Hàng không dân dụng (B.8):
A199: - Kiểm soát viên từ phao số 0 vào cảng toàn tuyến xếp như Kiểm soát viên không lưu cấp III.
A200: - Kiểm soát viên quản lý vận hành luồng tàu xếp như Kiểm soát viên không lưu cấp II.
A201: - Kiểm soát viên quản lý vận hành khu vực luồng tàu xếp như Kiểm soát viên không lưu cấp I.
A202: B.2. BẢNG LƯƠNG THUYỀN VIÊN VÀ CÔNG NHÂN VIÊN TÀU VẬN TẢI BIỂN, VẬN TẢI SÔNG, TÀU DỊCH VỤ DẦU KHÍ, TÀU CẨU DẦU KHÍ (TIẾP THEO)
... 185 more rows

Sheet Morong (hidden)
